Local authority department which incurred the expenditure,Service Division,Cost Centre,Summary of the Purpose of Expenditure,Expense Type,Expense Code,Detailed Expense Type,Date of Transaction,Transaction Number,Beneficiary,Merchant Category Number,Merchant Category,Gross Amount,VAT,Net Amount
Adult and Health Services,Head of Adults,055302,Durham Pathways,Supplies and Services,304403,Equipment and Materials,01-Sep-2021,000009723754581,AMZNMktplace,5999,Other consumables,2.99,0.50,2.49
Children and Young Peoples Services,Head of Childrens Social Care,085342,16 Hickstead Rise (previously 9 Cedar Ave),Supplies and Services,372009,Subscriptions E372,01-Sep-2021,000009723754681,Netflix.com,4899,Subscriptions 372009,13.99,0.00,13.99
Children and Young Peoples Services,Head of Early Help Inclusion & Vulnerable Children.,085957,Secure Management,Supplies and Services,304245,Equipment and Materials,01-Sep-2021,000009723754733,AMZNMktplace,5999,Materials,1.99,0.33,1.66
"Regeneration, Economy and Growth",Business Durham CL0850,030689,Inward Investment and Aftercare,Supplies and Services,336005,Advertising E336,01-Sep-2021,000009727339591,LINKEDIN IRELAND,7311,Advertising other than for staff,18.46,0.00,18.46
Children and Young Peoples Services,Head of Education and Skills,071801,Selby Cottage Childcare Centre,Supplies and Services,324117,Provisions E324,01-Sep-2021,000009727339671,JR HOLLAND FOODSERVICE,5499,Catering costs - provisions,388.10,0.00,388.10
Children and Young Peoples Services,Head of Education and Skills,071801,Selby Cottage Childcare Centre,Supplies and Services,324117,Provisions E324,01-Sep-2021,000009727339679,WILKO RETAIL LIMITED,5399,Catering costs - provisions,23.00,0.00,23.00
Children and Young Peoples Services,Head of Childrens Social Care,085501,Child Care Cases Legal Expenses,Supplies and Services,304403,Equipment and Materials,01-Sep-2021,000009727339943,CITY OF NEWCASTLE INTE,9399,Other consumables,11.00,0.00,11.00
"Regeneration, Economy and Growth",Development and Housing,030773,CLLD North,Transport,235057,Public Transport,01-Sep-2021,000009727339955,WWW.GONORTHEAST.CO.UK,4111,Staff travelling,6.00,0.00,6.00
"Regeneration, Economy and Growth",Development and Housing,030773,CLLD North,Transport,235057,Public Transport,01-Sep-2021,000009727339961,WWW.GONORTHEAST.CO.UK,4111,Staff travelling,6.00,0.00,6.00
Children and Young Peoples Services,Head of Education and Skills,075029,Poverty Action Group,Supplies and Services,364301,Grants to Voluntary Organisations,01-Sep-2021,000009727339991,WWW.GONORTHEAST.CO.UK,4111,Hardship,75.00,0.00,75.00
Children and Young Peoples Services,Head of Education and Skills,075021,DurhamWorks Progression and Learning,Supplies and Services,364301,Grants to Voluntary Organisations,01-Sep-2021,000009727339993,PET N PONY,5995,Hardship,244.06,0.00,244.06
"Regeneration, Economy and Growth",Culture Sport and Tourism,030712,VCD - Project Delivery,Supplies and Services,384199,Miscellaneous Expenses,01-Sep-2021,000009727340089,ALL ACCESS BUNDLE,7372,Other hired and contracted services,174.08,0.00,174.08
Children and Young Peoples Services,Head of Childrens Social Care,085341,High Etherley Satelite Home,Supplies and Services,304403,Equipment and Materials,01-Sep-2021,000009727340183,AMZNMKTPLACE AMAZON.CO,5999,Other consumables,35.82,0.00,35.82
Children and Young Peoples Services,Head of Childrens Social Care,085341,High Etherley Satelite Home,Supplies and Services,324117,Provisions E324,01-Sep-2021,000009727340341,HASWELL HOMER HILL,5499,Catering costs - provisions,9.50,0.00,9.50
"Regeneration, Economy and Growth",Culture Sport and Tourism,054233,Bishop Auckland Town Hall Library,Supplies and Services,384999,Miscellaneous Expenses,01-Sep-2021,000009727340589,Amazon.co.uk AA76E1WH5,5969,Other expenses,19.80,3.30,16.50
"Regeneration, Economy and Growth",Culture Sport and Tourism,054233,Bishop Auckland Town Hall Library,Supplies and Services,324117,Provisions E324,01-Sep-2021,000009727340593,WILKO RETAIL LIMITED,5399,Catering costs - provisions,3.20,0.00,3.20
"Regeneration, Economy and Growth",Culture Sport and Tourism,054233,Bishop Auckland Town Hall Library,Supplies and Services,324117,Provisions E324,01-Sep-2021,000009727340597,HERON FOODS,5411,Catering costs - provisions,6.00,0.00,6.00
"Regeneration, Economy and Growth",Development and Housing,030771,Durham Advance Flexible Fund,Supplies and Services,304221,Equipment and Materials,01-Sep-2021,000009727340621,CLEANINGWAR,5169,Direct materials,375.54,62.59,312.95
Children and Young Peoples Services,Head of Early Help Inclusion & Vulnerable Children.,085957,Secure Management,Supplies and Services,384999,Miscellaneous Expenses,01-Sep-2021,000009727340733,Amazon.co.uk B48B020Z5,5969,Other expenses,14.50,0.00,14.50
Children and Young Peoples Services,Head of Early Help Inclusion & Vulnerable Children.,085952,Secure Education,Supplies and Services,384999,Miscellaneous Expenses,01-Sep-2021,000009727340737,Amazon.co.uk F26BE9XJ5,5969,Other expenses,14.30,0.00,14.30
Children and Young Peoples Services,Head of Childrens Social Care,085361,LAC & Permanence Team 1,Supplies and Services,338045,Services,01-Sep-2021,000009727340851,DARLINGTON BC INTERNET,9399,Legal expenses 338045,11.00,0.00,11.00
Children and Young Peoples Services,Head of Education and Skills,071732,Dean Bank Childcare,Supplies and Services,324117,Provisions E324,01-Sep-2021,000009727341267,ASDA GROCERIES ONLINE,5411,Catering costs - provisions,67.44,0.00,67.44
Children and Young Peoples Services,Head of Education and Skills,071732,Dean Bank Childcare,Supplies and Services,324117,Provisions E324,01-Sep-2021,000009727341273,ASDA GROCERIES ONLINE,5411,Catering costs - provisions,-0.09,0.00,-0.09
"Regeneration, Economy and Growth",Culture Sport and Tourism,054813,Gala Theatre - Technical,Supplies and Services,304259,Equipment and Materials,01-Sep-2021,000009727341305,AMZNMKTPLACE AMAZON.CO,5999,Equipment-purchase and rental,28.90,0.00,28.90
"Regeneration, Economy and Growth",Development and Housing,030776,LINKCD Flexible Fund,Supplies and Services,324117,Provisions E324,01-Sep-2021,000009727341487,ASDA GEORGE COM LEEDS,5411,Catering costs - provisions,27.50,0.00,27.50
Children and Young Peoples Services,Head of Childrens Social Care,085517,Supporting Solutions Service (Edge of Care),Supplies and Services,384871,Miscellaneous Expenses,01-Sep-2021,000009727341497,PAYPAL HALLHILLFAR,8999,Training-other activities,-27.40,0.00,-27.40
Children and Young Peoples Services,Head of Early Help Inclusion & Vulnerable Children.,085957,Secure Management,Premises,108099,Service Repairs and Maintenance,01-Sep-2021,000009727341639,PARK ELECTRICAL DISTRI,1731,General repairs 108099,251.93,0.00,251.93
Children and Young Peoples Services,Head of Early Help Inclusion & Vulnerable Children.,085957,Secure Management,Supplies and Services,304245,Equipment and Materials,01-Sep-2021,000009727341647,AMZNMKTPLACE AMAZON.CO,5999,Materials,20.52,3.42,17.10
Children and Young Peoples Services,Head of Early Help Inclusion & Vulnerable Children.,085965,Barnard,Supplies and Services,304083,Equipment and Materials,01-Sep-2021,000009727341655,AMZNMktplace,5999,Catering equipment,30.91,5.15,25.76
Children and Young Peoples Services,Head of Early Help Inclusion & Vulnerable Children.,085956,Lumley,Supplies and Services,384302,Miscellaneous Expenses,01-Sep-2021,000009727341659,AMZNMktplace,5999,Activity expenses,41.96,7.00,34.96
Children and Young Peoples Services,Head of Early Help Inclusion & Vulnerable Children.,085956,Lumley,Transfer Payments,515002,Social Services Clients,01-Sep-2021,000009727341665,BOOTS UK ECOMM,5912,Pocket money,14.73,0.00,14.73
Children and Young Peoples Services,Head of Early Help Inclusion & Vulnerable Children.,085962,Aycliffe Secure - Durham,Supplies and Services,324117,Provisions E324,01-Sep-2021,000009727341671,TESCO STORES 6329,5411,Catering costs - provisions,75.17,0.00,75.17
Neighbourhoods and Climate Change,Environmental Services,010367,C&G - South Grounds Maintenance,Supplies and Services,304221,Equipment and Materials,01-Sep-2021,000009727341739,ARBOR TIMBER AND BUILD,5211,Direct materials,140.67,0.00,140.67
Neighbourhoods and Climate Change,Environmental Services,010367,C&G - South Grounds Maintenance,Supplies and Services,304221,Equipment and Materials,01-Sep-2021,000009727341743,CARRS BILLINGTON SPENN,5599,Direct materials,48.00,0.00,48.00
Neighbourhoods and Climate Change,Environmental Services,010367,C&G - South Grounds Maintenance,Supplies and Services,304999,Equipment and Materials,01-Sep-2021,000009727341751,Harelaw sawmill delive,5251,Misc equipment tools and materials,201.02,0.00,201.02
"Regeneration, Economy and Growth",Corporate Property and Land,021234,Catering - Locomotion,Premises,145009,Cleaning and Domestic Supplies,01-Sep-2021,000009727341977,ALLIANCE DISPOSABLES L,2842,Other cleaning and domestic costs,220.25,36.71,183.54
Children and Young Peoples Services,Head of Education and Skills,071802,Louisa Cent Nursery,Supplies and Services,304999,Equipment and Materials,01-Sep-2021,000009727342413,HOME BARGAINS,5251,Misc equipment tools and materials,66.75,0.00,66.75
Adult and Health Services,Head of Adults,055301,Stanley Pathways,Supplies and Services,304403,Equipment and Materials,01-Sep-2021,000009727342501,AMZNMKTPLACE AMAZON.CO,5999,Other consumables,30.70,5.12,25.58
Children and Young Peoples Services,Head of Childrens Social Care,085363,LAC & Permanence Team 3,Supplies and Services,338045,Services,01-Sep-2021,000009727342779,STOCKTON BOROUGH COUNC,9399,Legal expenses 338045,22.00,0.00,22.00
Resources BK0010,Digital and Customer Services,065350,Project Management Office,Supplies and Services,342033,Computers and Communications,01-Sep-2021,000009727342911,BLS SHAREGATE188844431,7372,Computer hardware,"3,925.52",0.00,3925.52
Children and Young Peoples Services,Head of Childrens Social Care,085378,Young Persons Service Team 3,Supplies and Services,338045,Services,01-Sep-2021,000009727342941,DARLINGTON BC INTERNET,9399,Legal expenses 338045,11.00,0.00,11.00
Children and Young Peoples Services,Head of Childrens Social Care,085513,Supporting Family Time Team,Supplies and Services,324117,Provisions E324,01-Sep-2021,000009727342951,ASDA GROCERIES ONLINE,5411,Catering costs - provisions,-6.00,0.00,-6.00
Children and Young Peoples Services,Head of Childrens Social Care,085332,Middlestone Moor CU,Supplies and Services,304999,Equipment and Materials,01-Sep-2021,000009727343041,Microsoft Console 1-Mo,5816,Misc equipment tools and materials,7.99,0.00,7.99
Children and Young Peoples Services,Head of Early Help Inclusion & Vulnerable Children.,085801,CDYJS - Support,Supplies and Services,342222,Computers and Communications,01-Sep-2021,000009727343079,S K CHASE GIFT VOUCHER,4816,Comp hardware purch-network servers,37.90,0.00,37.90
Children and Young Peoples Services,Head of Early Help Inclusion & Vulnerable Children.,085801,CDYJS - Support,Supplies and Services,324117,Provisions E324,01-Sep-2021,000009727343083,MARKS&SPENCER PLC,5411,Catering costs - provisions,25.00,0.00,25.00
Children and Young Peoples Services,Head of Early Help Inclusion & Vulnerable Children.,085801,CDYJS - Support,Supplies and Services,324117,Provisions E324,01-Sep-2021,000009727343087,MARKS&SPENCER PLC,5411,Catering costs - provisions,25.00,0.00,25.00
"Regeneration, Economy and Growth",Culture Sport and Tourism,054820,Gala Theatre - Overheads,Supplies and Services,324117,Provisions E324,01-Sep-2021,000009727343381,TESCO STORES 6029,5411,Catering costs - provisions,1.40,0.00,1.40
Children and Young Peoples Services,Head of Childrens Social Care,085347,Solo Home The Manse,Supplies and Services,348037,Subsistence E348,01-Sep-2021,000009727343469,SumUp Rostich Leisur,5813,Subsistence,8.40,0.00,8.40
"Regeneration, Economy and Growth",Communications Management,060270,Communications and Marketing,Supplies and Services,336005,Advertising E336,01-Sep-2021,000009727343523,GOOGLE ADS8772529636,7311,Advertising other than for staff,113.00,0.00,113.00
Resources BK0010,COVID19 - Resources,091007,COVID19 - Resources,Supplies and Services,340001,Postages E340,01-Sep-2021,000009727343527,ROYAL MAIL REDIRECTION,9402,Postages,216.00,0.00,216.00
Neighbourhoods and Climate Change,Community Protection,011293,Horden Making Every Adult Matter (MEAM),Supplies and Services,324117,Provisions E324,01-Sep-2021,000009727343567,TESCO STORES 2371,5411,Catering costs - provisions,10.00,0.00,10.00
Children and Young Peoples Services,Head of Childrens Social Care,085333,Coxhoe Satelite Home,Supplies and Services,384999,Miscellaneous Expenses,01-Sep-2021,000009727343881,MAKING FACES,7230,Other expenses,8.97,0.00,8.97
Children and Young Peoples Services,Head of Childrens Social Care,085333,Coxhoe Satelite Home,Supplies and Services,328041,Clothing uniforms and laundry E328,01-Sep-2021,000009727343883,NEW LOOK 1744,5621,Clothing uniforms and laundry,12.00,0.00,12.00
Children and Young Peoples Services,Head of Childrens Social Care,085333,Coxhoe Satelite Home,Supplies and Services,348037,Subsistence E348,01-Sep-2021,000009727343887,STARBUCKS,5814,Subsistence,6.02,0.00,6.02
Children and Young Peoples Services,Head of Education and Skills,075024,Durham Directions,Supplies and Services,364301,Grants to Voluntary Organisations,01-Sep-2021,000009731243859,SCREWFIX DIRECT,5211,Hardship,19.98,3.33,16.65
Children and Young Peoples Services,Head of Education and Skills,075024,Durham Directions,Supplies and Services,364301,Grants to Voluntary Organisations,01-Sep-2021,000009731243859 - 1,SCREWFIX DIRECT,5211,Hardship,42.99,,42.99
"Regeneration, Economy and Growth",Culture Sport and Tourism,054233,Bishop Auckland Town Hall Library,Employees,040149,Recruitment Instruction and Training,01-Sep-2021,000009731243953,PREMIER INN,3811,Training-all costs,85.00,0.00,85.00
Neighbourhoods and Climate Change,Environmental Services,010367,C&G - South Grounds Maintenance,Supplies and Services,304221,Equipment and Materials,01-Sep-2021,000009731244023,B & Q 1332,5200,Direct materials,54.10,0.00,54.10
Children and Young Peoples Services,Head of Education and Skills,071732,Dean Bank Childcare,Supplies and Services,324117,Provisions E324,01-Sep-2021,000009731244049,Wm Morrisons Store Pic,5411,Catering costs - provisions,50.30,0.00,50.30
Children and Young Peoples Services,Head of Childrens Social Care,085517,Supporting Solutions Service (Edge of Care),Supplies and Services,304083,Equipment and Materials,01-Sep-2021,000009731244079,ARGOS LTD,5310,Catering equipment,70.93,0.00,70.93
Children and Young Peoples Services,Head of Early Help Inclusion & Vulnerable Children.,085954,Walworth,Transfer Payments,515002,Social Services Clients,01-Sep-2021,000009731244121,JD SPORTS INTERNET,5941,Pocket money,46.99,0.00,46.99
Children and Young Peoples Services,Head of Early Help Inclusion & Vulnerable Children.,085965,Barnard,Transfer Payments,515002,Social Services Clients,01-Sep-2021,000009731244123,JD SPORTS INTERNET,5941,Pocket money,137.00,0.00,137.00
Children and Young Peoples Services,Head of Early Help Inclusion & Vulnerable Children.,085954,Walworth,Transfer Payments,515002,Social Services Clients,01-Sep-2021,000009731244129,JD SPORTS INTERNET,5941,Pocket money,-40.00,0.00,-40.00
Children and Young Peoples Services,Head of Childrens Social Care,085551,Short Break Services-Park Hse Sher,Supplies and Services,324117,Provisions E324,01-Sep-2021,000009731244205,ALDI 15 774,5411,Catering costs - provisions,11.96,0.00,11.96
Children and Young Peoples Services,Head of Early Help Inclusion & Vulnerable Children.,088103,Consett & Stanley 0-19 Community Family Hub,Supplies and Services,364301,Grants to Voluntary Organisations,01-Sep-2021,000009731244275,TU AT SAINSBURYS,5411,Hardship,64.95,0.00,64.95
Children and Young Peoples Services,Head of Childrens Social Care,085347,Solo Home The Manse,Supplies and Services,348037,Subsistence E348,01-Sep-2021,000009731244369,MCDONALDS,5812,Subsistence,20.62,0.00,20.62
Children and Young Peoples Services,Head of Childrens Social Care,085347,Solo Home The Manse,Supplies and Services,348037,Subsistence E348,01-Sep-2021,000009731244375,PACK HORSE (BURNOPFIEL,5813,Subsistence,34.53,0.00,34.53
Neighbourhoods and Climate Change,Community Protection,011293,Horden Making Every Adult Matter (MEAM),Supplies and Services,304221,Equipment and Materials,01-Sep-2021,000009731244389,B & Q 1343,5200,Direct materials,36.70,0.00,36.70
Neighbourhoods and Climate Change,Community Protection,011293,Horden Making Every Adult Matter (MEAM),Supplies and Services,308011,Furniture,01-Sep-2021,000009731244391,The Range,5719,Furniture repair and replacement,7.48,0.00,7.48
Children and Young Peoples Services,Head of Childrens Social Care,085333,Coxhoe Satelite Home,Supplies and Services,348037,Subsistence E348,01-Sep-2021,000009731244431,GREGGS,5812,Subsistence,1.60,0.00,1.60
Children and Young Peoples Services,Head of Childrens Social Care,085333,Coxhoe Satelite Home,Supplies and Services,328041,Clothing uniforms and laundry E328,01-Sep-2021,000009731244435,PRIMARK 670 GATESHEAD,5651,Clothing uniforms and laundry,5.80,0.00,5.80
Children and Young Peoples Services,Head of Childrens Social Care,085333,Coxhoe Satelite Home,Supplies and Services,328041,Clothing uniforms and laundry E328,01-Sep-2021,000009731244437,PRIMARK 670 GATESHEAD,5651,Clothing uniforms and laundry,2.90,0.00,2.90
Children and Young Peoples Services,Head of Childrens Social Care,085333,Coxhoe Satelite Home,Supplies and Services,328041,Clothing uniforms and laundry E328,01-Sep-2021,000009731244439,PRIMARK 670 GATESHEAD,5651,Clothing uniforms and laundry,35.00,0.00,35.00
Children and Young Peoples Services,Head of Early Help Inclusion & Vulnerable Children.,085962,Aycliffe Secure - Durham,Transfer Payments,515002,Social Services Clients,01-Sep-2021,000009736002131,NEW LOOK INTERNET,5621,Pocket money,24.99,0.00,24.99
"Regeneration, Economy and Growth",Business Durham CL0850,030689,Inward Investment and Aftercare,Supplies and Services,342033,Computers and Communications,02-Sep-2021,000009727339601,AdRoll_EMEA,7372,Computer hardware,40.03,0.00,40.03
"Regeneration, Economy and Growth",Business Durham CL0850,030689,Inward Investment and Aftercare,Supplies and Services,342033,Computers and Communications,02-Sep-2021,000009727339607,AdRoll_EMEA,7372,Computer hardware,1.10,0.00,1.10
"Regeneration, Economy and Growth",Culture Sport and Tourism,030712,VCD - Project Delivery,Supplies and Services,384199,Miscellaneous Expenses,02-Sep-2021,000009727340093,ALL ACCESS BUNDLE,7372,Other hired and contracted services,4.79,0.00,4.79
Children and Young Peoples Services,Head of Early Help Inclusion & Vulnerable Children.,085965,Barnard,Transfer Payments,515002,Social Services Clients,02-Sep-2021,000009727341673,Nike,5655,Pocket money,64.95,0.00,64.95
Children and Young Peoples Services,Head of Early Help Inclusion & Vulnerable Children.,085965,Barnard,Supplies and Services,304083,Equipment and Materials,02-Sep-2021,000009727341683,AMZNMktplace,5999,Catering equipment,22.99,3.83,19.16
Resources BK0010,Digital and Customer Services,065350,Project Management Office,Supplies and Services,342033,Computers and Communications,02-Sep-2021,000009727342917,BLS SHAREGATE188844431,7372,Computer hardware,107.95,0.00,107.95
"Regeneration, Economy and Growth",Business Durham CL0850,030689,Inward Investment and Aftercare,Supplies and Services,304403,Equipment and Materials,02-Sep-2021,000009731243825,ADOBE CREATIVE CLOUD,5734,Other consumables,49.94,0.00,49.94
"Regeneration, Economy and Growth",Business Durham CL0850,030689,Inward Investment and Aftercare,Supplies and Services,342222,Computers and Communications,02-Sep-2021,000009731243827,FASTHOSTS INTERNET,4816,Comp hardware purch-network servers,75.06,0.00,75.06
Children and Young Peoples Services,Head of Education and Skills,071801,Selby Cottage Childcare Centre,Supplies and Services,324117,Provisions E324,02-Sep-2021,000009731243833,JR HOLLAND FOODSERVICE,5499,Catering costs - provisions,161.35,0.00,161.35
Children and Young Peoples Services,Head of Education and Skills,071801,Selby Cottage Childcare Centre,Supplies and Services,324117,Provisions E324,02-Sep-2021,000009731243835,TESCO STORES 2278,5411,Catering costs - provisions,2.18,0.00,2.18
Children and Young Peoples Services,Head of Childrens Social Care,085501,Child Care Cases Legal Expenses,Supplies and Services,304403,Equipment and Materials,02-Sep-2021,000009731243851,SUNDERLAND CC,7523,Other consumables,11.00,0.00,11.00
Children and Young Peoples Services,Head of Childrens Social Care,085501,Child Care Cases Legal Expenses,Supplies and Services,304403,Equipment and Materials,02-Sep-2021,000009731243853,SUNDERLAND CC,7523,Other consumables,11.00,0.00,11.00
Children and Young Peoples Services,Head of Education and Skills,075021,DurhamWorks Progression and Learning,Supplies and Services,364301,Grants to Voluntary Organisations,02-Sep-2021,000009731243861,EDC-WG STUDENT SERVICE,8220,Hardship,52.80,0.00,52.80
Neighbourhoods and Climate Change,Environmental Services,010383,C&G - South Street Cleansing,Supplies and Services,304999,Equipment and Materials,02-Sep-2021,000009731243867,BLACK & DECKER,5251,Misc equipment tools and materials,278.50,0.00,278.50
"Regeneration, Economy and Growth",Culture Sport and Tourism,011265,Empire Theatre (Operations),Supplies and Services,304252,Equipment and Materials,02-Sep-2021,000009731243869,AMZNMktplace,5999,Equipment-repairsserviceinsurance,29.78,0.00,29.78
"Regeneration, Economy and Growth",Culture Sport and Tourism,030712,VCD - Project Delivery,Supplies and Services,384199,Miscellaneous Expenses,02-Sep-2021,000009731243871,MAILCHIMP MONTHLY,5968,Other hired and contracted services,205.49,0.00,205.49
Children and Young Peoples Services,Head of Childrens Social Care,085341,High Etherley Satelite Home,Supplies and Services,304999,Equipment and Materials,02-Sep-2021,000009731243925,WWW.INFINITEAIR.CO.UK,7991,Misc equipment tools and materials,13.95,0.00,13.95
Neighbourhoods and Climate Change,Environmental Services,010367,C&G - South Grounds Maintenance,Supplies and Services,304403,Equipment and Materials,02-Sep-2021,000009731243945,MAXWELLS DIY,5231,Other consumables,45.80,0.00,45.80
Children and Young Peoples Services,Head of Childrens Social Care,085331,New Lea Childrens Home,Supplies and Services,304999,Equipment and Materials,02-Sep-2021,000009731243949,HOME BARGAINS,5251,Misc equipment tools and materials,4.83,0.00,4.83
"Regeneration, Economy and Growth",Culture Sport and Tourism,054233,Bishop Auckland Town Hall Library,Supplies and Services,324117,Provisions E324,02-Sep-2021,000009731243955,WILKO RETAIL LIMITED,5399,Catering costs - provisions,15.00,0.00,15.00
"Regeneration, Economy and Growth",Culture Sport and Tourism,054233,Bishop Auckland Town Hall Library,Supplies and Services,324117,Provisions E324,02-Sep-2021,000009731243957,HERON FOODS,5411,Catering costs - provisions,10.39,0.00,10.39
Children and Young Peoples Services,Head of Early Help Inclusion & Vulnerable Children.,079599,Psychological-HQ,Supplies and Services,384999,Miscellaneous Expenses,02-Sep-2021,000009731243971,WWW.ACAMH.ORG,5965,Other expenses,30.00,0.00,30.00
Children and Young Peoples Services,Head of Early Help Inclusion & Vulnerable Children.,085956,Lumley,Supplies and Services,328041,Clothing uniforms and laundry E328,02-Sep-2021,000009731243973,Yours Clothing,5691,Clothing uniforms and laundry,20.97,0.00,20.97
Children and Young Peoples Services,Head of Early Help Inclusion & Vulnerable Children.,085952,Secure Education,Supplies and Services,304403,Equipment and Materials,02-Sep-2021,000009731243979,AMZNMktplace,5999,Other consumables,16.71,0.00,16.71
Children and Young Peoples Services,Head of Childrens Social Care,085361,LAC & Permanence Team 1,Supplies and Services,364340,Grants to Voluntary Organisations,02-Sep-2021,000009731243983,WWW.INFINITEAIR.CO.UK,7991,Contact expenses,15.90,0.00,15.90
Children and Young Peoples Services,Head of Education and Skills,071732,Dean Bank Childcare,Supplies and Services,324117,Provisions E324,02-Sep-2021,000009731244051,B&M 035 - SHILDON,5399,Catering costs - provisions,26.58,0.00,26.58
Neighbourhoods and Climate Change,Environmental Services,026591,C&G - Hardwick Park,Supplies and Services,304259,Equipment and Materials,02-Sep-2021,000009731244055,PESTFIX,5169,Equipment-purchase and rental,105.11,0.00,105.11
Children and Young Peoples Services,Head of Early Help Inclusion & Vulnerable Children.,085962,Aycliffe Secure - Durham,Supplies and Services,304403,Equipment and Materials,02-Sep-2021,000009731244067,AMZ The Game Collectio,5999,Other consumables,-24.95,0.00,-24.95
"Regeneration, Economy and Growth",Development and Housing,030771,Durham Advance Flexible Fund,Supplies and Services,384700,Miscellaneous Expenses,02-Sep-2021,000009731244089,GEN REGISTER OFFICE,9399,Miscellaneous grants,14.00,0.00,14.00
"Regeneration, Economy and Growth",Development and Housing,031623,Rough Sleeping,Supplies and Services,348037,Subsistence E348,02-Sep-2021,000009731244103,CROXDALE INN,5812,Subsistence,500.00,0.00,500.00
"Regeneration, Economy and Growth",Development and Housing,031623,Rough Sleeping,Supplies and Services,348037,Subsistence E348,02-Sep-2021,000009731244105,CROXDALE INN,5812,Subsistence,500.00,0.00,500.00
"Regeneration, Economy and Growth",Development and Housing,031623,Rough Sleeping,Supplies and Services,348037,Subsistence E348,02-Sep-2021,000009731244107,CROXDALE INN,5812,Subsistence,500.00,0.00,500.00
"Regeneration, Economy and Growth",Development and Housing,031623,Rough Sleeping,Supplies and Services,348037,Subsistence E348,02-Sep-2021,000009731244109,CROXDALE INN,5812,Subsistence,500.00,0.00,500.00
Children and Young Peoples Services,Head of Early Help Inclusion & Vulnerable Children.,085956,Lumley,Supplies and Services,384302,Miscellaneous Expenses,02-Sep-2021,000009731244125,AMZNMKTPLACE AMAZON.CO,5999,Activity expenses,51.06,8.51,42.55
Children and Young Peoples Services,Head of Early Help Inclusion & Vulnerable Children.,085956,Lumley,Supplies and Services,384302,Miscellaneous Expenses,02-Sep-2021,000009731244125 - 1,AMZNMKTPLACE AMAZON.CO,5999,Activity expenses,25.55,,25.55
Children and Young Peoples Services,Head of Early Help Inclusion & Vulnerable Children.,085956,Lumley,Supplies and Services,384302,Miscellaneous Expenses,02-Sep-2021,000009731244127,CURRYS ONLINE,5732,Activity expenses,39.99,0.00,39.99
Children and Young Peoples Services,Head of Childrens Social Care,085347,Solo Home The Manse,Supplies and Services,324117,Provisions E324,02-Sep-2021,000009731244155,LIDL GB CROOK,5411,Catering costs - provisions,26.38,0.00,26.38
Children and Young Peoples Services,Head of Education and Skills,075021,DurhamWorks Progression and Learning,Supplies and Services,364301,Grants to Voluntary Organisations,02-Sep-2021,000009731244157,WWW.GONORTHEAST.CO.UK,4111,Hardship,68.00,0.00,68.00
Children and Young Peoples Services,Head of Education and Skills,075021,DurhamWorks Progression and Learning,Supplies and Services,364301,Grants to Voluntary Organisations,02-Sep-2021,000009731244159,WWW.GONORTHEAST.CO.UK,4111,Hardship,75.00,0.00,75.00
Children and Young Peoples Services,Head of Education and Skills,075021,DurhamWorks Progression and Learning,Supplies and Services,364301,Grants to Voluntary Organisations,02-Sep-2021,000009731244161,INDUSTRIAL WORKWEAR,5651,Hardship,28.38,4.73,23.65
Children and Young Peoples Services,Head of Education and Skills,075021,DurhamWorks Progression and Learning,Supplies and Services,364301,Grants to Voluntary Organisations,02-Sep-2021,000009731244161 - 1,INDUSTRIAL WORKWEAR,5651,Hardship,34.96,,34.96
Children and Young Peoples Services,Head of Education and Skills,075021,DurhamWorks Progression and Learning,Supplies and Services,364301,Grants to Voluntary Organisations,02-Sep-2021,000009731244163,WWW.GONORTHEAST.CO.UK,4111,Hardship,75.00,0.00,75.00
Children and Young Peoples Services,Head of Education and Skills,075021,DurhamWorks Progression and Learning,Supplies and Services,364301,Grants to Voluntary Organisations,02-Sep-2021,000009731244165,SP FLORENCEROBY,5137,Hardship,54.50,9.08,45.42
Children and Young Peoples Services,Head of Education and Skills,075021,DurhamWorks Progression and Learning,Supplies and Services,364301,Grants to Voluntary Organisations,02-Sep-2021,000009731244167,AMZNMktplace,5999,Hardship,21.95,3.66,18.29
Children and Young Peoples Services,Head of Education and Skills,075021,DurhamWorks Progression and Learning,Supplies and Services,364301,Grants to Voluntary Organisations,02-Sep-2021,000009731244169,MOETTE LTD ONLINE,5085,Hardship,10.00,0.00,10.00
"Regeneration, Economy and Growth",Corporate Property and Land,021234,Catering - Locomotion,Supplies and Services,324117,Provisions E324,02-Sep-2021,000009731244175,ON A ROLL SANDWICH COM,5499,Catering costs - provisions,380.51,0.00,380.51
Children and Young Peoples Services,Head of Childrens Social Care,085331,New Lea Childrens Home,Supplies and Services,324117,Provisions E324,02-Sep-2021,000009731244177,ASDA SUPERSTORE,5411,Catering costs - provisions,29.50,0.00,29.50
Children and Young Peoples Services,Head of Childrens Social Care,085331,New Lea Childrens Home,Supplies and Services,324117,Provisions E324,02-Sep-2021,000009731244179,ASDA SUPERSTORE,5411,Catering costs - provisions,51.79,0.00,51.79
"Regeneration, Economy and Growth",Development and Housing,031576,B& B - Temp Accom,Supplies and Services,364320,Grants to Voluntary Organisations,02-Sep-2021,000009731244197,H52STANLEY,7011,Accommodation assistance,85.00,0.00,85.00
Children and Young Peoples Services,Head of Childrens Social Care,085551,Short Break Services-Park Hse Sher,Supplies and Services,324117,Provisions E324,02-Sep-2021,000009731244207,WWW.ICELAND.CO.UK,5411,Catering costs - provisions,128.89,0.00,128.89
Children and Young Peoples Services,Head of Childrens Social Care,085551,Short Break Services-Park Hse Sher,Supplies and Services,324117,Provisions E324,02-Sep-2021,000009731244209,WWW.ICELAND.CO.UK,5411,Catering costs - provisions,-7.65,0.00,-7.65
Children and Young Peoples Services,Head of Childrens Social Care,085341,High Etherley Satelite Home,Supplies and Services,328041,Clothing uniforms and laundry E328,02-Sep-2021,000009731244219,HOLMSIDE PARK,7996,Clothing uniforms and laundry,6.00,0.00,6.00
Children and Young Peoples Services,Head of Childrens Social Care,085341,High Etherley Satelite Home,Supplies and Services,328041,Clothing uniforms and laundry E328,02-Sep-2021,000009731244221,HOLMSIDE PARK,7996,Clothing uniforms and laundry,6.00,0.00,6.00
Children and Young Peoples Services,Head of Education and Skills,071802,Louisa Cent Nursery,Supplies and Services,324117,Provisions E324,02-Sep-2021,000009731244241,ASDA SUPERSTORE,5411,Catering costs - provisions,27.19,0.00,27.19
Children and Young Peoples Services,Head of Childrens Social Care,085333,Coxhoe Satelite Home,Supplies and Services,324117,Provisions E324,02-Sep-2021,000009731244243,TESCO STORES 2371,5411,Catering costs - provisions,26.00,0.00,26.00
Children and Young Peoples Services,Head of Childrens Social Care,085333,Coxhoe Satelite Home,Supplies and Services,324117,Provisions E324,02-Sep-2021,000009731244245,TESCO STORES 2371,5411,Catering costs - provisions,124.38,0.00,124.38
Children and Young Peoples Services,Head of Childrens Social Care,085351,Framwellgate Moor CU,Supplies and Services,348037,Subsistence E348,02-Sep-2021,000009731244249,BLUE MARLIN,5814,Subsistence,29.90,0.00,29.90
Children and Young Peoples Services,Head of Childrens Social Care,085351,Framwellgate Moor CU,Supplies and Services,328041,Clothing uniforms and laundry E328,02-Sep-2021,000009731244251,DISCOUNT EQUESTRIAN,5655,Clothing uniforms and laundry,58.98,0.00,58.98
Children and Young Peoples Services,Head of Childrens Social Care,085351,Framwellgate Moor CU,Supplies and Services,304999,Equipment and Materials,02-Sep-2021,000009731244253,QUASAR SOUTH SHIELDS,7994,Misc equipment tools and materials,32.00,0.00,32.00
Children and Young Peoples Services,Head of Childrens Social Care,085351,Framwellgate Moor CU,Supplies and Services,384237,Miscellaneous Expenses,02-Sep-2021,000009731244255,THE DUNES,7999,Recreational exps outings parties,12.20,0.00,12.20
Children and Young Peoples Services,Head of Childrens Social Care,085351,Framwellgate Moor CU,Supplies and Services,324117,Provisions E324,02-Sep-2021,000009731244257,MARKS&SPENCER PLC,5411,Catering costs - provisions,17.50,0.00,17.50
Children and Young Peoples Services,Head of Childrens Social Care,085334,West Rainton Satelite Home,Supplies and Services,304999,Equipment and Materials,02-Sep-2021,000009731244269,HOME BARGAINS,5251,Misc equipment tools and materials,6.17,0.00,6.17
Children and Young Peoples Services,Head of Childrens Social Care,085334,West Rainton Satelite Home,Supplies and Services,304999,Equipment and Materials,02-Sep-2021,000009731244273,HOME BARGAINS,5251,Misc equipment tools and materials,11.96,0.00,11.96
Children and Young Peoples Services,Head of Early Help Inclusion & Vulnerable Children.,088102,Consett & Stanley 0-19 Targeted Family Support,Supplies and Services,340001,Postages E340,02-Sep-2021,000009731244279,POST OFFICE COUNTER,9402,Postages,0.85,0.00,0.85
Children and Young Peoples Services,Head of Early Help Inclusion & Vulnerable Children.,071415,Wheatley Hill Childrens Centre,Supplies and Services,304259,Equipment and Materials,02-Sep-2021,000009731244303,ASDA GROCERIES ONLINE,5411,Equipment-purchase and rental,65.53,0.00,65.53
Children and Young Peoples Services,Head of Early Help Inclusion & Vulnerable Children.,071415,Wheatley Hill Childrens Centre,Supplies and Services,304259,Equipment and Materials,02-Sep-2021,000009731244305,ASDA GROCERIES ONLINE,5411,Equipment-purchase and rental,-5.90,0.00,-5.90
Children and Young Peoples Services,Head of Early Help Inclusion & Vulnerable Children.,085801,CDYJS - Support,Third Party Payments,430100,Rendered by Private Contractors,02-Sep-2021,000009731244315,VOUCHER EXPRESS,7399,Payments to sub-contractors,100.00,0.00,100.00
Children and Young Peoples Services,Head of Early Help Inclusion & Vulnerable Children.,085801,CDYJS - Support,Supplies and Services,324117,Provisions E324,02-Sep-2021,000009731244317,TESCO GIFT CARD,5411,Catering costs - provisions,150.00,0.00,150.00
Children and Young Peoples Services,Head of Childrens Social Care,085332,Middlestone Moor CU,Supplies and Services,304403,Equipment and Materials,02-Sep-2021,000009731244333,AMZNMKTPLACE AMAZON.CO,5999,Other consumables,82.88,0.00,82.88
Children and Young Peoples Services,Head of Childrens Social Care,085380,Operations Manager LAC Resources,Supplies and Services,304999,Equipment and Materials,02-Sep-2021,000009731244357,WALBY FARM PARK,7991,Misc equipment tools and materials,203.30,0.00,203.30
Children and Young Peoples Services,Head of Childrens Social Care,085347,Solo Home The Manse,Supplies and Services,328041,Clothing uniforms and laundry E328,02-Sep-2021,000009731244371,SAFARI ZOO,7996,Clothing uniforms and laundry,5.40,0.00,5.40
Children and Young Peoples Services,Head of Childrens Social Care,085347,Solo Home The Manse,Supplies and Services,328041,Clothing uniforms and laundry E328,02-Sep-2021,000009731244373,SAFARI ZOO,7996,Clothing uniforms and laundry,5.30,0.00,5.30
Adult and Health Services,Head of Adults,055310,Positive Journeys (Tudhoe),Supplies and Services,324117,Provisions E324,02-Sep-2021,000009731244379,KEN WARNE LTD (O5),5411,Catering costs - provisions,0.95,0.00,0.95
Adult and Health Services,Head of Adults,055310,Positive Journeys (Tudhoe),Supplies and Services,324117,Provisions E324,02-Sep-2021,000009731244381,ASDA SUPERSTORE 4987,5411,Catering costs - provisions,1.19,0.00,1.19
Adult and Health Services,Head of Adults,055309,Peterlee Pathways,Supplies and Services,304403,Equipment and Materials,02-Sep-2021,000009731244405,AMZNMktplace,5999,Other consumables,8.57,1.43,7.14
Neighbourhoods and Climate Change,Partnerships & Community Engagement Div.,060472,Syrian Vulnerable Persons Scheme,Supplies and Services,308011,Furniture,02-Sep-2021,000009731244427,ASDA GEORGE COM LEEDS,5411,Furniture repair and replacement,118.58,0.00,118.58
"Regeneration, Economy and Growth",Culture Sport and Tourism,011265,Empire Theatre (Operations),Supplies and Services,304252,Equipment and Materials,02-Sep-2021,000009736001515,AMZNMKTPLACE AMAZON.CO,5999,Equipment-repairsserviceinsurance,-29.78,-4.96,-24.82
Neighbourhoods and Climate Change,Environmental Services,010367,C&G - South Grounds Maintenance,Supplies and Services,304221,Equipment and Materials,02-Sep-2021,000009736001703,SCREWFIX DIRECT,5211,Direct materials,23.88,0.00,23.88
Children and Young Peoples Services,Head of Early Help Inclusion & Vulnerable Children.,085965,Barnard,Supplies and Services,384302,Miscellaneous Expenses,02-Sep-2021,000009736002123,AMZNMKTPLACE AMAZON.CO,5999,Activity expenses,35.04,5.84,29.20
Children and Young Peoples Services,Head of Early Help Inclusion & Vulnerable Children.,085965,Barnard,Supplies and Services,384302,Miscellaneous Expenses,02-Sep-2021,000009736002123 - 1,AMZNMKTPLACE AMAZON.CO,5999,Activity expenses,11.47,,11.47
Children and Young Peoples Services,Head of Early Help Inclusion & Vulnerable Children.,085965,Barnard,Supplies and Services,384302,Miscellaneous Expenses,02-Sep-2021,000009736002125,AMZNMKTPLACE AMAZON.CO,5999,Activity expenses,29.99,5.00,24.99
Neighbourhoods and Climate Change,Environmental Services,011060,C&G - Hardwick Park Catering,Supplies and Services,324117,Provisions E324,02-Sep-2021,000009736002143,BATLEYS PERTH,5300,Catering costs - provisions,115.86,19.31,96.55
Neighbourhoods and Climate Change,Environmental Services,011060,C&G - Hardwick Park Catering,Supplies and Services,324117,Provisions E324,02-Sep-2021,000009736002143 - 1,BATLEYS PERTH,5300,Catering costs - provisions,21.08,,21.08
Children and Young Peoples Services,Head of Education and Skills,075031,Woodlands - Transition Support,Supplies and Services,364301,Grants to Voluntary Organisations,02-Sep-2021,000009736002173,SCREWFIX DIRECT,5211,Hardship,39.96,6.66,33.30
Children and Young Peoples Services,Head of Education and Skills,075031,Woodlands - Transition Support,Supplies and Services,364301,Grants to Voluntary Organisations,02-Sep-2021,000009736002173 - 1,SCREWFIX DIRECT,5211,Hardship,39.99,,39.99
"Regeneration, Economy and Growth",Corporate Property and Land,021234,Catering - Locomotion,Supplies and Services,324117,Provisions E324,02-Sep-2021,000009736002211,BATLEYS PERTH,5300,Catering costs - provisions,-5.30,-0.88,-4.42
Children and Young Peoples Services,Head of Childrens Social Care,085333,Coxhoe Satelite Home,Supplies and Services,348037,Subsistence E348,02-Sep-2021,000009736002469,WWW.TAKEAWAY.JE,5812,Subsistence,17.80,0.00,17.80
Children and Young Peoples Services,Head of Early Help Inclusion & Vulnerable Children.,088100,Durham West & CLS 0-19 Targeted Family Support,Supplies and Services,364301,Grants to Voluntary Organisations,02-Sep-2021,000009736002499,WWW.THERANGE.CO.UK,5712,Hardship,148.88,0.00,148.88
Children and Young Peoples Services,Head of Childrens Social Care,085371,Young Peoples Service Team 1,Supplies and Services,364354,Grants to Voluntary Organisations,02-Sep-2021,000009736002559,ARGOS LTD,5310,Supervised Spend - Setting Up Home Allowance,-10.00,0.00,-10.00
Children and Young Peoples Services,Head of Childrens Social Care,085347,Solo Home The Manse,Supplies and Services,324117,Provisions E324,02-Sep-2021,000009736002767,CO-OP GROUP 700994,5411,Catering costs - provisions,1.00,0.00,1.00
Children and Young Peoples Services,Head of Childrens Social Care,085347,Solo Home The Manse,Supplies and Services,324117,Provisions E324,02-Sep-2021,000009736002771,WM MORRISONS STORE,5411,Catering costs - provisions,10.25,0.00,10.25
Children and Young Peoples Services,Head of Childrens Social Care,085347,Solo Home The Manse,Supplies and Services,348037,Subsistence E348,02-Sep-2021,000009736002773,MCDONALDS,5812,Subsistence,10.60,0.00,10.60
Children and Young Peoples Services,Head of Childrens Social Care,085347,Solo Home The Manse,Supplies and Services,348037,Subsistence E348,02-Sep-2021,000009736002781,GRETNA GREEN HOTEL,5813,Subsistence,18.33,0.00,18.33
Children and Young Peoples Services,Head of Childrens Social Care,085347,Solo Home The Manse,Supplies and Services,348037,Subsistence E348,02-Sep-2021,000009736002787,GRETNA GREEN HOTEL,5813,Subsistence,3.59,0.00,3.59
Neighbourhoods and Climate Change,Community Protection,011293,Horden Making Every Adult Matter (MEAM),Supplies and Services,304221,Equipment and Materials,02-Sep-2021,000009736002839,B & Q 1203,5200,Direct materials,45.31,0.00,45.31
"Regeneration, Economy and Growth",Corporate Property and Land,021235,Catering - Wharton Park,Supplies and Services,324117,Provisions E324,02-Sep-2021,000009736002851,BATLEYS PERTH,5300,Catering costs - provisions,63.78,10.63,53.15
"Regeneration, Economy and Growth",Corporate Property and Land,021235,Catering - Wharton Park,Supplies and Services,324117,Provisions E324,02-Sep-2021,000009736002851 - 1,BATLEYS PERTH,5300,Catering costs - provisions,6.83,,6.83
"Regeneration, Economy and Growth",Corporate Property and Land,021235,Catering - Wharton Park,Supplies and Services,324117,Provisions E324,02-Sep-2021,000009736002853,BATLEYS PERTH,5300,Catering costs - provisions,-1.38,0.00,-1.38
Children and Young Peoples Services,Head of Childrens Social Care,085551,Short Break Services-Park Hse Sher,Supplies and Services,328041,Clothing uniforms and laundry E328,02-Sep-2021,000009736002893,ARGOS LTD,5310,Clothing uniforms and laundry,199.99,0.00,199.99
Children and Young Peoples Services,Head of Early Help Inclusion & Vulnerable Children.,085956,Lumley,Supplies and Services,384999,Miscellaneous Expenses,03-Sep-2021,000009731243981,Amazon.co.uk 348IN4TX5,5969,Other expenses,4.99,0.83,4.16
"Regeneration, Economy and Growth",Culture Sport and Tourism,054813,Gala Theatre - Technical,Supplies and Services,304259,Equipment and Materials,03-Sep-2021,000009731244053,Soundtrack Your Brand,5815,Equipment-purchase and rental,291.48,0.00,291.48
Children and Young Peoples Services,Head of Childrens Social Care,085352,New Childrens Home (previously Tow Law),Supplies and Services,304403,Equipment and Materials,03-Sep-2021,000009731244211,AMZNMktplace,5999,Other consumables,16.90,0.00,16.90
Children and Young Peoples Services,Head of Education and Skills,071801,Selby Cottage Childcare Centre,Supplies and Services,304999,Equipment and Materials,03-Sep-2021,000009736001399,APPLE.COM/BILL,5815,Misc equipment tools and materials,9.99,0.00,9.99
Children and Young Peoples Services,Head of Education and Skills,071801,Selby Cottage Childcare Centre,Supplies and Services,304403,Equipment and Materials,03-Sep-2021,000009736001401,AMZNMktplace,5999,Other consumables,8.40,1.41,6.99
"Regeneration, Economy and Growth",Culture Sport and Tourism,054731,Killhope Lead Mining Centre,Supplies and Services,384999,Miscellaneous Expenses,03-Sep-2021,000009736001465,Amazon.co.uk XD0QN5HN5,5969,Other expenses,10.89,1.82,9.07
Children and Young Peoples Services,Head of Childrens Social Care,085501,Child Care Cases Legal Expenses,Supplies and Services,304403,Equipment and Materials,03-Sep-2021,000009736001473,WWW.COVENTRY.GOV.UK,7999,Other consumables,11.00,0.00,11.00
Children and Young Peoples Services,Head of Childrens Social Care,085501,Child Care Cases Legal Expenses,Supplies and Services,304403,Equipment and Materials,03-Sep-2021,000009736001479,WWW.COVENTRY.GOV.UK,7999,Other consumables,11.00,0.00,11.00
Children and Young Peoples Services,Head of Education and Skills,075021,DurhamWorks Progression and Learning,Supplies and Services,364301,Grants to Voluntary Organisations,03-Sep-2021,000009736001481,WWW.GONORTHEAST.CO.UK,4111,Hardship,4.50,0.00,4.50
Children and Young Peoples Services,Head of Education and Skills,075021,DurhamWorks Progression and Learning,Supplies and Services,364301,Grants to Voluntary Organisations,03-Sep-2021,000009736001485,WWW.GONORTHEAST.CO.UK,4111,Hardship,20.00,0.00,20.00
Children and Young Peoples Services,Head of Education and Skills,075021,DurhamWorks Progression and Learning,Supplies and Services,364301,Grants to Voluntary Organisations,03-Sep-2021,000009736001489,SumUp Bella Marie,8299,Hardship,270.00,45.00,225.00
Children and Young Peoples Services,Head of Education and Skills,075021,DurhamWorks Progression and Learning,Supplies and Services,364301,Grants to Voluntary Organisations,03-Sep-2021,000009736001491,WWW.LABEEBY.CO.UK,5691,Hardship,67.99,11.33,56.66
Children and Young Peoples Services,Head of Education and Skills,075021,DurhamWorks Progression and Learning,Supplies and Services,364301,Grants to Voluntary Organisations,03-Sep-2021,000009736001495,DVLA DRIVER ONLINE,9399,Hardship,34.00,0.00,34.00
Children and Young Peoples Services,Head of Education and Skills,075021,DurhamWorks Progression and Learning,Supplies and Services,364301,Grants to Voluntary Organisations,03-Sep-2021,000009736001497,WWW.DURHAM.GOV.UK,9399,Hardship,11.00,0.00,11.00
"Regeneration, Economy and Growth",Culture Sport and Tourism,030705,Visit County Durham 030705,Supplies and Services,342033,Computers and Communications,03-Sep-2021,000009736001519,FASTHOSTS INTERNET,4816,Computer hardware,7.54,1.26,6.28
Children and Young Peoples Services,Head of Childrens Social Care,085342,16 Hickstead Rise (previously 9 Cedar Ave),Supplies and Services,328041,Clothing uniforms and laundry E328,03-Sep-2021,000009736001549,POUNDLAND LTD 1554,5310,Clothing uniforms and laundry,4.00,0.00,4.00
Children and Young Peoples Services,Head of Childrens Social Care,085342,16 Hickstead Rise (previously 9 Cedar Ave),Supplies and Services,348037,Subsistence E348,03-Sep-2021,000009736001551,MCDONALD`S,5812,Subsistence,9.80,0.00,9.80
Dedicated Schools Grant BG0015,DSG High Needs Block,079050,SENSS-Sensory,Supplies and Services,384999,Miscellaneous Expenses,03-Sep-2021,000009736001565,Amazon.co.uk DF8RK9XX5,5969,Other expenses,29.61,0.00,29.61
Children and Young Peoples Services,Head of Education and Skills,078100,Curric and Professional Development 078100,Supplies and Services,304403,Equipment and Materials,03-Sep-2021,000009736001589,ADOBE STOCK,5734,Other consumables,23.99,0.00,23.99
Children and Young Peoples Services,Head of Childrens Social Care,085341,High Etherley Satelite Home,Supplies and Services,304221,Equipment and Materials,03-Sep-2021,000009736001593,SCREWFIX DIRECT,5211,Direct materials,77.93,0.00,77.93
Adult and Health Services,Head of Adults,055302,Durham Pathways,Supplies and Services,324117,Provisions E324,03-Sep-2021,000009736001595,ASDA STORES LTD 4313,5411,Catering costs - provisions,29.00,0.00,29.00
Children and Young Peoples Services,Head of Childrens Social Care,085341,High Etherley Satelite Home,Supplies and Services,324117,Provisions E324,03-Sep-2021,000009736001621,TESCO STORES 2371,5411,Catering costs - provisions,43.99,0.00,43.99
"Regeneration, Economy and Growth",Development and Housing,030776,LINKCD Flexible Fund,Transport,235057,Public Transport,03-Sep-2021,000009736001717,WWW.GONORTHEAST.CO.UK,4111,Staff travelling,25.00,0.00,25.00
Children and Young Peoples Services,Head of Childrens Social Care,085332,Middlestone Moor CU,Supplies and Services,324117,Provisions E324,03-Sep-2021,000009736001743,MOCHA,5812,Catering costs - provisions,5.00,0.00,5.00
Children and Young Peoples Services,Head of Early Help Inclusion & Vulnerable Children.,085965,Barnard,Supplies and Services,328041,Clothing uniforms and laundry E328,03-Sep-2021,000009736001799,Mainline Menswear Ltd,5611,Clothing uniforms and laundry,120.00,0.00,120.00
Children and Young Peoples Services,Head of Early Help Inclusion & Vulnerable Children.,085965,Barnard,Supplies and Services,304403,Equipment and Materials,03-Sep-2021,000009736001801,AMZNMKTPLACE AMAZON.CO,5999,Other consumables,10.77,1.80,8.97
Children and Young Peoples Services,Head of Early Help Inclusion & Vulnerable Children.,085952,Secure Education,Supplies and Services,304403,Equipment and Materials,03-Sep-2021,000009736001805,AMZNMktplace,5999,Other consumables,12.00,2.00,10.00
Children and Young Peoples Services,Head of Early Help Inclusion & Vulnerable Children.,085952,Secure Education,Supplies and Services,304403,Equipment and Materials,03-Sep-2021,000009736001807,AMZNMktplace,5999,Other consumables,97.99,16.33,81.66
Children and Young Peoples Services,Head of Early Help Inclusion & Vulnerable Children.,085965,Barnard,Supplies and Services,324117,Provisions E324,03-Sep-2021,000009736001811,TESCO STORES 6329,5411,Catering costs - provisions,98.99,0.00,98.99
Children and Young Peoples Services,Head of Early Help Inclusion & Vulnerable Children.,085965,Barnard,Supplies and Services,304403,Equipment and Materials,03-Sep-2021,000009736001815,AMZNMKTPLACE AMAZON.CO,5999,Other consumables,104.93,17.50,87.43
Resources BK0010,Procurement Sales & Business Services,065504,Business Support - Meadowfield,Supplies and Services,304403,Equipment and Materials,03-Sep-2021,000009736002089,AMZNMKTPLACE AMAZON.CO,5999,Other consumables,"1,774.50",296.00,1478.50
"Regeneration, Economy and Growth",Development and Housing,030771,Durham Advance Flexible Fund,Supplies and Services,304259,Equipment and Materials,03-Sep-2021,000009736002101,PAYPAL EBAY UK,5311,Equipment-purchase and rental,249.99,0.00,249.99
"Regeneration, Economy and Growth",Development and Housing,030771,Durham Advance Flexible Fund,Transport,235057,Public Transport,03-Sep-2021,000009736002113,WWW.GONORTHEAST.CO.UK,4111,Staff travelling,34.00,0.00,34.00
Neighbourhoods and Climate Change,Environmental Services,010367,C&G - South Grounds Maintenance,Supplies and Services,304403,Equipment and Materials,03-Sep-2021,000009736002139,MAXWELLS DIY,5231,Other consumables,68.50,0.00,68.50
Neighbourhoods and Climate Change,Environmental Services,011060,C&G - Hardwick Park Catering,Supplies and Services,324117,Provisions E324,03-Sep-2021,000009736002145,FREEMAN CATERING BUTCH,5422,Catering costs - provisions,89.09,0.00,89.09
Resources BK0010,People & Talent Management,010984,Training and Development,Employees,040149,Recruitment Instruction and Training,03-Sep-2021,000009736002185,PAYPAL NPORS LTD,8699,Training-all costs,24.00,4.00,20.00
Resources BK0010,People & Talent Management,010984,Training and Development,Employees,040149,Recruitment Instruction and Training,03-Sep-2021,000009736002187,PAYPAL NPORS LTD,8699,Training-all costs,72.00,12.00,60.00
Neighbourhoods and Climate Change,Environmental Services,031238,North Pennines - Tees Swale,Employees,040149,Recruitment Instruction and Training,03-Sep-2021,000009736002193,BRISTOL NHC,8699,Training-all costs,30.00,0.00,30.00
"Regeneration, Economy and Growth",Corporate Property and Land,021234,Catering - Locomotion,Supplies and Services,324117,Provisions E324,03-Sep-2021,000009736002203,FREEMAN CATERING BUTCH,5422,Catering costs - provisions,33.66,0.00,33.66
"Regeneration, Economy and Growth",Corporate Property and Land,021234,Catering - Locomotion,Supplies and Services,324117,Provisions E324,03-Sep-2021,000009736002207,FREEMAN CATERING BUTCH,5422,Catering costs - provisions,42.65,0.00,42.65
Children and Young Peoples Services,Head of Childrens Social Care,085331,New Lea Childrens Home,Supplies and Services,324117,Provisions E324,03-Sep-2021,000009736002241,TESCO STORES 4358,5411,Catering costs - provisions,65.61,0.00,65.61
"Regeneration, Economy and Growth",Development and Housing,031576,B& B - Temp Accom,Supplies and Services,364320,Grants to Voluntary Organisations,03-Sep-2021,000009736002285,TOAST LETTINGS,7011,Accommodation assistance,255.00,0.00,255.00
"Regeneration, Economy and Growth",Development and Housing,031578,Client Travel Reimbursements,Transport,235073,Public Transport,03-Sep-2021,000009736002287,BLUELINE TAXIS,4121,Travel-clients/students/children,26.00,0.00,26.00
Neighbourhoods and Climate Change,Environmental Services,010367,C&G - South Grounds Maintenance,Supplies and Services,304999,Equipment and Materials,03-Sep-2021,000009736002433,Snowballs,5251,Misc equipment tools and materials,28.57,0.00,28.57
Adult and Health Services,Head of Adults,055643,Hawthorn House LD Respite Unit,Supplies and Services,324117,Provisions E324,03-Sep-2021,000009736002463,SAINSBURYS S/MKTS,5411,Catering costs - provisions,8.75,0.00,8.75
Children and Young Peoples Services,Head of Childrens Social Care,085333,Coxhoe Satelite Home,Supplies and Services,304403,Equipment and Materials,03-Sep-2021,000009736002471,AMZNMktplace,5999,Other consumables,9.15,1.53,7.62
Children and Young Peoples Services,Head of Childrens Social Care,085333,Coxhoe Satelite Home,Supplies and Services,332047,Printing Stationery and Gen Off Exps,03-Sep-2021,000009736002473,ODEON CINEMAS,7832,Stationery,22.00,0.00,22.00
"Regeneration, Economy and Growth",Corporate Property and Land,030691,Catering - Durham Dales Centre,Supplies and Services,324117,Provisions E324,03-Sep-2021,000009736002497,FREEMAN CATERING BUTCH,5422,Catering costs - provisions,71.18,0.00,71.18
Children and Young Peoples Services,Head of Childrens Social Care,085633,Families First Chester-Le-Street,Supplies and Services,364340,Grants to Voluntary Organisations,03-Sep-2021,000009736002501,WWW.GONORTHEAST.CO.UK,4111,Contact expenses,25.00,0.00,25.00
Children and Young Peoples Services,Head of Childrens Social Care,085633,Families First Chester-Le-Street,Supplies and Services,364340,Grants to Voluntary Organisations,03-Sep-2021,000009736002503,WWW.GONORTHEAST.CO.UK,4111,Contact expenses,5.30,0.00,5.30
Children and Young Peoples Services,Head of Childrens Social Care,085633,Families First Chester-Le-Street,Supplies and Services,364340,Grants to Voluntary Organisations,03-Sep-2021,000009736002505,WWW.GONORTHEAST.CO.UK,4111,Contact expenses,5.30,0.00,5.30
Children and Young Peoples Services,Head of Childrens Social Care,085633,Families First Chester-Le-Street,Supplies and Services,364340,Grants to Voluntary Organisations,03-Sep-2021,000009736002507,WWW.GONORTHEAST.CO.UK,4111,Contact expenses,5.30,0.00,5.30
Children and Young Peoples Services,Head of Childrens Social Care,085633,Families First Chester-Le-Street,Supplies and Services,364340,Grants to Voluntary Organisations,03-Sep-2021,000009736002509,WWW.GONORTHEAST.CO.UK,4111,Contact expenses,5.30,0.00,5.30
Children and Young Peoples Services,Head of Early Help Inclusion & Vulnerable Children.,088100,Durham West & CLS 0-19 Targeted Family Support,Supplies and Services,364301,Grants to Voluntary Organisations,03-Sep-2021,000009736002511,TU AT SAINSBURYS,5411,Hardship,29.45,0.00,29.45
Adult and Health Services,Head of Adults,055643,Hawthorn House LD Respite Unit,Supplies and Services,324117,Provisions E324,03-Sep-2021,000009736002513,FREEMAN CATERING BUTCH,5422,Catering costs - provisions,37.09,0.00,37.09
Resources BK0010,Digital and Customer Services,065335,School Services - Implementations,Supplies and Services,304639,Equipment and Materials,03-Sep-2021,000009736002523,LAMBDATEK,5732,Technicians-supplies,21.06,0.00,21.06
Resources BK0010,Digital and Customer Services,065335,School Services - Implementations,Supplies and Services,304259,Equipment and Materials,03-Sep-2021,000009736002525,REPLACEBASE,5732,Equipment-purchase and rental,105.90,0.00,105.90
Dedicated Schools Grant BG0015,DSG High Needs Block,079071,Equalities,Supplies and Services,342222,Computers and Communications,03-Sep-2021,000009736002557,PARTICIPANT UK LTD,4816,Comp hardware purch-network servers,174.00,0.00,174.00
Children and Young Peoples Services,Head of Childrens Social Care,085625,Families First Spennymoor,Supplies and Services,364353,Grants to Voluntary Organisations,03-Sep-2021,000009736002561,ARGOS LTD,5310,Leaving care-other,99.00,0.00,99.00
Children and Young Peoples Services,Head of Childrens Social Care,085378,Young Persons Service Team 3,Supplies and Services,338045,Services,03-Sep-2021,000009736002563,Durham County CNCL,9399,Legal expenses 338045,22.00,0.00,22.00
Children and Young Peoples Services,Head of Childrens Social Care,085333,Coxhoe Satelite Home,Supplies and Services,324117,Provisions E324,03-Sep-2021,000009736002643,ASDA SUPERSTORE 4987,5411,Catering costs - provisions,60.07,0.00,60.07
Children and Young Peoples Services,Head of Early Help Inclusion & Vulnerable Children.,088107,Ferryhill & Newton Aycliffe 0-19 Community Family Hub,Supplies and Services,304403,Equipment and Materials,03-Sep-2021,000009736002685,AMZNMktplace,5999,Other consumables,6.99,1.17,5.82
Children and Young Peoples Services,Head of Childrens Social Care,085347,Solo Home The Manse,Supplies and Services,348037,Subsistence E348,03-Sep-2021,000009736002777,SumUp Rostich Leisur,5813,Subsistence,11.40,0.00,11.40
Children and Young Peoples Services,Head of Childrens Social Care,085347,Solo Home The Manse,Supplies and Services,324117,Provisions E324,03-Sep-2021,000009736002791,TESCO STORES 4358,5411,Catering costs - provisions,51.07,0.00,51.07
Adult and Health Services,Head of Adults,055310,Positive Journeys (Tudhoe),Supplies and Services,324117,Provisions E324,03-Sep-2021,000009736002811,ASDA SUPERSTORE 4987,5411,Catering costs - provisions,4.94,0.00,4.94
Children and Young Peoples Services,Head of Childrens Social Care,085334,West Rainton Satelite Home,Supplies and Services,304403,Equipment and Materials,03-Sep-2021,000009736002867,AMZNMktplace,5999,Other consumables,36.74,0.00,36.74
Children and Young Peoples Services,Head of Childrens Social Care,085334,West Rainton Satelite Home,Supplies and Services,324117,Provisions E324,03-Sep-2021,000009736002869,SAINSBURYS LOCAL,5411,Catering costs - provisions,25.29,0.00,25.29
Adult and Health Services,Head of Adults,055309,Peterlee Pathways,Supplies and Services,328041,Clothing uniforms and laundry E328,03-Sep-2021,000009736002875,POUNDSTRETCHER 396,5331,Clothing uniforms and laundry,7.16,0.00,7.16
Neighbourhoods and Climate Change,Environmental Services,011060,C&G - Hardwick Park Catering,Supplies and Services,324117,Provisions E324,03-Sep-2021,000009741002677,BATLEYS PERTH,5300,Catering costs - provisions,32.28,5.38,26.90
Neighbourhoods and Climate Change,Environmental Services,011060,C&G - Hardwick Park Catering,Supplies and Services,324117,Provisions E324,03-Sep-2021,000009741002677 - 1,BATLEYS PERTH,5300,Catering costs - provisions,87.68,,87.68
Adult and Health Services,Head of Adults,055643,Hawthorn House LD Respite Unit,Supplies and Services,324117,Provisions E324,03-Sep-2021,000009741003015,BATLEYS PERTH,5300,Catering costs - provisions,39.54,6.59,32.95
Adult and Health Services,Head of Adults,055643,Hawthorn House LD Respite Unit,Supplies and Services,324117,Provisions E324,03-Sep-2021,000009741003015 - 1,BATLEYS PERTH,5300,Catering costs - provisions,98.70,,98.70
"Regeneration, Economy and Growth",Business Durham CL0850,030689,Inward Investment and Aftercare,Supplies and Services,336005,Advertising E336,04-Sep-2021,000009736001375,GOOGLE ADS6853017821,7311,Advertising other than for staff,135.50,0.00,135.50
"Regeneration, Economy and Growth",Business Durham CL0850,030689,Inward Investment and Aftercare,Supplies and Services,342222,Computers and Communications,04-Sep-2021,000009736001377,FASTHOSTS INTERNET,4816,Comp hardware purch-network servers,7.54,0.00,7.54
Children and Young Peoples Services,Head of Childrens Social Care,085342,16 Hickstead Rise (previously 9 Cedar Ave),Supplies and Services,324117,Provisions E324,04-Sep-2021,000009736001553,STARBUCKS BISHOP AUCKL,5499,Catering costs - provisions,8.60,0.00,8.60
Children and Young Peoples Services,Head of Childrens Social Care,085342,16 Hickstead Rise (previously 9 Cedar Ave),Supplies and Services,304221,Equipment and Materials,04-Sep-2021,000009736001557,WEAR VALLEY DECORATING,5198,Direct materials,40.47,0.00,40.47
Children and Young Peoples Services,Head of Childrens Social Care,085341,High Etherley Satelite Home,Supplies and Services,348037,Subsistence E348,04-Sep-2021,000009736001625,COSTA @ NEXT 43044010,5814,Subsistence,14.20,0.00,14.20
"Regeneration, Economy and Growth",Culture Sport and Tourism,054233,Bishop Auckland Town Hall Library,Supplies and Services,324117,Provisions E324,04-Sep-2021,000009736001733,WM MORRISONS STORE,5411,Catering costs - provisions,17.15,0.00,17.15
"Regeneration, Economy and Growth",Culture Sport and Tourism,054233,Bishop Auckland Town Hall Library,Supplies and Services,324117,Provisions E324,04-Sep-2021,000009736001737,HERON FOODS,5411,Catering costs - provisions,5.98,0.00,5.98
"Regeneration, Economy and Growth",Development and Housing,031576,B& B - Temp Accom,Supplies and Services,364320,Grants to Voluntary Organisations,04-Sep-2021,000009736001793,TRAVELODGE,3615,Accommodation assistance,74.34,12.39,61.95
"Regeneration, Economy and Growth",Development and Housing,031576,B& B - Temp Accom,Supplies and Services,364320,Grants to Voluntary Organisations,04-Sep-2021,000009736001793 - 1,TRAVELODGE,3615,Accommodation assistance,193.89,,193.89
"Regeneration, Economy and Growth",Development and Housing,031578,Client Travel Reimbursements,Transport,235073,Public Transport,04-Sep-2021,000009736001795,BLUE LINE TAXIS,4121,Travel-clients/students/children,30.50,0.00,30.50
Children and Young Peoples Services,Head of Early Help Inclusion & Vulnerable Children.,085952,Secure Education,Supplies and Services,304403,Equipment and Materials,04-Sep-2021,000009736001813,AMZNMktplace,5999,Other consumables,12.99,2.17,10.82
Children and Young Peoples Services,Head of Early Help Inclusion & Vulnerable Children.,085956,Lumley,Supplies and Services,324117,Provisions E324,04-Sep-2021,000009736001817,TESCO STORES 6329,5411,Catering costs - provisions,36.73,0.00,36.73
Children and Young Peoples Services,Head of Childrens Social Care,085342,16 Hickstead Rise (previously 9 Cedar Ave),Supplies and Services,348037,Subsistence E348,04-Sep-2021,000009736001961,COSTA COFFEE,5814,Subsistence,11.30,0.00,11.30
Children and Young Peoples Services,Head of Childrens Social Care,085342,16 Hickstead Rise (previously 9 Cedar Ave),Transport,235057,Public Transport,04-Sep-2021,000009736001965,ARRIVA DURHAM COUNTY L,4131,Staff travelling,12.20,0.00,12.20
Children and Young Peoples Services,Head of Childrens Social Care,085342,16 Hickstead Rise (previously 9 Cedar Ave),Supplies and Services,332047,Printing Stationery and Gen Off Exps,04-Sep-2021,000009736001967,Vue Cinema,7832,Stationery,27.48,0.00,27.48
Children and Young Peoples Services,Head of Childrens Social Care,085342,16 Hickstead Rise (previously 9 Cedar Ave),Supplies and Services,332047,Printing Stationery and Gen Off Exps,04-Sep-2021,000009736001971,Vue Entertainment Ltd,7832,Stationery,13.98,0.00,13.98
Children and Young Peoples Services,Head of Childrens Social Care,085342,16 Hickstead Rise (previously 9 Cedar Ave),Supplies and Services,324117,Provisions E324,04-Sep-2021,000009736001975,B&M 206 - NORTHGATE,5399,Catering costs - provisions,6.33,0.00,6.33
Children and Young Peoples Services,Head of Education and Skills,071732,Dean Bank Childcare,Supplies and Services,324117,Provisions E324,04-Sep-2021,000009736002013,Wm Morrisons Store Pic,5411,Catering costs - provisions,8.00,0.00,8.00
Children and Young Peoples Services,Head of Childrens Social Care,085341,High Etherley Satelite Home,Supplies and Services,324117,Provisions E324,04-Sep-2021,000009736002417,SAINSBURYS S/MKTS,5411,Catering costs - provisions,22.24,0.00,22.24
Children and Young Peoples Services,Head of Childrens Social Care,085341,High Etherley Satelite Home,Supplies and Services,328041,Clothing uniforms and laundry E328,04-Sep-2021,000009736002421,www.asos.com,5691,Clothing uniforms and laundry,23.95,0.00,23.95
Children and Young Peoples Services,Head of Childrens Social Care,085341,High Etherley Satelite Home,Supplies and Services,304259,Equipment and Materials,04-Sep-2021,000009736002423,JD SPORTS INTERNET,5941,Equipment-purchase and rental,38.29,0.00,38.29
Children and Young Peoples Services,Head of Childrens Social Care,085342,16 Hickstead Rise (previously 9 Cedar Ave),Supplies and Services,324117,Provisions E324,04-Sep-2021,000009736002493,WILKO RETAIL LIMITED,5399,Catering costs - provisions,21.10,0.00,21.10
Resources BK0010,Digital and Customer Services,065335,School Services - Implementations,Supplies and Services,304639,Equipment and Materials,04-Sep-2021,000009736002527,AMZNMktplace,5999,Technicians-supplies,22.09,3.68,18.41
Children and Young Peoples Services,Head of Early Help Inclusion & Vulnerable Children.,071415,Wheatley Hill Childrens Centre,Supplies and Services,304259,Equipment and Materials,04-Sep-2021,000009736002567,Amazon.co.uk D38OO2UQ5,5969,Equipment-purchase and rental,26.96,4.49,22.47
Children and Young Peoples Services,Head of Childrens Social Care,085332,Middlestone Moor CU,Supplies and Services,348037,Subsistence E348,04-Sep-2021,000009736002605,SUBWAY THINGFORD NORTH,5814,Subsistence,14.38,0.00,14.38
Children and Young Peoples Services,Head of Childrens Social Care,085332,Middlestone Moor CU,Supplies and Services,348037,Subsistence E348,04-Sep-2021,000009736002607,KFC THINFORD DURHAM PR,5814,Subsistence,32.95,0.00,32.95
Dedicated Schools Grant BG0015,DSG High Needs Block,079050,SENSS-Sensory,Supplies and Services,304403,Equipment and Materials,05-Sep-2021,000009736001571,AMZNMktplace,5999,Other consumables,18.77,3.14,15.63
Children and Young Peoples Services,Head of Childrens Social Care,085331,New Lea Childrens Home,Supplies and Services,324117,Provisions E324,05-Sep-2021,000009736001659,GOLDEN PEARL,5499,Catering costs - provisions,21.05,0.00,21.05
Children and Young Peoples Services,Head of Childrens Social Care,085331,New Lea Childrens Home,Transport,235057,Public Transport,05-Sep-2021,000009736001663,THE RIVERWALK CAR PARK,7523,Staff travelling,3.00,0.00,3.00
Children and Young Peoples Services,Head of Childrens Social Care,085331,New Lea Childrens Home,Supplies and Services,324117,Provisions E324,05-Sep-2021,000009736001665,TESCO STORES 5596,5411,Catering costs - provisions,5.80,0.00,5.80
Children and Young Peoples Services,Head of Childrens Social Care,085331,New Lea Childrens Home,Supplies and Services,332047,Printing Stationery and Gen Off Exps,05-Sep-2021,000009736001667,ODEON,7832,Stationery,7.50,0.00,7.50
Children and Young Peoples Services,Head of Childrens Social Care,085331,New Lea Childrens Home,Supplies and Services,332047,Printing Stationery and Gen Off Exps,05-Sep-2021,000009736001671,ODEON,7832,Stationery,19.50,0.00,19.50
Children and Young Peoples Services,Head of Early Help Inclusion & Vulnerable Children.,085954,Walworth,Supplies and Services,324117,Provisions E324,05-Sep-2021,000009736001821,TESCO STORES 6329,5411,Catering costs - provisions,93.51,0.00,93.51
Children and Young Peoples Services,Head of Early Help Inclusion & Vulnerable Children.,085952,Secure Education,Supplies and Services,328041,Clothing uniforms and laundry E328,05-Sep-2021,000009736001831,FOOTASYLUM PLC,5691,Clothing uniforms and laundry,-139.98,0.00,-139.98
Children and Young Peoples Services,Head of Early Help Inclusion & Vulnerable Children.,085956,Lumley,Supplies and Services,384302,Miscellaneous Expenses,05-Sep-2021,000009736002133,AMZNMKTPLACE AMAZON.CO,5999,Activity expenses,19.80,0.00,19.80
Children and Young Peoples Services,Head of Childrens Social Care,085333,Coxhoe Satelite Home,Supplies and Services,384999,Miscellaneous Expenses,05-Sep-2021,000009736002475,Amazon.co.uk 427PR70I5,5969,Other expenses,14.88,2.48,12.40
Children and Young Peoples Services,Head of Childrens Social Care,085333,Coxhoe Satelite Home,Supplies and Services,384999,Miscellaneous Expenses,05-Sep-2021,000009736002475 - 1,Amazon.co.uk 427PR70I5,5969,Other expenses,18.62,,18.62
Children and Young Peoples Services,Head of Childrens Social Care,085333,Coxhoe Satelite Home,Supplies and Services,384999,Miscellaneous Expenses,05-Sep-2021,000009736002477,Amazon.co.uk JU8IP81U5,5969,Other expenses,14.95,2.49,12.46
Children and Young Peoples Services,Head of Early Help Inclusion & Vulnerable Children.,071415,Wheatley Hill Childrens Centre,Supplies and Services,304259,Equipment and Materials,05-Sep-2021,000009736002571,Amazon.co.uk FJ9O82YH5,5969,Equipment-purchase and rental,9.83,1.64,8.19
Children and Young Peoples Services,Head of Childrens Social Care,085332,Middlestone Moor CU,Supplies and Services,324117,Provisions E324,05-Sep-2021,000009736002611,KEN WARNE LTD (O5),5411,Catering costs - provisions,6.98,0.00,6.98
Children and Young Peoples Services,Head of Early Help Inclusion & Vulnerable Children.,088107,Ferryhill & Newton Aycliffe 0-19 Community Family Hub,Supplies and Services,304403,Equipment and Materials,05-Sep-2021,000009736002687,AMZNMktplace,5999,Other consumables,18.92,3.16,15.76
Children and Young Peoples Services,Head of Early Help Inclusion & Vulnerable Children.,088107,Ferryhill & Newton Aycliffe 0-19 Community Family Hub,Supplies and Services,304403,Equipment and Materials,05-Sep-2021,000009736002691,AMZNMktplace,5999,Other consumables,9.95,1.66,8.29
"Regeneration, Economy and Growth",Communications Management,060270,Communications and Marketing,Supplies and Services,336005,Advertising E336,05-Sep-2021,000009736002807,FACEBK RXZHE575B2,7311,Advertising other than for staff,500.00,0.00,500.00
Neighbourhoods and Climate Change,Community Protection,011293,Horden Making Every Adult Matter (MEAM),Supplies and Services,308011,Furniture,05-Sep-2021,000009736002841,DUNELM LTD,5714,Furniture repair and replacement,14.00,0.00,14.00
Children and Young Peoples Services,Head of Childrens Social Care,085342,16 Hickstead Rise (previously 9 Cedar Ave),Supplies and Services,324117,Provisions E324,05-Sep-2021,000009741002051,SAINSBURYS AYCLIFF,5411,Catering costs - provisions,45.08,0.00,45.08
Children and Young Peoples Services,Head of Childrens Social Care,085331,New Lea Childrens Home,Supplies and Services,328041,Clothing uniforms and laundry E328,05-Sep-2021,000009741002235,POUNDLAND LTD,5310,Clothing uniforms and laundry,4.00,0.00,4.00
Children and Young Peoples Services,Head of Childrens Social Care,085331,New Lea Childrens Home,Supplies and Services,348037,Subsistence E348,05-Sep-2021,000009741002237,EL PINCHO LIMITED,5812,Subsistence,13.40,0.00,13.40
Children and Young Peoples Services,Head of Education and Skills,071732,Dean Bank Childcare,Supplies and Services,324117,Provisions E324,05-Sep-2021,000009741002525,CO-OP GROUP 010503,5411,Catering costs - provisions,17.00,0.00,17.00
Children and Young Peoples Services,Head of Early Help Inclusion & Vulnerable Children.,085952,Secure Education,Supplies and Services,304403,Equipment and Materials,06-Sep-2021,000009736001825,AMZNMktplace,5999,Other consumables,18.95,0.00,18.95
Children and Young Peoples Services,Head of Early Help Inclusion & Vulnerable Children.,085962,Aycliffe Secure - Durham,Supplies and Services,384999,Miscellaneous Expenses,06-Sep-2021,000009736002057,Amazon.co.uk 6D4Y20AL5,5969,Other expenses,19.99,0.00,19.99
"Regeneration, Economy and Growth",Business Durham CL0850,030689,Inward Investment and Aftercare,Supplies and Services,342033,Computers and Communications,06-Sep-2021,000009741001983,STK Shutterstock,7333,Computer hardware,19.00,0.00,19.00
"Regeneration, Economy and Growth",Business Durham CL0850,030689,Inward Investment and Aftercare,Supplies and Services,342222,Computers and Communications,06-Sep-2021,000009741001987,FASTHOSTS INTERNET,4816,Comp hardware purch-network servers,67.20,0.00,67.20
Children and Young Peoples Services,Head of Education and Skills,075021,DurhamWorks Progression and Learning,Supplies and Services,364301,Grants to Voluntary Organisations,06-Sep-2021,000009741002025,WWW.GONORTHEAST.CO.UK,4111,Hardship,5.30,0.00,5.30
Children and Young Peoples Services,Head of Education and Skills,075021,DurhamWorks Progression and Learning,Supplies and Services,364301,Grants to Voluntary Organisations,06-Sep-2021,000009741002031,SP FLORENCEROBY,5137,Hardship,60.50,10.08,50.42
Children and Young Peoples Services,Head of Childrens Social Care,085332,Middlestone Moor CU,Supplies and Services,324117,Provisions E324,06-Sep-2021,000009741002059,LIDL GB SPENNYMOOR,5411,Catering costs - provisions,18.22,0.00,18.22
Children and Young Peoples Services,Head of Childrens Social Care,085332,Middlestone Moor CU,Supplies and Services,324117,Provisions E324,06-Sep-2021,000009741002063,TESCO STORES 2371,5411,Catering costs - provisions,103.11,0.00,103.11
Children and Young Peoples Services,Head of Childrens Social Care,085341,High Etherley Satelite Home,Supplies and Services,324117,Provisions E324,06-Sep-2021,000009741002117,TESCO STORES 6329,5411,Catering costs - provisions,17.20,0.00,17.20
Children and Young Peoples Services,Head of Childrens Social Care,085341,High Etherley Satelite Home,Supplies and Services,308011,Furniture,06-Sep-2021,000009741002125,Frank`s Flooring Bisho,5713,Furniture repair and replacement,800.00,0.00,800.00
Children and Young Peoples Services,Head of Childrens Social Care,085341,High Etherley Satelite Home,Supplies and Services,324117,Provisions E324,06-Sep-2021,000009741002215,WILKO RETAIL LIMITED,5399,Catering costs - provisions,13.00,0.00,13.00
Children and Young Peoples Services,Head of Childrens Social Care,085331,New Lea Childrens Home,Supplies and Services,304999,Equipment and Materials,06-Sep-2021,000009741002277,HOME BARGAINS,5251,Misc equipment tools and materials,2.49,0.00,2.49
Children and Young Peoples Services,Head of Childrens Social Care,085624,Families First Crook,Supplies and Services,304259,Equipment and Materials,06-Sep-2021,000009741002295,Amazon.co.uk DY4TD6SS5,5969,Equipment-purchase and rental,5.99,1.00,4.99
Children and Young Peoples Services,Head of Early Help Inclusion & Vulnerable Children.,088107,Ferryhill & Newton Aycliffe 0-19 Community Family Hub,Supplies and Services,304259,Equipment and Materials,06-Sep-2021,000009741002301,AMZNMktplace,5999,Equipment-purchase and rental,34.99,5.83,29.16
Children and Young Peoples Services,Head of Early Help Inclusion & Vulnerable Children.,088105,BA/BC/Crook 0-19 Community Family Hub,Supplies and Services,304259,Equipment and Materials,06-Sep-2021,000009741002305,ASDA GEORGE COM LEEDS,5411,Equipment-purchase and rental,256.55,42.76,213.79
"Regeneration, Economy and Growth",Culture Sport and Tourism,054812,Gala Theatre - Catering etc,Premises,145009,Cleaning and Domestic Supplies,06-Sep-2021,000009741002369,ALLIANCE DISPOSABLES L,2842,Other cleaning and domestic costs,50.95,8.49,42.46
"Regeneration, Economy and Growth",Development and Housing,031576,B& B - Temp Accom,Supplies and Services,364320,Grants to Voluntary Organisations,06-Sep-2021,000009741002373,TRAVELODGE,3615,Accommodation assistance,21.60,3.60,18.00
"Regeneration, Economy and Growth",Development and Housing,031576,B& B - Temp Accom,Supplies and Services,364320,Grants to Voluntary Organisations,06-Sep-2021,000009741002373 - 1,TRAVELODGE,3615,Accommodation assistance,60.48,,60.48
"Regeneration, Economy and Growth",Development and Housing,031576,B& B - Temp Accom,Supplies and Services,364320,Grants to Voluntary Organisations,06-Sep-2021,000009741002377,TRAVELODGE,3615,Accommodation assistance,86.40,14.40,72.00
"Regeneration, Economy and Growth",Development and Housing,031576,B& B - Temp Accom,Supplies and Services,364320,Grants to Voluntary Organisations,06-Sep-2021,000009741002377 - 1,TRAVELODGE,3615,Accommodation assistance,241.99,,241.99
Children and Young Peoples Services,Head of Early Help Inclusion & Vulnerable Children.,085957,Secure Management,Supplies and Services,340001,Postages E340,06-Sep-2021,000009741002395,TSB Returns Ltd,4215,Postages,2.50,0.00,2.50
Children and Young Peoples Services,Head of Early Help Inclusion & Vulnerable Children.,085952,Secure Education,Supplies and Services,324117,Provisions E324,06-Sep-2021,000009741002397,TESCO STORES 6329,5411,Catering costs - provisions,84.88,0.00,84.88
Children and Young Peoples Services,Head of Early Help Inclusion & Vulnerable Children.,085952,Secure Education,Supplies and Services,304403,Equipment and Materials,06-Sep-2021,000009741002403,AMZNMktplace,5999,Other consumables,93.23,15.55,77.68
Children and Young Peoples Services,Head of Education and Skills,071732,Dean Bank Childcare,Supplies and Services,304403,Equipment and Materials,06-Sep-2021,000009741002531,AMZNMktplace,5999,Other consumables,110.78,0.00,110.78
Children and Young Peoples Services,Head of Education and Skills,071732,Dean Bank Childcare,Supplies and Services,324117,Provisions E324,06-Sep-2021,000009741002537,ASDA GROCERIES ONLINE,5411,Catering costs - provisions,47.72,0.00,47.72
"Regeneration, Economy and Growth",Culture Sport and Tourism,054813,Gala Theatre - Technical,Supplies and Services,304259,Equipment and Materials,06-Sep-2021,000009741002541,AMZNMKTPLACE AMAZON.CO,5999,Equipment-purchase and rental,23.08,0.00,23.08
"Regeneration, Economy and Growth",Development and Housing,031623,Rough Sleeping,Supplies and Services,352001,Conference Expenses,06-Sep-2021,000009741002637,AYCLIFFE BIZ,7011,Conferencesseminars fees etc,266.00,0.00,266.00
Children and Young Peoples Services,Head of Early Help Inclusion & Vulnerable Children.,088112,Seaham & Central Durham 0-19 Targeted Family Support,Supplies and Services,304403,Equipment and Materials,06-Sep-2021,000009741002669,AMZNMktplace,5999,Other consumables,20.98,0.00,20.98
"Regeneration, Economy and Growth",Corporate Property and Land,021234,Catering - Locomotion,Premises,145009,Cleaning and Domestic Supplies,06-Sep-2021,000009741002695,ALLIANCE DISPOSABLES L,2842,Other cleaning and domestic costs,154.15,25.70,128.45
Children and Young Peoples Services,Head of Childrens Social Care,085351,Framwellgate Moor CU,Supplies and Services,332047,Printing Stationery and Gen Off Exps,06-Sep-2021,000009741002979,ODEON CINEMAS,7832,Stationery,15.00,0.00,15.00
Children and Young Peoples Services,Head of Childrens Social Care,085351,Framwellgate Moor CU,Supplies and Services,332047,Printing Stationery and Gen Off Exps,06-Sep-2021,000009741002981,ODEON CINEMAS,7832,Stationery,20.00,0.00,20.00
"Regeneration, Economy and Growth",Corporate Property and Land,030691,Catering - Durham Dales Centre,Premises,145009,Cleaning and Domestic Supplies,06-Sep-2021,000009741003003,ALLIANCE DISPOSABLES L,2842,Other cleaning and domestic costs,60.42,10.07,50.35
"Regeneration, Economy and Growth",Corporate Property and Land,030691,Catering - Durham Dales Centre,Premises,145009,Cleaning and Domestic Supplies,06-Sep-2021,000009741003003 - 1,ALLIANCE DISPOSABLES L,2842,Other cleaning and domestic costs,25.42,,25.42
"Regeneration, Economy and Growth",Culture Sport and Tourism,011263,Louisa Centre 011263,Supplies and Services,304403,Equipment and Materials,06-Sep-2021,000009741003023,TIMPSON LTD,5999,Other consumables,7.00,0.00,7.00
"Regeneration, Economy and Growth",Culture Sport and Tourism,011263,Louisa Centre 011263,Supplies and Services,324117,Provisions E324,06-Sep-2021,000009741003027,ASDA STORES LTD 4313,5411,Catering costs - provisions,7.50,0.00,7.50
Children and Young Peoples Services,Head of Childrens Social Care,085334,West Rainton Satelite Home,Supplies and Services,324117,Provisions E324,06-Sep-2021,000009741003037,TESCO STORES 2371,5411,Catering costs - provisions,12.50,0.00,12.50
Children and Young Peoples Services,Head of Childrens Social Care,085334,West Rainton Satelite Home,Supplies and Services,324117,Provisions E324,06-Sep-2021,000009741003043,TESCO STORES 2371,5411,Catering costs - provisions,154.69,0.00,154.69
Resources BK0010,Legal & Democratic Services,067953,Coroner County Durham & Darlington,Supplies and Services,304403,Equipment and Materials,06-Sep-2021,000009741003109,AMZNMktplace,5999,Other consumables,15.75,2.63,13.12
Children and Young Peoples Services,Head of Early Help Inclusion & Vulnerable Children.,079581,Emotional Wellbeing Team,Supplies and Services,324117,Provisions E324,06-Sep-2021,000009741003117,ASDA GROCERIES ONLINE,5411,Catering costs - provisions,22.97,0.00,22.97
Children and Young Peoples Services,Head of Early Help Inclusion & Vulnerable Children.,088110,Easington & Peterlee 0-19 Targeted Family Support,Supplies and Services,304259,Equipment and Materials,06-Sep-2021,000009741003125,CURRYS ONLINE,5732,Equipment-purchase and rental,334.00,0.00,334.00
"Regeneration, Economy and Growth",Transport and Contracted Services,031701,Care Connect All Localities,Supplies and Services,304259,Equipment and Materials,06-Sep-2021,000009741003135,AMZNMktplace,5999,Equipment-purchase and rental,19.95,3.33,16.62
Children and Young Peoples Services,Head of Education and Skills,071802,Louisa Cent Nursery,Supplies and Services,324117,Provisions E324,06-Sep-2021,000009741003179,ASDA GROCERIES ONLINE,5411,Catering costs - provisions,173.70,0.00,173.70
Children and Young Peoples Services,Head of Education and Skills,071802,Louisa Cent Nursery,Supplies and Services,324117,Provisions E324,06-Sep-2021,000009741003183,ASDA GROCERIES ONLINE,5411,Catering costs - provisions,-0.01,0.00,-0.01
"Regeneration, Economy and Growth",Development and Housing,031617,Project Beta Sustainability Fund,Supplies and Services,324117,Provisions E324,06-Sep-2021,000009741003235,B&M 147 - FERRYHILL,5399,Catering costs - provisions,20.00,0.00,20.00
Children and Young Peoples Services,Head of Childrens Social Care,085332,Middlestone Moor CU,Supplies and Services,304999,Equipment and Materials,06-Sep-2021,000009741003269,HOME BARGAINS SPENNYMO,5251,Misc equipment tools and materials,11.19,0.00,11.19
Children and Young Peoples Services,Head of Childrens Social Care,085332,Middlestone Moor CU,Supplies and Services,324117,Provisions E324,06-Sep-2021,000009741003271,ASDA SUPERSTORE 4987,5411,Catering costs - provisions,21.31,0.00,21.31
Children and Young Peoples Services,Head of Education and Skills,076001,Music Service,Employees,040149,Recruitment Instruction and Training,06-Sep-2021,000009741003353,MUSIC MARK,8699,Training-all costs,180.00,0.00,180.00
Children and Young Peoples Services,Head of Education and Skills,076001,Music Service,Supplies and Services,304999,Equipment and Materials,06-Sep-2021,000009741003359,HOME BARGAINS SPENNYMO,5251,Misc equipment tools and materials,5.86,0.00,5.86
Children and Young Peoples Services,Head of Education and Skills,076001,Music Service,Supplies and Services,324117,Provisions E324,06-Sep-2021,000009741003363,ASDA SUPERSTORE 4987,5411,Catering costs - provisions,19.00,0.00,19.00
Children and Young Peoples Services,Head of Childrens Social Care,085333,Coxhoe Satelite Home,Supplies and Services,324117,Provisions E324,06-Sep-2021,000009741003423,TESCO STORES 2371,5411,Catering costs - provisions,6.97,0.00,6.97
"Regeneration, Economy and Growth",Development and Housing,030770,Durham Advance,Supplies and Services,304259,Equipment and Materials,06-Sep-2021,000009741003441,GEN REGISTER OFFICE,9399,Equipment-purchase and rental,14.00,0.00,14.00
Children and Young Peoples Services,Head of Childrens Social Care,085331,New Lea Childrens Home,Supplies and Services,348037,Subsistence E348,06-Sep-2021,000009742951757,MCDONALDS 1555,5814,Subsistence,4.61,0.00,4.61
Children and Young Peoples Services,Head of Childrens Social Care,085331,New Lea Childrens Home,Supplies and Services,304259,Equipment and Materials,06-Sep-2021,000009742951761,FOOTASYLUM,5941,Equipment-purchase and rental,59.99,0.00,59.99
"Regeneration, Economy and Growth",Culture Sport and Tourism,054812,Gala Theatre - Catering etc,Supplies and Services,324117,Provisions E324,06-Sep-2021,000009742951855,BATLEYS PERTH,5300,Catering costs - provisions,137.22,22.87,114.35
"Regeneration, Economy and Growth",Culture Sport and Tourism,054812,Gala Theatre - Catering etc,Supplies and Services,324117,Provisions E324,06-Sep-2021,000009742951855 - 1,BATLEYS PERTH,5300,Catering costs - provisions,112.34,,112.34
"Regeneration, Economy and Growth",Culture Sport and Tourism,054812,Gala Theatre - Catering etc,Supplies and Services,324117,Provisions E324,06-Sep-2021,000009742951859,BATLEYS PERTH,5300,Catering costs - provisions,4.13,0.00,4.13
Children and Young Peoples Services,Head of Early Help Inclusion & Vulnerable Children.,085965,Barnard,Supplies and Services,384999,Miscellaneous Expenses,06-Sep-2021,000009742951901,WWW.BEAMISH.ORG.UK,7922,Other expenses,44.50,0.00,44.50
Children and Young Peoples Services,Head of Early Help Inclusion & Vulnerable Children.,085965,Barnard,Supplies and Services,304403,Equipment and Materials,06-Sep-2021,000009742951911,AMZNMKTPLACE AMAZON.CO,5999,Other consumables,20.98,3.50,17.48
Children and Young Peoples Services,Head of Education and Skills,071732,Dean Bank Childcare,Supplies and Services,324117,Provisions E324,06-Sep-2021,000009742951995,SAINSBURYS S/MKTS,5411,Catering costs - provisions,28.29,0.00,28.29
Children and Young Peoples Services,Head of Education and Skills,071732,Dean Bank Childcare,Supplies and Services,324117,Provisions E324,06-Sep-2021,000009742951999,Wm Morrisons Store Pic,5411,Catering costs - provisions,59.27,0.00,59.27
Neighbourhoods and Climate Change,Environmental Services,011060,C&G - Hardwick Park Catering,Supplies and Services,304083,Equipment and Materials,06-Sep-2021,000009742952011,WWW.NISBETS.COM,5964,Catering equipment,215.92,0.00,215.92
Children and Young Peoples Services,Head of Childrens Social Care,085351,Framwellgate Moor CU,Supplies and Services,324117,Provisions E324,06-Sep-2021,000009742952311,SAINSBURY`S S/MKT,5411,Catering costs - provisions,8.28,0.00,8.28
"Regeneration, Economy and Growth",Corporate Property and Land,030691,Catering - Durham Dales Centre,Supplies and Services,324117,Provisions E324,06-Sep-2021,000009742952337,BATLEYS PERTH,5300,Catering costs - provisions,101.28,16.88,84.40
"Regeneration, Economy and Growth",Corporate Property and Land,030691,Catering - Durham Dales Centre,Supplies and Services,324117,Provisions E324,06-Sep-2021,000009742952337 - 1,BATLEYS PERTH,5300,Catering costs - provisions,114.34,,114.34
"Regeneration, Economy and Growth",Corporate Property and Land,030691,Catering - Durham Dales Centre,Supplies and Services,324117,Provisions E324,06-Sep-2021,000009742952357,BATLEYS PERTH,5300,Catering costs - provisions,-9.65,-1.61,-8.04
"Regeneration, Economy and Growth",Culture Sport and Tourism,011263,Louisa Centre 011263,Supplies and Services,328041,Clothing uniforms and laundry E328,06-Sep-2021,000009742952397,Argos Durham Arnis,5310,Clothing uniforms and laundry,15.00,0.00,15.00
Children and Young Peoples Services,Head of Early Help Inclusion & Vulnerable Children.,079034,SEND LOOKED AFTER AND VULNERABLE CASEWORK TEAM 1,Employees,040149,Recruitment Instruction and Training,06-Sep-2021,000009742952431,WWW.NASEN.ORG.UK,8398,Training-all costs,-79.00,0.00,-79.00
Children and Young Peoples Services,Head of Childrens Social Care,085332,Middlestone Moor CU,Supplies and Services,324001,Provisions E324,06-Sep-2021,000009742952459,KASHS OFF LICENCE,5921,Bar supplies,1.98,0.00,1.98
Neighbourhoods and Climate Change,Environmental Services,010301,C&G - North Grounds Maintenance,Supplies and Services,304221,Equipment and Materials,06-Sep-2021,000009742952475,SCREWFIX DIR LTD,5211,Direct materials,8.24,0.00,8.24
Children and Young Peoples Services,Head of Education and Skills,071802,Louisa Cent Nursery,Supplies and Services,324117,Provisions E324,06-Sep-2021,000009742952491,WM MORRISONS STORE,5411,Catering costs - provisions,2.30,0.00,2.30
"Regeneration, Economy and Growth",Development and Housing,030776,LINKCD Flexible Fund,Supplies and Services,304221,Equipment and Materials,06-Sep-2021,000009742952573,SCREWFIX DIRECT,5211,Direct materials,51.96,8.66,43.30
"Regeneration, Economy and Growth",Development and Housing,030776,LINKCD Flexible Fund,Supplies and Services,304221,Equipment and Materials,06-Sep-2021,000009742952573 - 1,SCREWFIX DIRECT,5211,Direct materials,40.01,,40.01
Children and Young Peoples Services,Head of Childrens Social Care,085347,Solo Home The Manse,Supplies and Services,348037,Subsistence E348,06-Sep-2021,000009742952587,MCDONALDS,5812,Subsistence,7.40,0.00,7.40
Children and Young Peoples Services,Head of Childrens Social Care,085347,Solo Home The Manse,Supplies and Services,348037,Subsistence E348,06-Sep-2021,000009742952591,COMPANY ROW,5812,Subsistence,2.88,0.00,2.88
Resources BK0010,Corporate Finance & Commercial Services,065109,Pensions 065109,Supplies and Services,352001,Conference Expenses,06-Sep-2021,000009742952597,MARRIOTT,3509,Conferencesseminars fees etc,800.00,0.00,800.00
"Regeneration, Economy and Growth",Corporate Property and Land,021235,Catering - Wharton Park,Supplies and Services,324117,Provisions E324,06-Sep-2021,000009742952625,BATLEYS PERTH,5300,Catering costs - provisions,-37.78,-6.30,-31.48
Dedicated Schools Grant BG0015,DSG Schools Block,417630,Greenfield Community College 004176 - SEN,Supplies and Services,332047,Printing Stationery and Gen Off Exps,06-Sep-2021,9736001427,Amazon.co.uk 920549KF5,5969,Stationery,62.74,0.00,62.74
Children and Young Peoples Services,Head of Education and Skills,071801,Selby Cottage Childcare Centre,Supplies and Services,304403,Equipment and Materials,07-Sep-2021,000007667942096,AMZNMKTPLACE AMAZON.CO,5999,Other consumables,9.49,1.58,7.91
Children and Young Peoples Services,Head of Childrens Social Care,085332,Middlestone Moor CU,Transfer Payments,515140,Social Services Clients,07-Sep-2021,000007667942830,J D SPORTS 152,5941,Clothing allowances,135.10,0.00,135.10
Children and Young Peoples Services,Head of Childrens Social Care,085362,LAC & Permanence Team 2,Supplies and Services,338045,Services,07-Sep-2021,000007667942928,WWW.DURHAM.GOV.UK,9399,Legal expenses 338045,11.00,0.00,11.00
"Regeneration, Economy and Growth",Culture Sport and Tourism,054813,Gala Theatre - Technical,Supplies and Services,304259,Equipment and Materials,07-Sep-2021,000007667943164,ARGOS LTD,5310,Equipment-purchase and rental,24.99,0.00,24.99
Neighbourhoods and Climate Change,Environmental Services,011060,C&G - Hardwick Park Catering,Supplies and Services,304083,Equipment and Materials,07-Sep-2021,000007667943198,WWW.NISBETS.COM,5964,Catering equipment,78.26,0.00,78.26
Children and Young Peoples Services,Head of Childrens Social Care,085334,West Rainton Satelite Home,Supplies and Services,324117,Provisions E324,07-Sep-2021,000007667943510,JET CHILTON,5541,Catering costs - provisions,2.74,0.00,2.74
Children and Young Peoples Services,Head of Education and Skills,075029,Poverty Action Group,Supplies and Services,364301,Grants to Voluntary Organisations,07-Sep-2021,000007667943558,SCREWFIX DIRECT,5211,Hardship,4.98,0.83,4.15
Children and Young Peoples Services,Head of Education and Skills,075029,Poverty Action Group,Supplies and Services,364301,Grants to Voluntary Organisations,07-Sep-2021,000007667943558 - 1,SCREWFIX DIRECT,5211,Hardship,40.01,,40.01
"Regeneration, Economy and Growth",Corporate Property and Land,021234,Catering - Locomotion,Supplies and Services,324117,Provisions E324,07-Sep-2021,000007667943702,BATLEYS PERTH,5300,Catering costs - provisions,251.82,41.97,209.85
"Regeneration, Economy and Growth",Corporate Property and Land,021234,Catering - Locomotion,Supplies and Services,324117,Provisions E324,07-Sep-2021,000007667943702 - 1,BATLEYS PERTH,5300,Catering costs - provisions,29.40,,29.40
Children and Young Peoples Services,Head of Childrens Social Care,085622,Families First Ferryhill,Supplies and Services,338045,Services,07-Sep-2021,000007667943724,Durham County CNCL,9399,Legal expenses 338045,35.00,0.00,35.00
Adult and Health Services,Head of Adults,055643,Hawthorn House LD Respite Unit,Supplies and Services,324117,Provisions E324,07-Sep-2021,000007667944252,SAINSBURYS S/MKTS,5411,Catering costs - provisions,2.18,0.00,2.18
Children and Young Peoples Services,Head of Childrens Social Care,085351,Framwellgate Moor CU,Supplies and Services,308011,Furniture,07-Sep-2021,000007667944412,The Range,5719,Furniture repair and replacement,46.64,0.00,46.64
Resources BK0010,Digital and Customer Services,065335,School Services - Implementations,Supplies and Services,304639,Equipment and Materials,07-Sep-2021,000007667944600,AMZNMKTPLACE AMAZON.CO,5999,Technicians-supplies,19.98,3.34,16.64
Children and Young Peoples Services,Head of Childrens Social Care,085371,Young Peoples Service Team 1,Supplies and Services,364354,Grants to Voluntary Organisations,07-Sep-2021,000007667944686,ARGOS LTD,5310,Supervised Spend - Setting Up Home Allowance,-6.00,0.00,-6.00
"Regeneration, Economy and Growth",Culture Sport and Tourism,054235,Bishop Auckland Town Hall Cafe,Supplies and Services,324117,Provisions E324,07-Sep-2021,000007667944702,BATLEYS PERTH,5300,Catering costs - provisions,125.04,20.84,104.20
"Regeneration, Economy and Growth",Culture Sport and Tourism,054235,Bishop Auckland Town Hall Cafe,Supplies and Services,324117,Provisions E324,07-Sep-2021,000007667944702 - 1,BATLEYS PERTH,5300,Catering costs - provisions,154.24,,154.24
"Regeneration, Economy and Growth",Corporate Property and Land,021324,Catering - Meadowfield,Supplies and Services,324117,Provisions E324,07-Sep-2021,000007667944752,BATLEYS PERTH,5300,Catering costs - provisions,77.04,12.84,64.20
"Regeneration, Economy and Growth",Corporate Property and Land,021324,Catering - Meadowfield,Supplies and Services,324117,Provisions E324,07-Sep-2021,000007667944752 - 1,BATLEYS PERTH,5300,Catering costs - provisions,139.19,,139.19
Children and Young Peoples Services,Head of Childrens Social Care,085334,West Rainton Satelite Home,Supplies and Services,324117,Provisions E324,07-Sep-2021,000007667944816,WM MORRISONS STORE,5411,Catering costs - provisions,8.00,0.00,8.00
Children and Young Peoples Services,Head of Childrens Social Care,085334,West Rainton Satelite Home,Supplies and Services,324117,Provisions E324,07-Sep-2021,000007667944820,WM MORRISONS STORE,5411,Catering costs - provisions,52.68,0.00,52.68
Children and Young Peoples Services,Head of Education and Skills,076001,Music Service,Supplies and Services,328041,Clothing uniforms and laundry E328,07-Sep-2021,000007667945376,ARGOS LTD,5310,Clothing uniforms and laundry,-56.00,0.00,-56.00
Children and Young Peoples Services,Head of Early Help Inclusion & Vulnerable Children.,088107,Ferryhill & Newton Aycliffe 0-19 Community Family Hub,Supplies and Services,384302,Miscellaneous Expenses,07-Sep-2021,000007667945582,AMZNMKTPLACE AMAZON.CO,5999,Activity expenses,39.04,6.51,32.53
Children and Young Peoples Services,Head of Early Help Inclusion & Vulnerable Children.,088107,Ferryhill & Newton Aycliffe 0-19 Community Family Hub,Supplies and Services,384302,Miscellaneous Expenses,07-Sep-2021,000007667945588,AMZNMKTPLACE AMAZON.CO,5999,Activity expenses,7.44,1.24,6.20
Children and Young Peoples Services,Head of Early Help Inclusion & Vulnerable Children.,088107,Ferryhill & Newton Aycliffe 0-19 Community Family Hub,Supplies and Services,384302,Miscellaneous Expenses,07-Sep-2021,000007667945588 - 1,AMZNMKTPLACE AMAZON.CO,5999,Activity expenses,15.30,,15.30
Children and Young Peoples Services,Head of Early Help Inclusion & Vulnerable Children.,088107,Ferryhill & Newton Aycliffe 0-19 Community Family Hub,Supplies and Services,384302,Miscellaneous Expenses,07-Sep-2021,000007667945592,AMZNMKTPLACE AMAZON.CO,5999,Activity expenses,2.99,0.50,2.49
"Regeneration, Economy and Growth",Development and Housing,030771,Durham Advance Flexible Fund,Supplies and Services,328041,Clothing uniforms and laundry E328,07-Sep-2021,000007671541536,MATALAN.CO.UK,5691,Clothing uniforms and laundry,56.00,9.33,46.67
Children and Young Peoples Services,Head of Childrens Social Care,085341,High Etherley Satelite Home,Supplies and Services,328041,Clothing uniforms and laundry E328,07-Sep-2021,000007671541626,ARGOS LTD,5310,Clothing uniforms and laundry,24.99,0.00,24.99
Children and Young Peoples Services,Head of Early Help Inclusion & Vulnerable Children.,085956,Lumley,Supplies and Services,384999,Miscellaneous Expenses,07-Sep-2021,000009741002399,Amazon.co.uk MS4JA9GH5,5969,Other expenses,11.00,0.00,11.00
Children and Young Peoples Services,Head of Early Help Inclusion & Vulnerable Children.,085952,Secure Education,Supplies and Services,304403,Equipment and Materials,07-Sep-2021,000009741002409,AMZNMktplace,5999,Other consumables,79.70,13.30,66.40
"Regeneration, Economy and Growth",Business Durham CL0850,030689,Inward Investment and Aftercare,Supplies and Services,336005,Advertising E336,07-Sep-2021,000009742951585,LINKEDIN-700 6538284,7311,Advertising other than for staff,56.00,0.00,56.00
Children and Young Peoples Services,Head of Education and Skills,071801,Selby Cottage Childcare Centre,Supplies and Services,324117,Provisions E324,07-Sep-2021,000009742951607,WILKO RETAIL LIMITED,5399,Catering costs - provisions,14.85,0.00,14.85
Resources BK0010,Digital and Customer Services,070110,School Services - Man Info System (MIS) Support Team,Supplies and Services,342033,Computers and Communications,07-Sep-2021,000009742951611,WPMU DEV INCSUBFEE.COM,7372,Computer hardware,13.75,0.00,13.75
"Regeneration, Economy and Growth",Culture Sport and Tourism,054731,Killhope Lead Mining Centre,Supplies and Services,304403,Equipment and Materials,07-Sep-2021,000009742951635,AMZNMKTPLACE AMAZON.CO,5999,Other consumables,9.72,1.62,8.10
"Regeneration, Economy and Growth",Culture Sport and Tourism,054731,Killhope Lead Mining Centre,Supplies and Services,304403,Equipment and Materials,07-Sep-2021,000009742951635 - 1,AMZNMKTPLACE AMAZON.CO,5999,Other consumables,24.38,,24.38
Children and Young Peoples Services,Head of Education and Skills,075021,DurhamWorks Progression and Learning,Supplies and Services,336005,Advertising E336,07-Sep-2021,000009742951643,HOO HOOTSUITE INC,7399,Advertising other than for staff,561.60,93.60,468.00
Children and Young Peoples Services,Head of Childrens Social Care,085332,Middlestone Moor CU,Supplies and Services,304999,Equipment and Materials,07-Sep-2021,000009742951663,HOME BARGAINS SPENNYMO,5251,Misc equipment tools and materials,10.94,0.00,10.94
Children and Young Peoples Services,Head of Childrens Social Care,085332,Middlestone Moor CU,Supplies and Services,324117,Provisions E324,07-Sep-2021,000009742951667,ASDA SUPERSTORE 4987,5411,Catering costs - provisions,21.80,0.00,21.80
"Regeneration, Economy and Growth",Culture Sport and Tourism,011263,Louisa Centre 011263,Supplies and Services,324117,Provisions E324,07-Sep-2021,000009742951687,JR HOLLAND FOODSERVICE,5499,Catering costs - provisions,4.96,0.00,4.96
Children and Young Peoples Services,Head of Education and Skills,078100,Curric and Professional Development 078100,Supplies and Services,342033,Computers and Communications,07-Sep-2021,000009742951691,STK Shutterstock,7333,Computer hardware,22.80,0.00,22.80
"Regeneration, Economy and Growth",Development and Housing,030776,LINKCD Flexible Fund,Employees,040149,Recruitment Instruction and Training,07-Sep-2021,000009742951753,CHARTWISE UK LTD,8999,Training-all costs,140.00,0.00,140.00
Children and Young Peoples Services,Head of Early Help Inclusion & Vulnerable Children.,088104,BA/BC/Crook 0-19 Targeted Family Support,Supplies and Services,304259,Equipment and Materials,07-Sep-2021,000009742951771,AMZNMktplace,5999,Equipment-purchase and rental,28.50,4.75,23.75
"Regeneration, Economy and Growth",Culture Sport and Tourism,054233,Bishop Auckland Town Hall Library,Supplies and Services,304403,Equipment and Materials,07-Sep-2021,000009742951781,AMZNMktplace,5999,Other consumables,159.96,26.68,133.28
Children and Young Peoples Services,Head of Childrens Social Care,085332,Middlestone Moor CU,Supplies and Services,324117,Provisions E324,07-Sep-2021,000009742951809,ASDA STORES 4320,5411,Catering costs - provisions,6.34,0.00,6.34
"Regeneration, Economy and Growth",Culture Sport and Tourism,054812,Gala Theatre - Catering etc,Supplies and Services,324117,Provisions E324,07-Sep-2021,000009742951861,JR HOLLAND FOODSERVICE,5499,Catering costs - provisions,18.29,0.00,18.29
"Regeneration, Economy and Growth",Culture Sport and Tourism,054812,Gala Theatre - Catering etc,Supplies and Services,324117,Provisions E324,07-Sep-2021,000009742951865,JR HOLLAND FOODSERVICE,5499,Catering costs - provisions,1.40,0.00,1.40
"Regeneration, Economy and Growth",Culture Sport and Tourism,054812,Gala Theatre - Catering etc,Supplies and Services,324117,Provisions E324,07-Sep-2021,000009742951869,JR HOLLAND FOODSERVICE,5499,Catering costs - provisions,51.22,0.00,51.22
"Regeneration, Economy and Growth",Culture Sport and Tourism,054812,Gala Theatre - Catering etc,Supplies and Services,324117,Provisions E324,07-Sep-2021,000009742951873,JR HOLLAND FOODSERVICE,5499,Catering costs - provisions,23.42,0.00,23.42
"Regeneration, Economy and Growth",Culture Sport and Tourism,054812,Gala Theatre - Catering etc,Supplies and Services,324117,Provisions E324,07-Sep-2021,000009742951875,JR HOLLAND FOODSERVICE,5499,Catering costs - provisions,9.20,0.00,9.20
"Regeneration, Economy and Growth",Culture Sport and Tourism,054812,Gala Theatre - Catering etc,Supplies and Services,324117,Provisions E324,07-Sep-2021,000009742951879,JR HOLLAND FOODSERVICE,5499,Catering costs - provisions,33.07,0.00,33.07
"Regeneration, Economy and Growth",Culture Sport and Tourism,054812,Gala Theatre - Catering etc,Supplies and Services,324117,Provisions E324,07-Sep-2021,000009742951885,JR HOLLAND FOODSERVICE,5499,Catering costs - provisions,-1.40,0.00,-1.40
Children and Young Peoples Services,Head of Early Help Inclusion & Vulnerable Children.,085952,Secure Education,Supplies and Services,304403,Equipment and Materials,07-Sep-2021,000009742951905,AMZNMktplace,5999,Other consumables,43.99,7.33,36.66
Children and Young Peoples Services,Head of Early Help Inclusion & Vulnerable Children.,085952,Secure Education,Supplies and Services,304403,Equipment and Materials,07-Sep-2021,000009742951907,AMZNMktplace,5999,Other consumables,24.30,4.05,20.25
Children and Young Peoples Services,Head of Early Help Inclusion & Vulnerable Children.,085952,Secure Education,Supplies and Services,304403,Equipment and Materials,07-Sep-2021,000009742951907 - 1,AMZNMktplace,5999,Other consumables,0.06,,0.06
Children and Young Peoples Services,Head of Early Help Inclusion & Vulnerable Children.,085952,Secure Education,Supplies and Services,304403,Equipment and Materials,07-Sep-2021,000009742951915,AMZNMktplace,5999,Other consumables,18.95,0.00,18.95
Children and Young Peoples Services,Head of Education and Skills,071732,Dean Bank Childcare,Third Party Payments,430100,Rendered by Private Contractors,07-Sep-2021,000009742952001,WWW.EYFS.INFO,7399,Payments to sub-contractors,121.20,0.00,121.20
Neighbourhoods and Climate Change,Environmental Services,011060,C&G - Hardwick Park Catering,Supplies and Services,304083,Equipment and Materials,07-Sep-2021,000009742952013,AMZNMktplace,5999,Catering equipment,35.00,5.83,29.17
Neighbourhoods and Climate Change,Environmental Services,011060,C&G - Hardwick Park Catering,Supplies and Services,304083,Equipment and Materials,07-Sep-2021,000009742952015,Amazon.co.uk 5T8E15SV5,5969,Catering equipment,4.86,0.81,4.05
"Regeneration, Economy and Growth",Business Durham CL0850,030690,Durham Dales Centre - Tourist Information Centre,Supplies and Services,328041,Clothing uniforms and laundry E328,07-Sep-2021,000009742952021,N.V. BAGS ACCESSORIES,5699,Clothing uniforms and laundry,395.84,0.00,395.84
Children and Young Peoples Services,Head of Childrens Social Care,085517,Supporting Solutions Service (Edge of Care),Supplies and Services,312009,Newspapers books and periodicals E312,07-Sep-2021,000009742952025,Amazon.co.uk T95FB4I25,5969,Newspapers books and periodicals,30.99,0.00,30.99
"Regeneration, Economy and Growth",Development and Housing,030771,Durham Advance Flexible Fund,Supplies and Services,384999,Miscellaneous Expenses,07-Sep-2021,000009742952057,NEXT DIRECTORY,5965,Other expenses,47.99,0.00,47.99
Neighbourhoods and Climate Change,Environmental Services,011060,C&G - Hardwick Park Catering,Supplies and Services,324117,Provisions E324,07-Sep-2021,000009742952067,JR HOLLAND FOODSERVICE,5499,Catering costs - provisions,84.75,0.00,84.75
Children and Young Peoples Services,Head of Education and Skills,075021,DurhamWorks Progression and Learning,Supplies and Services,364301,Grants to Voluntary Organisations,07-Sep-2021,000009742952077,WWW.GONORTHEAST.CO.UK,4111,Hardship,4.50,0.00,4.50
Children and Young Peoples Services,Head of Education and Skills,075021,DurhamWorks Progression and Learning,Supplies and Services,364301,Grants to Voluntary Organisations,07-Sep-2021,000009742952079,WWW.GONORTHEAST.CO.UK,4111,Hardship,4.50,0.00,4.50
Children and Young Peoples Services,Head of Education and Skills,075021,DurhamWorks Progression and Learning,Supplies and Services,364301,Grants to Voluntary Organisations,07-Sep-2021,000009742952083,WWW.GONORTHEAST.CO.UK,4111,Hardship,4.50,0.00,4.50
Children and Young Peoples Services,Head of Education and Skills,075021,DurhamWorks Progression and Learning,Supplies and Services,364301,Grants to Voluntary Organisations,07-Sep-2021,000009742952085,WWW.GONORTHEAST.CO.UK,4111,Hardship,17.00,0.00,17.00
Children and Young Peoples Services,Head of Education and Skills,075021,DurhamWorks Progression and Learning,Supplies and Services,364301,Grants to Voluntary Organisations,07-Sep-2021,000009742952089,WWW.GONORTHEAST.CO.UK,4111,Hardship,17.00,0.00,17.00
Neighbourhoods and Climate Change,Environmental Services,031238,North Pennines - Tees Swale,Supplies and Services,304403,Equipment and Materials,07-Sep-2021,000009742952091,AMZNMktplace,5999,Other consumables,7.00,1.17,5.83
Neighbourhoods and Climate Change,Environmental Services,031238,North Pennines - Tees Swale,Supplies and Services,352001,Conference Expenses,07-Sep-2021,000009742952095,Eviivo Limited,7011,Conferencesseminars fees etc,188.00,0.00,188.00
"Regeneration, Economy and Growth",Corporate Property and Land,021234,Catering - Locomotion,Supplies and Services,324117,Provisions E324,07-Sep-2021,000009742952101,ON A ROLL SANDWICH COM,5499,Catering costs - provisions,550.17,0.00,550.17
"Regeneration, Economy and Growth",Corporate Property and Land,021234,Catering - Locomotion,Supplies and Services,324117,Provisions E324,07-Sep-2021,000009742952105,JR HOLLAND FOODSERVICE,5499,Catering costs - provisions,52.77,0.00,52.77
"Regeneration, Economy and Growth",Corporate Property and Land,021234,Catering - Locomotion,Supplies and Services,324117,Provisions E324,07-Sep-2021,000009742952107,JR HOLLAND FOODSERVICE,5499,Catering costs - provisions,15.86,0.00,15.86
"Regeneration, Economy and Growth",Corporate Property and Land,020082,Bldg Serv - R&M Div 82- Lifts,Supplies and Services,384999,Miscellaneous Expenses,07-Sep-2021,000009742952261,TT2 LTD,4784,Other expenses,50.00,0.00,50.00
Children and Young Peoples Services,Head of Childrens Social Care,085351,Framwellgate Moor CU,Supplies and Services,328041,Clothing uniforms and laundry E328,07-Sep-2021,000009742952315,LITTLE GEMS,5137,Clothing uniforms and laundry,49.99,0.00,49.99
Children and Young Peoples Services,Head of Childrens Social Care,085351,Framwellgate Moor CU,Supplies and Services,324117,Provisions E324,07-Sep-2021,000009742952317,ASDA GROCERIES ONLINE,5411,Catering costs - provisions,162.99,0.00,162.99
Children and Young Peoples Services,Head of Childrens Social Care,085351,Framwellgate Moor CU,Supplies and Services,324117,Provisions E324,07-Sep-2021,000009742952319,ASDA GROCERIES ONLINE,5411,Catering costs - provisions,-0.42,0.00,-0.42
"Regeneration, Economy and Growth",Culture Sport and Tourism,011291,Peterlee Leisure Centre,Supplies and Services,304259,Equipment and Materials,07-Sep-2021,000009742952335,Amazon.co.uk R69GR0KN5,5969,Equipment-purchase and rental,7.44,1.24,6.20
"Regeneration, Economy and Growth",Culture Sport and Tourism,011291,Peterlee Leisure Centre,Supplies and Services,304259,Equipment and Materials,07-Sep-2021,000009742952335 - 1,Amazon.co.uk R69GR0KN5,5969,Equipment-purchase and rental,0.08,,0.08
"Regeneration, Economy and Growth",Corporate Property and Land,030691,Catering - Durham Dales Centre,Supplies and Services,324117,Provisions E324,07-Sep-2021,000009742952343,JR HOLLAND FOODSERVICE,5499,Catering costs - provisions,185.33,0.00,185.33
"Regeneration, Economy and Growth",Corporate Property and Land,030691,Catering - Durham Dales Centre,Supplies and Services,324117,Provisions E324,07-Sep-2021,000009742952345,JR HOLLAND FOODSERVICE,5499,Catering costs - provisions,96.00,0.00,96.00
"Regeneration, Economy and Growth",Corporate Property and Land,030691,Catering - Durham Dales Centre,Supplies and Services,324117,Provisions E324,07-Sep-2021,000009742952349,JR HOLLAND FOODSERVICE,5499,Catering costs - provisions,31.93,0.00,31.93
"Regeneration, Economy and Growth",Corporate Property and Land,030691,Catering - Durham Dales Centre,Supplies and Services,324117,Provisions E324,07-Sep-2021,000009742952351,JR HOLLAND FOODSERVICE,5499,Catering costs - provisions,9.90,0.00,9.90
"Regeneration, Economy and Growth",Corporate Property and Land,030691,Catering - Durham Dales Centre,Supplies and Services,324117,Provisions E324,07-Sep-2021,000009742952355,JR HOLLAND FOODSERVICE,5499,Catering costs - provisions,31.74,0.00,31.74
"Regeneration, Economy and Growth",Corporate Property and Land,030691,Catering - Durham Dales Centre,Supplies and Services,324117,Provisions E324,07-Sep-2021,000009742952361,JR HOLLAND FOODSERVICE,5499,Catering costs - provisions,-2.48,0.00,-2.48
"Regeneration, Economy and Growth",Corporate Property and Land,030691,Catering - Durham Dales Centre,Supplies and Services,324117,Provisions E324,07-Sep-2021,000009742952365,JR HOLLAND FOODSERVICE,5499,Catering costs - provisions,-9.90,0.00,-9.90
Adult and Health Services,Head of Adults,055643,Hawthorn House LD Respite Unit,Supplies and Services,324117,Provisions E324,07-Sep-2021,000009742952381,JR HOLLAND FOODSERVICE,5499,Catering costs - provisions,15.06,0.00,15.06
Adult and Health Services,Head of Adults,055643,Hawthorn House LD Respite Unit,Supplies and Services,324117,Provisions E324,07-Sep-2021,000009742952383,JR HOLLAND FOODSERVICE,5499,Catering costs - provisions,16.42,0.00,16.42
Adult and Health Services,Head of Adults,055643,Hawthorn House LD Respite Unit,Supplies and Services,324117,Provisions E324,07-Sep-2021,000009742952385,JR HOLLAND FOODSERVICE,5499,Catering costs - provisions,19.38,0.00,19.38
Adult and Health Services,Head of Adults,055643,Hawthorn House LD Respite Unit,Supplies and Services,324117,Provisions E324,07-Sep-2021,000009742952389,JR HOLLAND FOODSERVICE,5499,Catering costs - provisions,8.01,0.00,8.01
Adult and Health Services,Head of Adults,055643,Hawthorn House LD Respite Unit,Supplies and Services,324117,Provisions E324,07-Sep-2021,000009742952391,JR HOLLAND FOODSERVICE,5499,Catering costs - provisions,33.79,0.00,33.79
Children and Young Peoples Services,Head of Childrens Social Care,085334,West Rainton Satelite Home,Supplies and Services,324117,Provisions E324,07-Sep-2021,000009742952407,ASDA SUPERSTORE,5411,Catering costs - provisions,6.50,0.00,6.50
Children and Young Peoples Services,Head of Childrens Social Care,085334,West Rainton Satelite Home,Supplies and Services,324117,Provisions E324,07-Sep-2021,000009742952411,ASDA SUPERSTORE,5411,Catering costs - provisions,132.10,0.00,132.10
Children and Young Peoples Services,Head of Childrens Social Care,085363,LAC & Permanence Team 3,Transport,235057,Public Transport,07-Sep-2021,000009742952423,WWW.GWR.COM,4112,Staff travelling,162.40,0.00,162.40
Resources BK0010,Digital and Customer Services,065335,School Services - Implementations,Supplies and Services,304639,Equipment and Materials,07-Sep-2021,000009742952427,MYVOLTS MYVOLTS ORDER,5732,Technicians-supplies,50.97,0.00,50.97
Resources BK0010,Digital and Customer Services,065335,School Services - Implementations,Supplies and Services,304639,Equipment and Materials,07-Sep-2021,000009742952429,Public Health England,8099,Technicians-supplies,301.50,0.00,301.50
"Regeneration, Economy and Growth",Culture Sport and Tourism,054235,Bishop Auckland Town Hall Cafe,Supplies and Services,324117,Provisions E324,07-Sep-2021,000009742952437,JR HOLLAND FOODSERVICE,5499,Catering costs - provisions,14.85,0.00,14.85
"Regeneration, Economy and Growth",Culture Sport and Tourism,054235,Bishop Auckland Town Hall Cafe,Supplies and Services,324117,Provisions E324,07-Sep-2021,000009742952441,JR HOLLAND FOODSERVICE,5499,Catering costs - provisions,378.25,0.00,378.25
"Regeneration, Economy and Growth",Culture Sport and Tourism,054235,Bishop Auckland Town Hall Cafe,Supplies and Services,324117,Provisions E324,07-Sep-2021,000009742952443,JR HOLLAND FOODSERVICE,5499,Catering costs - provisions,57.05,0.00,57.05
"Regeneration, Economy and Growth",Culture Sport and Tourism,054235,Bishop Auckland Town Hall Cafe,Supplies and Services,324117,Provisions E324,07-Sep-2021,000009742952445,JR HOLLAND FOODSERVICE,5499,Catering costs - provisions,261.24,0.00,261.24
"Regeneration, Economy and Growth",Culture Sport and Tourism,054235,Bishop Auckland Town Hall Cafe,Supplies and Services,324117,Provisions E324,07-Sep-2021,000009742952449,JR HOLLAND FOODSERVICE,5499,Catering costs - provisions,54.35,0.00,54.35
Children and Young Peoples Services,Head of Early Help Inclusion & Vulnerable Children.,085801,CDYJS - Support,Supplies and Services,324117,Provisions E324,07-Sep-2021,000009742952481,GREGGS,5462,Catering costs - provisions,50.00,0.00,50.00
Children and Young Peoples Services,Head of Early Help Inclusion & Vulnerable Children.,085801,CDYJS - Support,Supplies and Services,324117,Provisions E324,07-Sep-2021,000009742952483,GREGGS,5462,Catering costs - provisions,50.00,0.00,50.00
Children and Young Peoples Services,Head of Education and Skills,071802,Louisa Cent Nursery,Supplies and Services,324117,Provisions E324,07-Sep-2021,000009742952495,ASDA SUPERSTORE,5411,Catering costs - provisions,13.33,0.00,13.33
Neighbourhoods and Climate Change,Environmental Services,031200,North Pennines Core,Supplies and Services,304259,Equipment and Materials,07-Sep-2021,000009742952511,CANVA I03167-14482406,7221,Equipment-purchase and rental,99.99,0.00,99.99
"Regeneration, Economy and Growth",Culture Sport and Tourism,054233,Bishop Auckland Town Hall Library,Supplies and Services,324117,Provisions E324,07-Sep-2021,000009742952545,WILKO RETAIL LIMITED,5399,Catering costs - provisions,12.30,0.00,12.30
"Regeneration, Economy and Growth",Culture Sport and Tourism,054233,Bishop Auckland Town Hall Library,Supplies and Services,324117,Provisions E324,07-Sep-2021,000009742952549,HERON FOODS,5411,Catering costs - provisions,8.76,0.00,8.76
"Regeneration, Economy and Growth",Corporate Property and Land,021235,Catering - Wharton Park,Supplies and Services,324117,Provisions E324,07-Sep-2021,000009742952621,ON A ROLL SANDWICH COM,5499,Catering costs - provisions,130.99,0.00,130.99
Children and Young Peoples Services,Head of Childrens Social Care,085334,West Rainton Satelite Home,Supplies and Services,304403,Equipment and Materials,07-Sep-2021,000009742952639,AMZNMktplace,5999,Other consumables,111.96,0.00,111.96
Children and Young Peoples Services,Head of Early Help Inclusion & Vulnerable Children.,088107,Ferryhill & Newton Aycliffe 0-19 Community Family Hub,Supplies and Services,384302,Miscellaneous Expenses,07-Sep-2021,000009742952717,AMZNMKTPLACE AMAZON.CO,5999,Activity expenses,6.49,1.08,5.41
Dedicated Schools Grant BG0015,DSG Schools Block,417607,Greenfield Community College 004176 - Performing Arts,Supplies and Services,332047,Printing Stationery and Gen Off Exps,07-Sep-2021,7667942142,WWW.DAYDREAMEDUCATION.,5943,Stationery,26.40,4.40,22.00
Children and Young Peoples Services,Head of Early Help Inclusion & Vulnerable Children.,088100,Durham West & CLS 0-19 Targeted Family Support,Supplies and Services,364320,Grants to Voluntary Organisations,08-Sep-2021,000007667942066,Frank`s Flooring Spenn,5713,Accommodation assistance,-50.00,0.00,-50.00
Children and Young Peoples Services,Head of Education and Skills,071801,Selby Cottage Childcare Centre,Supplies and Services,324117,Provisions E324,08-Sep-2021,000007667942084,TESCO STORES 2278,5411,Catering costs - provisions,59.91,0.00,59.91
Children and Young Peoples Services,Head of Education and Skills,071801,Selby Cottage Childcare Centre,Supplies and Services,304999,Equipment and Materials,08-Sep-2021,000007667942102,Amazon Prime 0Q1DW3O45,5968,Misc equipment tools and materials,7.99,1.33,6.66
"Regeneration, Economy and Growth",Culture Sport and Tourism,011198,Culture & Sport Management 011198,Supplies and Services,344033,Telephones,08-Sep-2021,000007667942118,ZOOM.US 888-799-9666,4814,Telephones general-all costs,119.90,0.00,119.90
Resources BK0010,Digital and Customer Services,065487,ICT Telephony Recharges,Supplies and Services,304403,Equipment and Materials,08-Sep-2021,000007667942124,AMZNMktplace,5999,Other consumables,308.50,51.50,257.00
"Regeneration, Economy and Growth",Development and Housing,031500,Housing Solutions - Core,Supplies and Services,352001,Conference Expenses,08-Sep-2021,000007667942228,TOAST LETTINGS,7011,Conferencesseminars fees etc,490.00,0.00,490.00
"Regeneration, Economy and Growth",Development and Housing,031500,Housing Solutions - Core,Supplies and Services,352001,Conference Expenses,08-Sep-2021,000007667942234,TOAST LETTINGS,7011,Conferencesseminars fees etc,490.00,0.00,490.00
"Regeneration, Economy and Growth",Development and Housing,031500,Housing Solutions - Core,Supplies and Services,352001,Conference Expenses,08-Sep-2021,000007667942240,TOAST LETTINGS,7011,Conferencesseminars fees etc,490.00,0.00,490.00
"Regeneration, Economy and Growth",Development and Housing,031500,Housing Solutions - Core,Supplies and Services,352001,Conference Expenses,08-Sep-2021,000007667942246,TOAST LETTINGS,7011,Conferencesseminars fees etc,490.00,0.00,490.00
Children and Young Peoples Services,Head of Childrens Social Care,085341,High Etherley Satelite Home,Supplies and Services,324117,Provisions E324,08-Sep-2021,000007667942294,TESCO STORES 6329,5411,Catering costs - provisions,80.60,0.00,80.60
"Regeneration, Economy and Growth",Development and Housing,030773,CLLD North,Supplies and Services,348037,Subsistence E348,08-Sep-2021,000007667942306,COSTA COFFEE,5814,Subsistence,0.78,0.13,0.65
"Regeneration, Economy and Growth",Development and Housing,030773,CLLD North,Supplies and Services,348037,Subsistence E348,08-Sep-2021,000007667942306 - 1,COSTA COFFEE,5814,Subsistence,2.02,,2.02
"Regeneration, Economy and Growth",Development and Housing,030773,CLLD North,Supplies and Services,348037,Subsistence E348,08-Sep-2021,000007667942316,COSTA COFFEE,5814,Subsistence,2.80,0.00,2.80
Children and Young Peoples Services,Head of Education and Skills,075021,DurhamWorks Progression and Learning,Supplies and Services,336005,Advertising E336,08-Sep-2021,000007667942328,HOO HOOTSUITE INC,7399,Advertising other than for staff,561.60,93.60,468.00
"Regeneration, Economy and Growth",Culture Sport and Tourism,030712,VCD - Project Delivery,Supplies and Services,384199,Miscellaneous Expenses,08-Sep-2021,000007667942362,PAYPAL WEBALON,5817,Other hired and contracted services,5.71,0.00,5.71
"Regeneration, Economy and Growth",Culture Sport and Tourism,030705,Visit County Durham 030705,Employees,040149,Recruitment Instruction and Training,08-Sep-2021,000007667942370,CIM,8299,Training-all costs,240.00,0.00,240.00
Children and Young Peoples Services,Head of Childrens Social Care,085332,Middlestone Moor CU,Supplies and Services,324117,Provisions E324,08-Sep-2021,000007667942428,ASDA SUPERSTORE 4987,5411,Catering costs - provisions,22.76,0.00,22.76
Children and Young Peoples Services,Head of Childrens Social Care,085332,Middlestone Moor CU,Supplies and Services,324117,Provisions E324,08-Sep-2021,000007667942438,TESCO STORES 2371,5411,Catering costs - provisions,167.32,0.00,167.32
Children and Young Peoples Services,Head of Childrens Social Care,085331,New Lea Childrens Home,Premises,120037,Energy Costs,08-Sep-2021,000007667942588,EXPRESS WASTE,4900,Other fuels,124.99,0.00,124.99
"Regeneration, Economy and Growth",Development and Housing,030776,LINKCD Flexible Fund,Transport,235057,Public Transport,08-Sep-2021,000007667942732,WWW.GONORTHEAST.CO.UK,4111,Staff travelling,95.00,0.00,95.00
"Regeneration, Economy and Growth",Culture Sport and Tourism,054233,Bishop Auckland Town Hall Library,Supplies and Services,304403,Equipment and Materials,08-Sep-2021,000007667942806,AMZNMktplace,5999,Other consumables,123.39,20.74,102.65
Children and Young Peoples Services,Head of Early Help Inclusion & Vulnerable Children.,085962,Aycliffe Secure - Durham,Supplies and Services,324117,Provisions E324,08-Sep-2021,000007667942886,TESCO STORES 6329,5411,Catering costs - provisions,66.24,0.00,66.24
Children and Young Peoples Services,Head of Childrens Social Care,085517,Supporting Solutions Service (Edge of Care),Employees,040149,Recruitment Instruction and Training,08-Sep-2021,000007667943262,EB RETURN HOME INTERV,7399,Training-all costs,98.20,0.00,98.20
"Regeneration, Economy and Growth",Development and Housing,030771,Durham Advance Flexible Fund,Employees,040149,Recruitment Instruction and Training,08-Sep-2021,000007667943386,NCS CITB EXAM,8299,Training-all costs,22.00,0.00,22.00
Neighbourhoods and Climate Change,Environmental Services,011060,C&G - Hardwick Park Catering,Supplies and Services,324117,Provisions E324,08-Sep-2021,000007667943472,JR HOLLAND FOODSERVICE,5499,Catering costs - provisions,32.91,0.00,32.91
Children and Young Peoples Services,Head of Education and Skills,075024,Durham Directions,Supplies and Services,364301,Grants to Voluntary Organisations,08-Sep-2021,000007667943568,EDC-WG STUDENT SERVICE,8220,Hardship,182.00,0.00,182.00
Resources BK0010,People & Talent Management,010984,Training and Development,Employees,040149,Recruitment Instruction and Training,08-Sep-2021,000007667943580,WWW.JIB.ORG.UK,8699,Training-all costs,250.00,0.00,250.00
"Regeneration, Economy and Growth",Corporate Property and Land,021234,Catering - Locomotion,Supplies and Services,324117,Provisions E324,08-Sep-2021,000007667943718,JR HOLLAND FOODSERVICE,5499,Catering costs - provisions,50.74,0.00,50.74
"Regeneration, Economy and Growth",Development and Housing,031576,B& B - Temp Accom,Supplies and Services,364320,Grants to Voluntary Organisations,08-Sep-2021,000007667943854,TOAST LETTINGS,7011,Accommodation assistance,425.00,0.00,425.00
"Regeneration, Economy and Growth",Development and Housing,031576,B& B - Temp Accom,Supplies and Services,364320,Grants to Voluntary Organisations,08-Sep-2021,000007667943858,TOAST LETTINGS,7011,Accommodation assistance,425.00,0.00,425.00
Children and Young Peoples Services,Head of Childrens Social Care,085352,New Childrens Home (previously Tow Law),Employees,040149,Recruitment Instruction and Training,08-Sep-2021,000007667943878,VIRTUAL COLLEGE LIMITE,8299,Training-all costs,18.00,0.00,18.00
Neighbourhoods and Climate Change,Partnerships & Community Engagement Div.,060472,Syrian Vulnerable Persons Scheme,Supplies and Services,324117,Provisions E324,08-Sep-2021,000007667943912,LEBANEAT,5812,Catering costs - provisions,32.26,0.00,32.26
Children and Young Peoples Services,Head of Childrens Social Care,085551,Short Break Services-Park Hse Sher,Supplies and Services,324117,Provisions E324,08-Sep-2021,000007667944002,J FREEMAN & SONS LTD,5499,Catering costs - provisions,293.11,0.00,293.11
Children and Young Peoples Services,Head of Childrens Social Care,085551,Short Break Services-Park Hse Sher,Supplies and Services,324117,Provisions E324,08-Sep-2021,000007667944008,JR HOLLAND FOODSERVICE,5499,Catering costs - provisions,285.99,0.00,285.99
Children and Young Peoples Services,Head of Childrens Social Care,085551,Short Break Services-Park Hse Sher,Supplies and Services,324117,Provisions E324,08-Sep-2021,000007667944010,JR HOLLAND FOODSERVICE,5499,Catering costs - provisions,286.00,0.00,286.00
Children and Young Peoples Services,Head of Childrens Social Care,085551,Short Break Services-Park Hse Sher,Supplies and Services,304999,Equipment and Materials,08-Sep-2021,000007667944014,HOME BARGAINS,5251,Misc equipment tools and materials,5.85,0.00,5.85
Children and Young Peoples Services,Head of Childrens Social Care,085551,Short Break Services-Park Hse Sher,Supplies and Services,324117,Provisions E324,08-Sep-2021,000007667944024,TESCO STORES 2371,5411,Catering costs - provisions,4.00,0.00,4.00
Neighbourhoods and Climate Change,Environmental Services,010367,C&G - South Grounds Maintenance,Supplies and Services,304999,Equipment and Materials,08-Sep-2021,000007667944192,BLACK & DECKER,5251,Misc equipment tools and materials,237.00,0.00,237.00
Neighbourhoods and Climate Change,Environmental Services,010367,C&G - South Grounds Maintenance,Supplies and Services,304999,Equipment and Materials,08-Sep-2021,000007667944194,Snowballs,5251,Misc equipment tools and materials,23.38,0.00,23.38
Neighbourhoods and Climate Change,Environmental Services,010900,Fleet - Meadowfield Fleet,Supplies and Services,304259,Equipment and Materials,08-Sep-2021,000007667944218,JAUPT,9399,Equipment-purchase and rental,252.00,0.00,252.00
Adult and Health Services,Head of Adults,055643,Hawthorn House LD Respite Unit,Supplies and Services,304403,Equipment and Materials,08-Sep-2021,000007667944258,AMZNMktplace,5999,Other consumables,269.97,45.00,224.97
"Regeneration, Economy and Growth",Corporate Property and Land,020041,Bldg Serv - Business Development - General,Transport,235057,Public Transport,08-Sep-2021,000007667944272,ARRIVA DURHAM COUNTY L,4131,Staff travelling,6.00,0.00,6.00
"Regeneration, Economy and Growth",Corporate Property and Land,020041,Bldg Serv - Business Development - General,Supplies and Services,348037,Subsistence E348,08-Sep-2021,000007667944278,COSTA COFFEE,5812,Subsistence,10.65,0.00,10.65
"Regeneration, Economy and Growth",Corporate Property and Land,020041,Bldg Serv - Business Development - General,Supplies and Services,348037,Subsistence E348,08-Sep-2021,000007667944284,PITCHER & PIANO,5813,Subsistence,4.56,0.76,3.80
"Regeneration, Economy and Growth",Corporate Property and Land,020041,Bldg Serv - Business Development - General,Supplies and Services,348037,Subsistence E348,08-Sep-2021,000007667944284 - 1,PITCHER & PIANO,5813,Subsistence,11.44,,11.44
Children and Young Peoples Services,Head of Childrens Social Care,085351,Framwellgate Moor CU,Supplies and Services,304403,Equipment and Materials,08-Sep-2021,000007667944416,AMZNMktplace,5999,Other consumables,53.95,9.00,44.95
Children and Young Peoples Services,Head of Childrens Social Care,085351,Framwellgate Moor CU,Supplies and Services,304403,Equipment and Materials,08-Sep-2021,000007667944422,AMZNMktplace,5999,Other consumables,35.98,6.00,29.98
Children and Young Peoples Services,Head of Childrens Social Care,085351,Framwellgate Moor CU,Supplies and Services,304403,Equipment and Materials,08-Sep-2021,000007667944426,AMZNMktplace,5999,Other consumables,79.98,13.34,66.64
"Regeneration, Economy and Growth",Corporate Property and Land,030691,Catering - Durham Dales Centre,Supplies and Services,324117,Provisions E324,08-Sep-2021,000007667944434,JR HOLLAND FOODSERVICE,5499,Catering costs - provisions,39.83,0.00,39.83
Adult and Health Services,Head of Adults,055643,Hawthorn House LD Respite Unit,Supplies and Services,324117,Provisions E324,08-Sep-2021,000007667944464,JR HOLLAND FOODSERVICE,5499,Catering costs - provisions,12.29,0.00,12.29
Adult and Health Services,Head of Adults,055643,Hawthorn House LD Respite Unit,Supplies and Services,324117,Provisions E324,08-Sep-2021,000007667944468,JR HOLLAND FOODSERVICE,5499,Catering costs - provisions,8.59,0.00,8.59
"Regeneration, Economy and Growth",Culture Sport and Tourism,054399,Local Delivery-Libraries,Supplies and Services,312011,Newspapers books and periodicals E312,08-Sep-2021,000007667944482,Amazon.co.uk TK85P5TC5,5969,Books-school library,11.68,0.00,11.68
Children and Young Peoples Services,Head of Childrens Social Care,085334,West Rainton Satelite Home,Supplies and Services,304999,Equipment and Materials,08-Sep-2021,000007667944544,HOME BARGAINS,5251,Misc equipment tools and materials,7.34,0.00,7.34
Children and Young Peoples Services,Head of Childrens Social Care,085334,West Rainton Satelite Home,Supplies and Services,304999,Equipment and Materials,08-Sep-2021,000007667944552,HOME BARGAINS,5251,Misc equipment tools and materials,80.48,0.00,80.48
Resources BK0010,Procurement Sales & Business Services,065506,Business Support - Green Lane,Supplies and Services,304403,Equipment and Materials,08-Sep-2021,000007667944564,AMZNMktplace,5999,Other consumables,24.89,4.15,20.74
Resources BK0010,Digital and Customer Services,065335,School Services - Implementations,Supplies and Services,304639,Equipment and Materials,08-Sep-2021,000007667944594,AMZNMktplace,5999,Technicians-supplies,16.58,2.76,13.82
"Regeneration, Economy and Growth",Culture Sport and Tourism,054235,Bishop Auckland Town Hall Cafe,Supplies and Services,324117,Provisions E324,08-Sep-2021,000007667944718,JR HOLLAND FOODSERVICE,5499,Catering costs - provisions,2.35,0.00,2.35
"Regeneration, Economy and Growth",Culture Sport and Tourism,054235,Bishop Auckland Town Hall Cafe,Supplies and Services,324117,Provisions E324,08-Sep-2021,000007667944728,JR HOLLAND FOODSERVICE,5499,Catering costs - provisions,266.06,0.00,266.06
Children and Young Peoples Services,Head of Childrens Social Care,085334,West Rainton Satelite Home,Employees,040149,Recruitment Instruction and Training,08-Sep-2021,000007667944824,VIRTUAL COLLEGE LIMITE,8299,Training-all costs,18.00,0.00,18.00
Neighbourhoods and Climate Change,Environmental Services,010301,C&G - North Grounds Maintenance,Supplies and Services,304403,Equipment and Materials,08-Sep-2021,000007667944836,BESCOL,5231,Other consumables,98.80,0.00,98.80
Children and Young Peoples Services,Head of Early Help Inclusion & Vulnerable Children.,085801,CDYJS - Support,Supplies and Services,304403,Equipment and Materials,08-Sep-2021,000007667944848,AMZNMKTPLACE AMAZON.CO,5999,Other consumables,89.95,15.00,74.95
Children and Young Peoples Services,Head of Early Help Inclusion & Vulnerable Children.,085801,CDYJS - Support,Supplies and Services,304403,Equipment and Materials,08-Sep-2021,000007667944854,AMZNMKTPLACE AMAZON.CO,5999,Other consumables,9.90,1.66,8.24
Children and Young Peoples Services,Head of Early Help Inclusion & Vulnerable Children.,085801,CDYJS - Support,Supplies and Services,304403,Equipment and Materials,08-Sep-2021,000007667944858,AMZNMKTPLACE AMAZON.CO,5999,Other consumables,17.98,3.00,14.98
Children and Young Peoples Services,Head of Childrens Social Care,085332,Middlestone Moor CU,Transport,235057,Public Transport,08-Sep-2021,000007667945012,ARRIVA UK BUS,4131,Staff travelling,14.80,0.00,14.80
"Regeneration, Economy and Growth",Culture Sport and Tourism,054233,Bishop Auckland Town Hall Library,Supplies and Services,324117,Provisions E324,08-Sep-2021,000007667945058,WILKO RETAIL LIMITED,5399,Catering costs - provisions,19.75,0.00,19.75
Resources BK0010,Resources Management CK0450,069000,Resources Management 069000,Supplies and Services,304259,Equipment and Materials,08-Sep-2021,000007667945144,APPLE.COM/BILL,5735,Equipment-purchase and rental,0.79,0.00,0.79
Resources BK0010,Finance & Transactional Services,065162,Resources and Regeneration Finance,Supplies and Services,372009,Subscriptions E372,08-Sep-2021,000007667945164,CREATIVE_FED,8699,Subscriptions 372009,25.00,0.00,25.00
Adult and Health Services,Head of Adults,055310,Positive Journeys (Tudhoe),Supplies and Services,324117,Provisions E324,08-Sep-2021,000007667945182,ASDA STORES LTD,5411,Catering costs - provisions,1.20,0.00,1.20
"Regeneration, Economy and Growth",Corporate Property and Land,021235,Catering - Wharton Park,Supplies and Services,324117,Provisions E324,08-Sep-2021,000007667945230,JR HOLLAND FOODSERVICE,5499,Catering costs - provisions,20.02,0.00,20.02
Children and Young Peoples Services,Head of Childrens Social Care,085341,High Etherley Satelite Home,Supplies and Services,348037,Subsistence E348,08-Sep-2021,000007667945240,SUPREME ICE CREAM,5814,Subsistence,17.30,0.00,17.30
Adult and Health Services,Head of Adults,055309,Peterlee Pathways,Supplies and Services,304403,Equipment and Materials,08-Sep-2021,000007667945298,AMZNMKTPLACE AMAZON.CO,5999,Other consumables,3.25,0.54,2.71
Adult and Health Services,Head of Adults,055309,Peterlee Pathways,Supplies and Services,304403,Equipment and Materials,08-Sep-2021,000007667945302,AMZNMKTPLACE AMAZON.CO,5999,Other consumables,14.45,2.41,12.04
Adult and Health Services,Head of Adults,055309,Peterlee Pathways,Supplies and Services,384999,Miscellaneous Expenses,08-Sep-2021,000007667945312,Amazon.co.uk 2I8NR1JH4,5969,Other expenses,34.00,5.68,28.32
Adult and Health Services,Head of Adults,055309,Peterlee Pathways,Supplies and Services,384999,Miscellaneous Expenses,08-Sep-2021,000007667945316,Amazon.co.uk 431HG5C95,5969,Other expenses,4.00,0.67,3.33
Children and Young Peoples Services,Head of Early Help Inclusion & Vulnerable Children.,088113,Seaham  0-19 Community Family Hub,Supplies and Services,324117,Provisions E324,08-Sep-2021,000007667945414,B&M 681 - DURHAM,5399,Catering costs - provisions,18.28,0.00,18.28
"Regeneration, Economy and Growth",Development and Housing,030771,Durham Advance Flexible Fund,Supplies and Services,304999,Equipment and Materials,08-Sep-2021,000007667945444,PAYPAL YTATRAINING,5251,Misc equipment tools and materials,500.00,0.00,500.00
Children and Young Peoples Services,Head of Childrens Social Care,085333,Coxhoe Satelite Home,Supplies and Services,324117,Provisions E324,08-Sep-2021,000007667945452,ASDA STORES LTD 4313,5411,Catering costs - provisions,19.95,0.00,19.95
"Regeneration, Economy and Growth",Development and Housing,030770,Durham Advance,Supplies and Services,348037,Subsistence E348,08-Sep-2021,000007667945514,COSTA COFFEE,5814,Subsistence,1.26,0.21,1.05
"Regeneration, Economy and Growth",Development and Housing,030770,Durham Advance,Supplies and Services,348037,Subsistence E348,08-Sep-2021,000007667945514 - 1,COSTA COFFEE,5814,Subsistence,3.19,,3.19
Children and Young Peoples Services,Head of Early Help Inclusion & Vulnerable Children.,088107,Ferryhill & Newton Aycliffe 0-19 Community Family Hub,Supplies and Services,384302,Miscellaneous Expenses,08-Sep-2021,000007667945576,AMZNMktplace,5999,Activity expenses,13.99,2.33,11.66
Children and Young Peoples Services,Head of Childrens Social Care,085612,Families First Consett,Supplies and Services,364301,Grants to Voluntary Organisations,08-Sep-2021,000007671541266,ARGOS LTD,5310,Hardship,183.95,0.00,183.95
"Regeneration, Economy and Growth",Culture Sport and Tourism,030705,Visit County Durham 030705,Supplies and Services,332047,Printing Stationery and Gen Off Exps,08-Sep-2021,000007671541296,AMZNMKTPLACE AMAZON.CO,5999,Stationery,26.80,0.00,26.80
Neighbourhoods and Climate Change,Environmental Services,031202,North Pennines - Peatscapes,Supplies and Services,304259,Equipment and Materials,08-Sep-2021,000007671541342,YORKSURVEY.CO.UK,8911,Equipment-purchase and rental,201.24,0.00,201.24
Children and Young Peoples Services,Head of Early Help Inclusion & Vulnerable Children.,085965,Barnard,Supplies and Services,304403,Equipment and Materials,08-Sep-2021,000007671541430,AMZNMKTPLACE AMAZON.CO,5999,Other consumables,22.96,3.84,19.12
Children and Young Peoples Services,Head of Early Help Inclusion & Vulnerable Children.,085957,Secure Management,Supplies and Services,304403,Equipment and Materials,08-Sep-2021,000007671541432,AMZNMKTPLACE AMAZON.CO,5999,Other consumables,34.66,5.79,28.87
Children and Young Peoples Services,Head of Childrens Social Care,085517,Supporting Solutions Service (Edge of Care),Supplies and Services,332047,Printing Stationery and Gen Off Exps,08-Sep-2021,000007671541498,ARGOS LTD,5310,Stationery,182.95,0.00,182.95
Children and Young Peoples Services,Head of Education and Skills,075021,DurhamWorks Progression and Learning,Supplies and Services,364301,Grants to Voluntary Organisations,08-Sep-2021,000007671541554,SCREWFIX DIRECT,5211,Hardship,203.82,33.97,169.85
Children and Young Peoples Services,Head of Education and Skills,075021,DurhamWorks Progression and Learning,Supplies and Services,364301,Grants to Voluntary Organisations,08-Sep-2021,000007671541554 - 1,SCREWFIX DIRECT,5211,Hardship,103.28,,103.28
Neighbourhoods and Climate Change,Environmental Services,010367,C&G - South Grounds Maintenance,Supplies and Services,304221,Equipment and Materials,08-Sep-2021,000007671541638,HOMEBASE LTD 822,5200,Direct materials,159.00,0.00,159.00
Children and Young Peoples Services,Head of Education and Skills,071802,Louisa Cent Nursery,Supplies and Services,324117,Provisions E324,08-Sep-2021,000007671541662,ALDI STORES,5411,Catering costs - provisions,11.78,0.00,11.78
"Regeneration, Economy and Growth",Corporate Property and Land,020041,Bldg Serv - Business Development - General,Supplies and Services,348037,Subsistence E348,08-Sep-2021,000007671541670,PIZZA EXPRESS 0841,5812,Subsistence,56.95,0.00,56.95
"Regeneration, Economy and Growth",Corporate Property and Land,020073,Bldg Serv - R&M Div 73 - Gas Servicing,Supplies and Services,372009,Subscriptions E372,08-Sep-2021,000007671541672,CAPITA GAS,8699,Subscriptions 372009,93.53,15.59,77.94
"Regeneration, Economy and Growth",Corporate Property and Land,020073,Bldg Serv - R&M Div 73 - Gas Servicing,Supplies and Services,372009,Subscriptions E372,08-Sep-2021,000007671541674,CAPITA GAS,8699,Subscriptions 372009,93.53,0.00,93.53
Children and Young Peoples Services,Head of Childrens Social Care,085351,Framwellgate Moor CU,Supplies and Services,324117,Provisions E324,08-Sep-2021,000007671541688,SAINSBURY`S S/MKT,5411,Catering costs - provisions,17.75,0.00,17.75
Children and Young Peoples Services,Head of Early Help Inclusion & Vulnerable Children.,088115,Young Parents Programme 088115,Supplies and Services,384302,Miscellaneous Expenses,08-Sep-2021,000007671541724,WWW.BEAMISH.ORG.UK,7922,Activity expenses,39.00,0.00,39.00
Children and Young Peoples Services,Head of Childrens Social Care,085363,LAC & Permanence Team 3,Supplies and Services,338045,Services,08-Sep-2021,000007671541726,Durham County CNCL,9399,Legal expenses 338045,11.00,0.00,11.00
Children and Young Peoples Services,Head of Childrens Social Care,085372,Young Peoples Service Team 2,Supplies and Services,338045,Services,08-Sep-2021,000007671541744,DVLA DRIVER ONLINE,9399,Legal expenses 338045,34.00,0.00,34.00
Neighbourhoods and Climate Change,Environmental Services,010301,C&G - North Grounds Maintenance,Supplies and Services,304221,Equipment and Materials,08-Sep-2021,000007671541792,SCREWFIX DIR LTD,5211,Direct materials,216.48,0.00,216.48
Children and Young Peoples Services,Head of Early Help Inclusion & Vulnerable Children.,085801,CDYJS - Support,Supplies and Services,304403,Equipment and Materials,08-Sep-2021,000007671541794,AMZNMKTPLACE AMAZON.CO,5999,Other consumables,11.90,1.98,9.92
Children and Young Peoples Services,Head of Early Help Inclusion & Vulnerable Children.,085801,CDYJS - Support,Supplies and Services,304403,Equipment and Materials,08-Sep-2021,000007671541796,AMZNMKTPLACE AMAZON.CO,5999,Other consumables,23.73,3.97,19.76
Neighbourhoods and Climate Change,Community Protection,011035,Consumer Protection 011035,Supplies and Services,338048,Services,08-Sep-2021,000007671541876,HMCOURTS-SERVICE.G,9222,Court costs 338048,60.00,0.00,60.00
Adult and Health Services,Head of Adults,055309,Peterlee Pathways,Supplies and Services,304403,Equipment and Materials,08-Sep-2021,000007671541880,AMZNMKTPLACE AMAZON.CO,5999,Other consumables,10.99,1.83,9.16
"Regeneration, Economy and Growth",Development and Housing,030771,Durham Advance Flexible Fund,Employees,040149,Recruitment Instruction and Training,08-Sep-2021,000007671541906,PREMIER INN,3811,Training-all costs,116.00,0.00,116.00
Children and Young Peoples Services,Head of Childrens Social Care,085333,Coxhoe Satelite Home,Supplies and Services,324117,Provisions E324,08-Sep-2021,000007671541908,SAINSBURY`S S/MKT,5411,Catering costs - provisions,30.97,0.00,30.97
Children and Young Peoples Services,Head of Early Help Inclusion & Vulnerable Children.,088107,Ferryhill & Newton Aycliffe 0-19 Community Family Hub,Supplies and Services,384302,Miscellaneous Expenses,08-Sep-2021,000007671541920,AMZNMKTPLACE AMAZON.CO,5999,Activity expenses,10.48,1.75,8.73
Children and Young Peoples Services,Head of Early Help Inclusion & Vulnerable Children.,088107,Ferryhill & Newton Aycliffe 0-19 Community Family Hub,Supplies and Services,384302,Miscellaneous Expenses,08-Sep-2021,000007671541922,AMZNMKTPLACE AMAZON.CO,5999,Activity expenses,30.77,0.00,30.77
Resources BK0010,Digital and Customer Services,070110,School Services - Man Info System (MIS) Support Team,Supplies and Services,342033,Computers and Communications,08-Sep-2021,000009742951615,WPMU DEV INCSUBFEE.COM,7372,Computer hardware,0.38,0.00,0.38
"Regeneration, Economy and Growth",Culture Sport and Tourism,054399,Local Delivery-Libraries,Supplies and Services,312011,Newspapers books and periodicals E312,08-Sep-2021,000009742952393,Amazon.co.uk VO17I3BG5,5969,Books-school library,46.05,0.00,46.05
Children and Young Peoples Services,Head of Childrens Social Care,085334,West Rainton Satelite Home,Supplies and Services,304403,Equipment and Materials,08-Sep-2021,000009742952641,AMZNMktplace,5999,Other consumables,31.49,0.00,31.49
Children and Young Peoples Services,Head of Early Help Inclusion & Vulnerable Children.,071449,Ferryhill One Point Hub,Supplies and Services,384985,Miscellaneous Expenses,08-Sep-2021,7667945110,LIDL GB HOUGHTON LE S,5411,Miscellaneous-special facilities,23.25,3.88,19.37
"Regeneration, Economy and Growth",Business Durham CL0850,030689,Inward Investment and Aftercare,Supplies and Services,342033,Computers and Communications,09-Sep-2021,000007667941992,AdRoll_EMEA,7372,Computer hardware,41.22,0.00,41.22
"Regeneration, Economy and Growth",Business Durham CL0850,030689,Inward Investment and Aftercare,Supplies and Services,342033,Computers and Communications,09-Sep-2021,000007667942002,AdRoll_EMEA,7372,Computer hardware,1.13,0.00,1.13
Children and Young Peoples Services,Head of Early Help Inclusion & Vulnerable Children.,085957,Secure Management,Supplies and Services,304403,Equipment and Materials,09-Sep-2021,000007667942128,AMZNMktplace,5999,Other consumables,41.98,7.00,34.98
"Regeneration, Economy and Growth",Culture Sport and Tourism,054233,Bishop Auckland Town Hall Library,Supplies and Services,304403,Equipment and Materials,09-Sep-2021,000007667942816,AMZNMktplace,5999,Other consumables,239.85,40.05,199.80
Children and Young Peoples Services,Head of Early Help Inclusion & Vulnerable Children.,085957,Secure Management,Supplies and Services,384302,Miscellaneous Expenses,09-Sep-2021,000007667944654,Microsoft Ultimate 1 M,5816,Activity expenses,10.99,1.83,9.16
"Regeneration, Economy and Growth",Business Durham CL0850,030689,Inward Investment and Aftercare,Supplies and Services,304403,Equipment and Materials,09-Sep-2021,000007671541256,QR-CODE-GENERATOR.COM,5734,Other consumables,129.07,0.00,129.07
"Regeneration, Economy and Growth",Business Durham CL0850,030689,Inward Investment and Aftercare,Supplies and Services,304999,Equipment and Materials,09-Sep-2021,000007671541258,MAILCHIMP MONTHLY,5968,Misc equipment tools and materials,76.93,0.00,76.93
"Regeneration, Economy and Growth",Culture Sport and Tourism,011215,Museums Heritage & Collections 011215,Supplies and Services,304259,Equipment and Materials,09-Sep-2021,000007671541292,AMZNMktplace,5999,Equipment-purchase and rental,29.96,5.00,24.96
Children and Young Peoples Services,Head of Education and Skills,078100,Curric and Professional Development 078100,Supplies and Services,304403,Equipment and Materials,09-Sep-2021,000007671541314,ADOBE PRODUCTS TRIAL,5734,Other consumables,25.28,0.00,25.28
Children and Young Peoples Services,Head of Childrens Social Care,085357,LAC Bespoke Placements,Transport,235057,Public Transport,09-Sep-2021,000007671541320,Hotel on Booking.com,7011,Staff travelling,275.50,0.00,275.50
Children and Young Peoples Services,Head of Childrens Social Care,085341,High Etherley Satelite Home,Supplies and Services,384237,Miscellaneous Expenses,09-Sep-2021,000007671541336,JUMP 360 NEWCASTLE ONL,7999,Recreational exps outings parties,13.00,0.00,13.00
Children and Young Peoples Services,Head of Childrens Social Care,085341,High Etherley Satelite Home,Supplies and Services,384237,Miscellaneous Expenses,09-Sep-2021,000007671541338,JUMP 360 NEWCASTLE SER,7999,Recreational exps outings parties,3.25,0.00,3.25
Children and Young Peoples Services,Head of Childrens Social Care,085341,High Etherley Satelite Home,Supplies and Services,384237,Miscellaneous Expenses,09-Sep-2021,000007671541340,JUMP 360 NEWCASTLE SER,7999,Recreational exps outings parties,11.20,0.00,11.20
Children and Young Peoples Services,Head of Early Help Inclusion & Vulnerable Children.,088105,BA/BC/Crook 0-19 Community Family Hub,Supplies and Services,304259,Equipment and Materials,09-Sep-2021,000007671541378,AMZNMKTPLACE AMAZON.CO,5999,Equipment-purchase and rental,21.80,3.64,18.16
Children and Young Peoples Services,Head of Childrens Social Care,085380,Operations Manager LAC Resources,Supplies and Services,304259,Equipment and Materials,09-Sep-2021,000007671541380,AUST FEDERAL POLICE,9399,Equipment-purchase and rental,22.69,0.00,22.69
"Regeneration, Economy and Growth",Culture Sport and Tourism,054233,Bishop Auckland Town Hall Library,Supplies and Services,304403,Equipment and Materials,09-Sep-2021,000007671541384,AMZNMKTPLACE AMAZON.CO,5999,Other consumables,101.83,17.00,84.83
"Regeneration, Economy and Growth",Culture Sport and Tourism,054233,Bishop Auckland Town Hall Library,Supplies and Services,304403,Equipment and Materials,09-Sep-2021,000007671541386,AMZNMKTPLACE AMAZON.CO,5999,Other consumables,147.90,24.65,123.25
"Regeneration, Economy and Growth",Culture Sport and Tourism,054233,Bishop Auckland Town Hall Library,Supplies and Services,304403,Equipment and Materials,09-Sep-2021,000007671541386 - 1,AMZNMKTPLACE AMAZON.CO,5999,Other consumables,0.34,,0.34
"Regeneration, Economy and Growth",Culture Sport and Tourism,054233,Bishop Auckland Town Hall Library,Supplies and Services,304403,Equipment and Materials,09-Sep-2021,000007671541388,AMZNMktplace,5999,Other consumables,198.85,33.14,165.71
"Regeneration, Economy and Growth",Culture Sport and Tourism,054233,Bishop Auckland Town Hall Library,Supplies and Services,304403,Equipment and Materials,09-Sep-2021,000007671541390,AMZNMktplace,5999,Other consumables,68.54,11.42,57.12
"Regeneration, Economy and Growth",Culture Sport and Tourism,054233,Bishop Auckland Town Hall Library,Supplies and Services,304403,Equipment and Materials,09-Sep-2021,000007671541392,AMZNMktplace,5999,Other consumables,32.22,5.37,26.85
"Regeneration, Economy and Growth",Culture Sport and Tourism,054233,Bishop Auckland Town Hall Library,Supplies and Services,304403,Equipment and Materials,09-Sep-2021,000007671541392 - 1,AMZNMktplace,5999,Other consumables,0.03,,0.03
"Regeneration, Economy and Growth",Culture Sport and Tourism,054233,Bishop Auckland Town Hall Library,Supplies and Services,324117,Provisions E324,09-Sep-2021,000007671541394,ASDA STORES,5411,Catering costs - provisions,61.17,0.00,61.17
"Regeneration, Economy and Growth",Development and Housing,030777,FLEX,Third Party Payments,430100,Rendered by Private Contractors,09-Sep-2021,000007671541398,verifyonline.co.uk,7399,Payments to sub-contractors,16.80,2.80,14.00
"Regeneration, Economy and Growth",Development and Housing,030777,FLEX,Supplies and Services,342033,Computers and Communications,09-Sep-2021,000007671541400,crbdirect.org.uk,7372,Computer hardware,49.98,8.33,41.65
"Regeneration, Economy and Growth",Development and Housing,030777,FLEX,Supplies and Services,342033,Computers and Communications,09-Sep-2021,000007671541400 - 1,crbdirect.org.uk,7372,Computer hardware,23.02,,23.02
"Regeneration, Economy and Growth",Culture Sport and Tourism,054812,Gala Theatre - Catering etc,Supplies and Services,324117,Provisions E324,09-Sep-2021,000007671541420,JR HOLLAND FOODSERVICE,5499,Catering costs - provisions,2.31,0.00,2.31
"Regeneration, Economy and Growth",Culture Sport and Tourism,054812,Gala Theatre - Catering etc,Supplies and Services,324117,Provisions E324,09-Sep-2021,000007671541422,JR HOLLAND FOODSERVICE,5499,Catering costs - provisions,61.14,0.00,61.14
Children and Young Peoples Services,Head of Early Help Inclusion & Vulnerable Children.,085965,Barnard,Supplies and Services,328041,Clothing uniforms and laundry E328,09-Sep-2021,000007671541428,Mainline Menswear Ltd,5611,Clothing uniforms and laundry,100.95,0.00,100.95
Children and Young Peoples Services,Head of Early Help Inclusion & Vulnerable Children.,085957,Secure Management,Supplies and Services,304403,Equipment and Materials,09-Sep-2021,000007671541434,AMZNMktplace,5999,Other consumables,89.98,15.00,74.98
Neighbourhoods and Climate Change,Environmental Services,010367,C&G - South Grounds Maintenance,Supplies and Services,304403,Equipment and Materials,09-Sep-2021,000007671541458,TIMPSON LTD,5999,Other consumables,31.00,0.00,31.00
Children and Young Peoples Services,Head of Education and Skills,071732,Dean Bank Childcare,Supplies and Services,304259,Equipment and Materials,09-Sep-2021,000007671541484,Amazon Music B46IN9CJ5,5735,Equipment-purchase and rental,14.99,0.00,14.99
Children and Young Peoples Services,Head of Early Help Inclusion & Vulnerable Children.,085962,Aycliffe Secure - Durham,Supplies and Services,328041,Clothing uniforms and laundry E328,09-Sep-2021,000007671541494,ROF59,7996,Clothing uniforms and laundry,17.00,0.00,17.00
"Regeneration, Economy and Growth",Business Durham CL0850,030714,Salvus House,Supplies and Services,384999,Miscellaneous Expenses,09-Sep-2021,000007671541530,Amazon.co.uk 2J3SB0MB5,5969,Other expenses,21.14,0.00,21.14
Children and Young Peoples Services,Head of Early Help Inclusion & Vulnerable Children.,085957,Secure Management,Transfer Payments,515002,Social Services Clients,09-Sep-2021,000007671541540,SPORTSDIRECT.COM,5691,Pocket money,74.99,0.00,74.99
Neighbourhoods and Climate Change,Technical Services CM0300,018700,Highways Services - Management and Administration,Third Party Payments,430100,Rendered by Private Contractors,09-Sep-2021,000007671541556,CHAS 2013 LTD,7399,Payments to sub-contractors,"1,750.80",0.00,1750.80
Resources BK0010,People & Talent Management,010984,Training and Development,Supplies and Services,304259,Equipment and Materials,09-Sep-2021,000007671541558,DVSA,9399,Equipment-purchase and rental,81.00,0.00,81.00
"Regeneration, Economy and Growth",Corporate Property and Land,021234,Catering - Locomotion,Supplies and Services,324117,Provisions E324,09-Sep-2021,000007671541566,JR HOLLAND FOODSERVICE,5499,Catering costs - provisions,43.18,0.00,43.18
"Regeneration, Economy and Growth",Corporate Property and Land,021234,Catering - Locomotion,Supplies and Services,324117,Provisions E324,09-Sep-2021,000007671541568,JR HOLLAND FOODSERVICE,5499,Catering costs - provisions,45.28,0.00,45.28
"Regeneration, Economy and Growth",Corporate Property and Land,021234,Catering - Locomotion,Supplies and Services,324117,Provisions E324,09-Sep-2021,000007671541570,JR HOLLAND FOODSERVICE,5499,Catering costs - provisions,72.08,0.00,72.08
"Regeneration, Economy and Growth",Corporate Property and Land,021234,Catering - Locomotion,Supplies and Services,324117,Provisions E324,09-Sep-2021,000007671541572,JR HOLLAND FOODSERVICE,5499,Catering costs - provisions,18.30,0.00,18.30
"Regeneration, Economy and Growth",Development and Housing,031576,B& B - Temp Accom,Supplies and Services,364320,Grants to Voluntary Organisations,09-Sep-2021,000007671541574,TRAVELODGE,3615,Accommodation assistance,406.45,0.00,406.45
Children and Young Peoples Services,Head of Childrens Social Care,085622,Families First Ferryhill,Supplies and Services,338045,Services,09-Sep-2021,000007671541576,HM PASSPORT OFFICE,9399,Legal expenses 338045,127.00,0.00,127.00
"Regeneration, Economy and Growth",Development and Housing,031581,Prevention Fund,Supplies and Services,384999,Miscellaneous Expenses,09-Sep-2021,000007671541580,WWW.EASTDURHAMHOMES.CO,9399,Other expenses,139.15,0.00,139.15
Neighbourhoods and Climate Change,Partnerships & Community Engagement Div.,060472,Syrian Vulnerable Persons Scheme,Supplies and Services,324117,Provisions E324,09-Sep-2021,000007671541594,ASDA GROCERIES ONLINE,5411,Catering costs - provisions,0.25,0.00,0.25
Neighbourhoods and Climate Change,Partnerships & Community Engagement Div.,060472,Syrian Vulnerable Persons Scheme,Supplies and Services,324117,Provisions E324,09-Sep-2021,000007671541596,ASDA GROCERIES ONLINE,5411,Catering costs - provisions,122.32,0.00,122.32
Resources BK0010,Legal & Democratic Services,060131,County Records,Supplies and Services,304221,Equipment and Materials,09-Sep-2021,000007671541602,PP SOURCECHEMI,5169,Direct materials,5.30,0.00,5.30
Children and Young Peoples Services,Head of Childrens Social Care,085551,Short Break Services-Park Hse Sher,Supplies and Services,324117,Provisions E324,09-Sep-2021,000007671541608,ASDA STORES,5411,Catering costs - provisions,37.50,0.00,37.50
Children and Young Peoples Services,Head of Childrens Social Care,085341,High Etherley Satelite Home,Supplies and Services,324117,Provisions E324,09-Sep-2021,000007671541628,LIDL GB SPENNYMOOR,5411,Catering costs - provisions,16.19,0.00,16.19
Children and Young Peoples Services,Head of Education and Skills,071802,Louisa Cent Nursery,Supplies and Services,304403,Equipment and Materials,09-Sep-2021,000007671541664,AMZNMktplace,5999,Other consumables,15.85,2.65,13.20
Children and Young Peoples Services,Head of Education and Skills,071802,Louisa Cent Nursery,Supplies and Services,304403,Equipment and Materials,09-Sep-2021,000007671541666,AMZNMktplace,5999,Other consumables,4.99,0.83,4.16
Children and Young Peoples Services,Head of Education and Skills,071802,Louisa Cent Nursery,Supplies and Services,304403,Equipment and Materials,09-Sep-2021,000007671541668,AMZNMktplace,5999,Other consumables,5.99,1.00,4.99
Children and Young Peoples Services,Head of Childrens Social Care,085333,Coxhoe Satelite Home,Supplies and Services,344033,Telephones,09-Sep-2021,000007671541676,giffgaff,4814,Telephones general-all costs,20.00,0.00,20.00
Children and Young Peoples Services,Head of Education and Skills,078554,Adult Skills-Main,Supplies and Services,304403,Equipment and Materials,09-Sep-2021,000007671541684,AMZNMktplace,5999,Other consumables,78.15,13.03,65.12
Children and Young Peoples Services,Head of Education and Skills,078554,Adult Skills-Main,Supplies and Services,304403,Equipment and Materials,09-Sep-2021,000007671541686,AMZNMktplace,5999,Other consumables,156.31,26.06,130.25
Children and Young Peoples Services,Head of Childrens Social Care,085351,Framwellgate Moor CU,Supplies and Services,304403,Equipment and Materials,09-Sep-2021,000007671541690,AMZNMktplace,5999,Other consumables,15.99,0.00,15.99
Children and Young Peoples Services,Head of Childrens Social Care,085351,Framwellgate Moor CU,Supplies and Services,304403,Equipment and Materials,09-Sep-2021,000007671541692,AMZNMktplace,5999,Other consumables,8.95,1.49,7.46
Children and Young Peoples Services,Head of Childrens Social Care,085351,Framwellgate Moor CU,Supplies and Services,304403,Equipment and Materials,09-Sep-2021,000007671541694,AMZNMktplace,5999,Other consumables,15.99,2.67,13.32
"Regeneration, Economy and Growth",Corporate Property and Land,030691,Catering - Durham Dales Centre,Premises,145009,Cleaning and Domestic Supplies,09-Sep-2021,000007671541698,ALLIANCE DISPOSABLES L,2842,Other cleaning and domestic costs,-22.80,-3.80,-19.00
Children and Young Peoples Services,Head of Childrens Social Care,085633,Families First Chester-Le-Street,Supplies and Services,364340,Grants to Voluntary Organisations,09-Sep-2021,000007671541706,WWW.GONORTHEAST.CO.UK,4111,Contact expenses,25.00,0.00,25.00
Children and Young Peoples Services,Head of Childrens Social Care,085633,Families First Chester-Le-Street,Supplies and Services,364340,Grants to Voluntary Organisations,09-Sep-2021,000007671541708,WWW.GONORTHEAST.CO.UK,4111,Contact expenses,5.30,0.00,5.30
Children and Young Peoples Services,Head of Childrens Social Care,085633,Families First Chester-Le-Street,Supplies and Services,364340,Grants to Voluntary Organisations,09-Sep-2021,000007671541710,WWW.GONORTHEAST.CO.UK,4111,Contact expenses,5.30,0.00,5.30
Children and Young Peoples Services,Head of Childrens Social Care,085633,Families First Chester-Le-Street,Supplies and Services,364340,Grants to Voluntary Organisations,09-Sep-2021,000007671541712,WWW.GONORTHEAST.CO.UK,4111,Contact expenses,5.30,0.00,5.30
Children and Young Peoples Services,Head of Childrens Social Care,085633,Families First Chester-Le-Street,Supplies and Services,364340,Grants to Voluntary Organisations,09-Sep-2021,000007671541714,WWW.GONORTHEAST.CO.UK,4111,Contact expenses,5.30,0.00,5.30
Resources BK0010,Digital and Customer Services,065335,School Services - Implementations,Supplies and Services,304639,Equipment and Materials,09-Sep-2021,000007671541728,AMZNMktplace,5999,Technicians-supplies,6.56,1.09,5.47
Resources BK0010,Digital and Customer Services,065335,School Services - Implementations,Supplies and Services,304639,Equipment and Materials,09-Sep-2021,000007671541730,AMZNMktplace,5999,Technicians-supplies,6.56,1.09,5.47
Children and Young Peoples Services,Head of Childrens Social Care,085378,Young Persons Service Team 3,Supplies and Services,338045,Services,09-Sep-2021,000007671541746,HM PASSPORT OFFICE,9399,Legal expenses 338045,75.50,0.00,75.50
Children and Young Peoples Services,Head of Early Help Inclusion & Vulnerable Children.,088111,Easington & Peterlee 0-19 Community Family Hub,Supplies and Services,324117,Provisions E324,09-Sep-2021,000007671541748,ASDA STORES LTD,5411,Catering costs - provisions,47.53,0.00,47.53
"Regeneration, Economy and Growth",Culture Sport and Tourism,054235,Bishop Auckland Town Hall Cafe,Premises,145009,Cleaning and Domestic Supplies,09-Sep-2021,000007671541752,ALLIANCE DISPOSABLES L,2842,Other cleaning and domestic costs,250.66,41.78,208.88
"Regeneration, Economy and Growth",Culture Sport and Tourism,054235,Bishop Auckland Town Hall Cafe,Supplies and Services,324117,Provisions E324,09-Sep-2021,000007671541754,JR HOLLAND FOODSERVICE,5499,Catering costs - provisions,64.40,0.00,64.40
"Regeneration, Economy and Growth",Culture Sport and Tourism,054235,Bishop Auckland Town Hall Cafe,Supplies and Services,324117,Provisions E324,09-Sep-2021,000007671541756,JR HOLLAND FOODSERVICE,5499,Catering costs - provisions,-14.85,0.00,-14.85
"Regeneration, Economy and Growth",Corporate Property and Land,021324,Catering - Meadowfield,Supplies and Services,324117,Provisions E324,09-Sep-2021,000007671541764,JR HOLLAND FOODSERVICE,5499,Catering costs - provisions,64.56,0.00,64.56
Children and Young Peoples Services,Head of Childrens Social Care,085332,Middlestone Moor CU,Supplies and Services,304999,Equipment and Materials,09-Sep-2021,000007671541786,SAVERS HEALTH & BEAUTY,5912,Misc equipment tools and materials,9.94,0.00,9.94
Children and Young Peoples Services,Head of Early Help Inclusion & Vulnerable Children.,085801,CDYJS - Support,Supplies and Services,304221,Equipment and Materials,09-Sep-2021,000007671541798,TURNERS RETREAT,5211,Direct materials,35.23,0.00,35.23
Children and Young Peoples Services,Head of Early Help Inclusion & Vulnerable Children.,085801,CDYJS - Support,Supplies and Services,304403,Equipment and Materials,09-Sep-2021,000007671541800,AMZNMKTPLACE AMAZON.CO,5999,Other consumables,31.65,5.29,26.36
Children and Young Peoples Services,Head of Early Help Inclusion & Vulnerable Children.,085801,CDYJS - Support,Supplies and Services,304403,Equipment and Materials,09-Sep-2021,000007671541802,AMZNMktplace,5999,Other consumables,28.87,4.81,24.06
Children and Young Peoples Services,Head of Early Help Inclusion & Vulnerable Children.,085801,CDYJS - Support,Supplies and Services,304403,Equipment and Materials,09-Sep-2021,000007671541804,AMZNMktplace,5999,Other consumables,59.60,9.94,49.66
Children and Young Peoples Services,Head of Childrens Social Care,085380,Operations Manager LAC Resources,Supplies and Services,304403,Equipment and Materials,09-Sep-2021,000007671541832,HALL HILL FARM SHO,5947,Other consumables,21.70,0.00,21.70
Children and Young Peoples Services,Head of Childrens Social Care,085380,Operations Manager LAC Resources,Supplies and Services,304999,Equipment and Materials,09-Sep-2021,000007671541834,HALL HILL FARM ENTERPR,7929,Misc equipment tools and materials,45.95,0.00,45.95
"Regeneration, Economy and Growth",Culture Sport and Tourism,054233,Bishop Auckland Town Hall Library,Supplies and Services,324117,Provisions E324,09-Sep-2021,000007671541836,WILKO RETAIL LIMITED,5399,Catering costs - provisions,9.75,0.00,9.75
"Regeneration, Economy and Growth",Development and Housing,030776,LINKCD Flexible Fund,Supplies and Services,324117,Provisions E324,09-Sep-2021,000007671541850,TESCO STORES 2371,5411,Catering costs - provisions,4.40,0.00,4.40
"Regeneration, Economy and Growth",Development and Housing,030776,LINKCD Flexible Fund,Supplies and Services,324117,Provisions E324,09-Sep-2021,000007671541852,TESCO STORES 2371,5411,Catering costs - provisions,3.30,0.00,3.30
"Regeneration, Economy and Growth",Communications Management,060270,Communications and Marketing,Supplies and Services,336005,Advertising E336,09-Sep-2021,000007671541866,LINKEDIN IRELAND,7311,Advertising other than for staff,12.00,0.00,12.00
"Regeneration, Economy and Growth",Communications Management,060270,Communications and Marketing,Supplies and Services,336005,Advertising E336,09-Sep-2021,000007671541868,FACEBK W6RHF635B2,7311,Advertising other than for staff,500.00,0.00,500.00
Adult and Health Services,Head of Adults,055309,Peterlee Pathways,Supplies and Services,304403,Equipment and Materials,09-Sep-2021,000007671541882,AMZNMKTPLACE AMAZON.CO,5999,Other consumables,3.06,0.51,2.55
Adult and Health Services,Head of Adults,055309,Peterlee Pathways,Supplies and Services,304403,Equipment and Materials,09-Sep-2021,000007671541882 - 1,AMZNMKTPLACE AMAZON.CO,5999,Other consumables,14.12,,14.12
Adult and Health Services,Head of Adults,055309,Peterlee Pathways,Supplies and Services,304403,Equipment and Materials,09-Sep-2021,000007671541884,AMZNMktplace,5999,Other consumables,6.95,1.16,5.79
Adult and Health Services,Head of Adults,055309,Peterlee Pathways,Supplies and Services,304999,Equipment and Materials,09-Sep-2021,000007671541886,HOME BARGAINS PETERLEE,5251,Misc equipment tools and materials,6.91,1.15,5.76
Children and Young Peoples Services,Head of Early Help Inclusion & Vulnerable Children.,088107,Ferryhill & Newton Aycliffe 0-19 Community Family Hub,Supplies and Services,384302,Miscellaneous Expenses,09-Sep-2021,000007671541924,AMZNMKTPLACE AMAZON.CO,5999,Activity expenses,2.75,0.46,2.29
Resources BK0010,Digital and Customer Services,065256,Nodes/Circuits,Supplies and Services,304221,Equipment and Materials,09-Sep-2021,000007676496444,SCREWFIX DIRECT,5211,Direct materials,249.99,0.00,249.99
"Regeneration, Economy and Growth",Development and Housing,030776,LINKCD Flexible Fund,Supplies and Services,304403,Equipment and Materials,09-Sep-2021,000007676496754,AMZNMKTPLACE AMAZON.CO,5999,Other consumables,25.95,4.33,21.62
"Regeneration, Economy and Growth",Development and Housing,030776,LINKCD Flexible Fund,Supplies and Services,304403,Equipment and Materials,09-Sep-2021,000007676496758,AMZNMKTPLACE AMAZON.CO,5999,Other consumables,44.90,7.48,37.42
"Regeneration, Economy and Growth",Corporate Property and Land,021242,Catering - County Hall,Supplies and Services,324117,Provisions E324,09-Sep-2021,000007676496796,BATLEYS PERTH,5300,Catering costs - provisions,336.90,56.15,280.75
"Regeneration, Economy and Growth",Corporate Property and Land,021242,Catering - County Hall,Supplies and Services,324117,Provisions E324,09-Sep-2021,000007676496796 - 1,BATLEYS PERTH,5300,Catering costs - provisions,40.92,,40.92
Children and Young Peoples Services,Head of Early Help Inclusion & Vulnerable Children.,085955,Auckland,Supplies and Services,308013,Furniture,09-Sep-2021,000007676497430,Dunelm,5712,Curtains and carpets,349.00,0.00,349.00
Children and Young Peoples Services,Head of Early Help Inclusion & Vulnerable Children.,085955,Auckland,Supplies and Services,308013,Furniture,09-Sep-2021,000007676497434,Dunelm,5712,Curtains and carpets,79.00,0.00,79.00
Children and Young Peoples Services,Head of Early Help Inclusion & Vulnerable Children.,085955,Auckland,Supplies and Services,308013,Furniture,09-Sep-2021,000007676497440,Dunelm,5712,Curtains and carpets,125.00,0.00,125.00
Neighbourhoods and Climate Change,Environmental Services,011060,C&G - Hardwick Park Catering,Supplies and Services,324117,Provisions E324,09-Sep-2021,000007676497518,BATLEYS PERTH,5300,Catering costs - provisions,61.32,10.22,51.10
Neighbourhoods and Climate Change,Environmental Services,011060,C&G - Hardwick Park Catering,Supplies and Services,324117,Provisions E324,09-Sep-2021,000007676497518 - 1,BATLEYS PERTH,5300,Catering costs - provisions,147.99,,147.99
Children and Young Peoples Services,Head of Education and Skills,075024,Durham Directions,Supplies and Services,364301,Grants to Voluntary Organisations,09-Sep-2021,000007676497582,SCREWFIX DIRECT,5211,Hardship,14.94,2.49,12.45
Children and Young Peoples Services,Head of Education and Skills,075024,Durham Directions,Supplies and Services,364301,Grants to Voluntary Organisations,09-Sep-2021,000007676497582 - 1,SCREWFIX DIRECT,5211,Hardship,15.83,,15.83
Neighbourhoods and Climate Change,Environmental Services,031238,North Pennines - Tees Swale,Supplies and Services,304403,Equipment and Materials,09-Sep-2021,000007676497602,AMZNMKTPLACE AMAZON.CO,5999,Other consumables,51.66,8.61,43.05
Neighbourhoods and Climate Change,Environmental Services,031238,North Pennines - Tees Swale,Supplies and Services,304403,Equipment and Materials,09-Sep-2021,000007676497602 - 1,AMZNMKTPLACE AMAZON.CO,5999,Other consumables,0.07,,0.07
"Regeneration, Economy and Growth",Corporate Property and Land,021234,Catering - Locomotion,Supplies and Services,324117,Provisions E324,09-Sep-2021,000007676497660,BATLEYS PERTH,5300,Catering costs - provisions,-46.58,-7.76,-38.82
"Regeneration, Economy and Growth",Corporate Property and Land,010525,Catering - Green Lane,Supplies and Services,324117,Provisions E324,09-Sep-2021,000007676497736,BATLEYS PERTH,5300,Catering costs - provisions,176.04,29.34,146.70
"Regeneration, Economy and Growth",Corporate Property and Land,010525,Catering - Green Lane,Supplies and Services,324117,Provisions E324,09-Sep-2021,000007676497736 - 1,BATLEYS PERTH,5300,Catering costs - provisions,117.06,,117.06
Children and Young Peoples Services,Head of Childrens Social Care,085333,Coxhoe Satelite Home,Supplies and Services,324117,Provisions E324,09-Sep-2021,000007676498024,SAINSBURYS S/MKTS,5411,Catering costs - provisions,32.80,0.00,32.80
Children and Young Peoples Services,Head of Childrens Social Care,085342,16 Hickstead Rise (previously 9 Cedar Ave),Supplies and Services,324117,Provisions E324,09-Sep-2021,000007676498042,ICELAND FOODS,5411,Catering costs - provisions,135.73,0.00,135.73
Resources BK0010,Finance & Transactional Services,065116,Creditors/Purchasing,Employees,040149,Recruitment Instruction and Training,09-Sep-2021,000007676498068,WWW.CIPS.ORG,8699,Training-all costs,137.00,0.00,137.00
Adult and Health Services,Head of Adults,056601,Substance Misuse,Supplies and Services,338048,Services,09-Sep-2021,000007676498386,HMCOURTS-SERVICE.G,9222,Court costs 338048,75.00,0.00,75.00
Children and Young Peoples Services,Head of Early Help Inclusion & Vulnerable Children.,088111,Easington & Peterlee 0-19 Community Family Hub,Supplies and Services,324117,Provisions E324,09-Sep-2021,000007676498400,ALDI STORES,5411,Catering costs - provisions,9.56,0.00,9.56
Children and Young Peoples Services,Head of Childrens Social Care,085332,Middlestone Moor CU,Supplies and Services,348037,Subsistence E348,09-Sep-2021,000007676498482,MCDONALDS,5812,Subsistence,7.40,0.00,7.40
Adult and Health Services,Head of Adults,055309,Peterlee Pathways,Supplies and Services,304403,Equipment and Materials,09-Sep-2021,000007676498950,AMZNMKTPLACE AMAZON.CO,5999,Other consumables,27.37,4.56,22.81
Adult and Health Services,Head of Adults,055309,Peterlee Pathways,Supplies and Services,304403,Equipment and Materials,09-Sep-2021,000007676498952,AMZNMKTPLACE AMAZON.CO,5999,Other consumables,40.50,6.75,33.75
Adult and Health Services,Head of Adults,055309,Peterlee Pathways,Supplies and Services,304403,Equipment and Materials,09-Sep-2021,000007676498952 - 1,AMZNMKTPLACE AMAZON.CO,5999,Other consumables,0.03,,0.03
Dedicated Schools Grant BG0015,DSG Schools Block,417606,Greenfield Community College 004176 - Visual Arts,Supplies and Services,332047,Printing Stationery and Gen Off Exps,09-Sep-2021,7671541270,Hobbycraft Trading Lim,5970,Stationery,90.00,15.00,75.00
Dedicated Schools Grant BG0015,DSG Schools Block,417606,Greenfield Community College 004176 - Visual Arts,Supplies and Services,332047,Printing Stationery and Gen Off Exps,09-Sep-2021,7671541270 - 1,Hobbycraft Trading Lim,5970,Stationery,2.00,,2.00
Children and Young Peoples Services,Head of Early Help Inclusion & Vulnerable Children.,071449,Ferryhill One Point Hub,Employees,040149,Recruitment Instruction and Training,09-Sep-2021,7676498730,ST JOHN AMBULANCE,8398,Training-all costs,288.00,48.00,240.00
"Regeneration, Economy and Growth",Business Durham CL0850,030689,Inward Investment and Aftercare,Supplies and Services,304403,Equipment and Materials,10-Sep-2021,000007671541260,QR-CODE-GENERATOR.COM,5734,Other consumables,3.55,0.00,3.55
"Regeneration, Economy and Growth",Business Durham CL0850,030689,Inward Investment and Aftercare,Supplies and Services,304999,Equipment and Materials,10-Sep-2021,000007671541262,MAILCHIMP MONTHLY,5968,Misc equipment tools and materials,2.12,0.00,2.12
"Regeneration, Economy and Growth",Culture Sport and Tourism,011215,Museums Heritage & Collections 011215,Supplies and Services,304259,Equipment and Materials,10-Sep-2021,000007671541294,AMZNMktplace,5999,Equipment-purchase and rental,23.96,4.00,19.96
Children and Young Peoples Services,Head of Childrens Social Care,085380,Operations Manager LAC Resources,Supplies and Services,304259,Equipment and Materials,10-Sep-2021,000007671541382,AUST FEDERAL POLICE,9399,Equipment-purchase and rental,0.62,0.00,0.62
"Regeneration, Economy and Growth",Culture Sport and Tourism,054233,Bishop Auckland Town Hall Library,Supplies and Services,304403,Equipment and Materials,10-Sep-2021,000007671541396,AMZNMktplace,5999,Other consumables,31.98,5.34,26.64
"Regeneration, Economy and Growth",Culture Sport and Tourism,054813,Gala Theatre - Technical,Supplies and Services,304259,Equipment and Materials,10-Sep-2021,000007671541486,SPROUTVIDEO LLC,7399,Equipment-purchase and rental,145.71,0.00,145.71
"Regeneration, Economy and Growth",Culture Sport and Tourism,054813,Gala Theatre - Technical,Supplies and Services,304259,Equipment and Materials,10-Sep-2021,000007671541488,SPROUTVIDEO LLC,7399,Equipment-purchase and rental,4.01,0.00,4.01
Children and Young Peoples Services,Head of Early Help Inclusion & Vulnerable Children.,085955,Auckland,Supplies and Services,312009,Newspapers books and periodicals E312,10-Sep-2021,000007671541542,Amazon.co.uk 218C26995,5969,Newspapers books and periodicals,30.98,0.00,30.98
Children and Young Peoples Services,Head of Early Help Inclusion & Vulnerable Children.,085965,Barnard,Transfer Payments,515002,Social Services Clients,10-Sep-2021,000007671541544,Nike,5655,Pocket money,114.90,0.00,114.90
Adult and Health Services,Head of Adults,055309,Peterlee Pathways,Supplies and Services,384999,Miscellaneous Expenses,10-Sep-2021,000007671541888,Amazon.co.uk OF70M20V5,5969,Other expenses,8.58,1.44,7.14
"Regeneration, Economy and Growth",Business Durham CL0850,030689,Inward Investment and Aftercare,Third Party Payments,430100,Rendered by Private Contractors,10-Sep-2021,000007676496406,BLS monday.com,7399,Payments to sub-contractors,148.80,0.00,148.80
"Regeneration, Economy and Growth",Culture Sport and Tourism,011056,AAP Funding - Sport & Leisure,Supplies and Services,304259,Equipment and Materials,10-Sep-2021,000007676496488,SPORTS DIRECTORY,5941,Equipment-purchase and rental,347.95,0.00,347.95
Children and Young Peoples Services,Head of Education and Skills,075021,DurhamWorks Progression and Learning,Supplies and Services,332048,Printing Stationery and Gen Off Exps,10-Sep-2021,000007676496512,AMZNMktplace,5999,Administrative stationery etc,12.99,2.17,10.82
Children and Young Peoples Services,Head of Childrens Social Care,085331,New Lea Childrens Home,Employees,040149,Recruitment Instruction and Training,10-Sep-2021,000007676496686,VIRTUAL COLLEGE LIMITE,8299,Training-all costs,36.00,0.00,36.00
Children and Young Peoples Services,Head of Childrens Social Care,085331,New Lea Childrens Home,Supplies and Services,324117,Provisions E324,10-Sep-2021,000007676496762,WILKO RETAIL LIMITED,5399,Catering costs - provisions,7.00,0.00,7.00
"Regeneration, Economy and Growth",Development and Housing,030544,Rural Employability - Client Engagement,Transport,235057,Public Transport,10-Sep-2021,000007676496776,WWW.GONORTHEAST.CO.UK,4111,Staff travelling,25.00,0.00,25.00
"Regeneration, Economy and Growth",Development and Housing,030544,Rural Employability - Client Engagement,Transport,235057,Public Transport,10-Sep-2021,000007676496784,WWW.GONORTHEAST.CO.UK,4111,Staff travelling,20.00,0.00,20.00
"Regeneration, Economy and Growth",Corporate Property and Land,021242,Catering - County Hall,Supplies and Services,324117,Provisions E324,10-Sep-2021,000007676496804,JR HOLLAND FOODSERVICE,5499,Catering costs - provisions,226.95,0.00,226.95
"Regeneration, Economy and Growth",Culture Sport and Tourism,054233,Bishop Auckland Town Hall Library,Supplies and Services,304403,Equipment and Materials,10-Sep-2021,000007676496814,AMZNMKTPLACE AMAZON.CO,5999,Other consumables,219.30,36.72,182.58
Children and Young Peoples Services,Head of Childrens Social Care,085332,Middlestone Moor CU,Supplies and Services,304259,Equipment and Materials,10-Sep-2021,000007676496876,CURRYS ONLINE,5732,Equipment-purchase and rental,479.00,0.00,479.00
"Regeneration, Economy and Growth",Culture Sport and Tourism,054812,Gala Theatre - Catering etc,Supplies and Services,324117,Provisions E324,10-Sep-2021,000007676496972,FREEMAN CATERING BUTCH,5422,Catering costs - provisions,34.00,0.00,34.00
Children and Young Peoples Services,Head of Early Help Inclusion & Vulnerable Children.,085965,Barnard,Supplies and Services,328041,Clothing uniforms and laundry E328,10-Sep-2021,000007676496976,Mainline Menswear Ltd,5611,Clothing uniforms and laundry,70.95,0.00,70.95
Children and Young Peoples Services,Head of Early Help Inclusion & Vulnerable Children.,085957,Secure Management,Supplies and Services,340001,Postages E340,10-Sep-2021,000007676496980,POST OFFICE COUNTER,9402,Postages,3.85,0.00,3.85
Children and Young Peoples Services,Head of Early Help Inclusion & Vulnerable Children.,085957,Secure Management,Supplies and Services,384999,Miscellaneous Expenses,10-Sep-2021,000007676496982,Amazon.co.uk XM1V46P05,5969,Other expenses,45.25,7.55,37.70
Children and Young Peoples Services,Head of Early Help Inclusion & Vulnerable Children.,085957,Secure Management,Supplies and Services,384999,Miscellaneous Expenses,10-Sep-2021,000007676496984,Amazon.co.uk 940FZ8TP5,5969,Other expenses,5.48,0.92,4.56
Children and Young Peoples Services,Head of Early Help Inclusion & Vulnerable Children.,085965,Barnard,Supplies and Services,324117,Provisions E324,10-Sep-2021,000007676496992,TESCO STORES 6329,5411,Catering costs - provisions,94.00,0.00,94.00
Children and Young Peoples Services,Head of Early Help Inclusion & Vulnerable Children.,085957,Secure Management,Supplies and Services,304221,Equipment and Materials,10-Sep-2021,000007676496996,SCREWFIX DIRECT,5211,Direct materials,47.28,0.00,47.28
"Regeneration, Economy and Growth",Development and Housing,030772,CLLD South,Employees,040149,Recruitment Instruction and Training,10-Sep-2021,000007676497090,TWINWAY LGV DRIVER TRA,8220,Training-all costs,148.98,24.83,124.15
"Regeneration, Economy and Growth",Development and Housing,030772,CLLD South,Employees,040149,Recruitment Instruction and Training,10-Sep-2021,000007676497090 - 1,TWINWAY LGV DRIVER TRA,8220,Training-all costs,276.02,,276.02
Children and Young Peoples Services,Head of Education and Skills,071732,Dean Bank Childcare,Supplies and Services,324117,Provisions E324,10-Sep-2021,000007676497280,B&M 035 - SHILDON,5399,Catering costs - provisions,46.39,0.00,46.39
Neighbourhoods and Climate Change,Environmental Services,011060,C&G - Hardwick Park Catering,Supplies and Services,304083,Equipment and Materials,10-Sep-2021,000007676497290,AMZNMKTPLACE AMAZON.CO,5999,Catering equipment,11.98,2.00,9.98
"Regeneration, Economy and Growth",Development and Housing,030771,Durham Advance Flexible Fund,Supplies and Services,304999,Equipment and Materials,10-Sep-2021,000007676497338,PP 8112CODE,8999,Misc equipment tools and materials,1.00,0.00,1.00
"Regeneration, Economy and Growth",Development and Housing,030771,Durham Advance Flexible Fund,Supplies and Services,304999,Equipment and Materials,10-Sep-2021,000007676497344,PP 8112CODE,8999,Misc equipment tools and materials,-1.00,0.00,-1.00
"Regeneration, Economy and Growth",Development and Housing,030771,Durham Advance Flexible Fund,Supplies and Services,304221,Equipment and Materials,10-Sep-2021,000007676497404,SCREWFIX DIR LTD,5211,Direct materials,66.97,11.16,55.81
Children and Young Peoples Services,Head of Early Help Inclusion & Vulnerable Children.,085954,Walworth,Transfer Payments,515002,Social Services Clients,10-Sep-2021,000007676497424,LFC RETAIL GBP,7941,Pocket money,192.85,0.00,192.85
Children and Young Peoples Services,Head of Early Help Inclusion & Vulnerable Children.,071446,Seaham One Point Hub,Supplies and Services,324117,Provisions E324,10-Sep-2021,000007676497486,ASDA GROCERIES ONLINE,5411,Catering costs - provisions,19.95,0.00,19.95
Neighbourhoods and Climate Change,Environmental Services,011060,C&G - Hardwick Park Catering,Supplies and Services,324117,Provisions E324,10-Sep-2021,000007676497522,FREEMAN CATERING BUTCH,5422,Catering costs - provisions,62.72,0.00,62.72
Neighbourhoods and Climate Change,Environmental Services,011060,C&G - Hardwick Park Catering,Supplies and Services,324117,Provisions E324,10-Sep-2021,000007676497528,FREEMAN CATERING BUTCH,5422,Catering costs - provisions,30.80,0.00,30.80
Neighbourhoods and Climate Change,Environmental Services,011060,C&G - Hardwick Park Catering,Supplies and Services,324117,Provisions E324,10-Sep-2021,000007676497530,JR HOLLAND FOODSERVICE,5499,Catering costs - provisions,70.06,0.00,70.06
Children and Young Peoples Services,Head of Childrens Social Care,085347,Solo Home The Manse,Supplies and Services,324117,Provisions E324,10-Sep-2021,000007676497536,COSTA COFFEE CONSETT,5812,Catering costs - provisions,6.80,0.00,6.80
Children and Young Peoples Services,Head of Childrens Social Care,085347,Solo Home The Manse,Supplies and Services,384302,Miscellaneous Expenses,10-Sep-2021,000007676497540,SumUp Rostich Leisur,5813,Activity expenses,4.80,0.00,4.80
Children and Young Peoples Services,Head of Childrens Social Care,085347,Solo Home The Manse,Supplies and Services,324117,Provisions E324,10-Sep-2021,000007676497544,MCDONALDS,5812,Catering costs - provisions,2.18,0.00,2.18
Children and Young Peoples Services,Head of Childrens Social Care,085347,Solo Home The Manse,Supplies and Services,324117,Provisions E324,10-Sep-2021,000007676497550,MCDONALDS,5812,Catering costs - provisions,9.72,0.00,9.72
Children and Young Peoples Services,Head of Education and Skills,075024,Durham Directions,Supplies and Services,364301,Grants to Voluntary Organisations,10-Sep-2021,000007676497584,SHOE ZONE (INTERNET),5661,Hardship,25.98,0.00,25.98
Children and Young Peoples Services,Head of Education and Skills,075021,DurhamWorks Progression and Learning,Supplies and Services,364301,Grants to Voluntary Organisations,10-Sep-2021,000007676497590,DRI FITBIT INC.,5734,Hardship,129.99,21.67,108.32
Neighbourhoods and Climate Change,Environmental Services,031238,North Pennines - Tees Swale,Supplies and Services,304403,Equipment and Materials,10-Sep-2021,000007676497612,AMZNMKTPLACE AMAZON.CO,5999,Other consumables,19.59,3.27,16.32
Neighbourhoods and Climate Change,Environmental Services,031238,North Pennines - Tees Swale,Supplies and Services,304403,Equipment and Materials,10-Sep-2021,000007676497616,AMZNMKTPLACE AMAZON.CO,5999,Other consumables,13.98,2.34,11.64
"Regeneration, Economy and Growth",Corporate Property and Land,021234,Catering - Locomotion,Supplies and Services,324117,Provisions E324,10-Sep-2021,000007676497642,FREEMAN CATERING BUTCH,5422,Catering costs - provisions,24.67,0.00,24.67
"Regeneration, Economy and Growth",Corporate Property and Land,021234,Catering - Locomotion,Supplies and Services,324117,Provisions E324,10-Sep-2021,000007676497654,JR HOLLAND FOODSERVICE,5499,Catering costs - provisions,33.63,0.00,33.63
"Regeneration, Economy and Growth",Corporate Property and Land,010525,Catering - Green Lane,Supplies and Services,324117,Provisions E324,10-Sep-2021,000007676497740,FREEMAN CATERING BUTCH,5422,Catering costs - provisions,27.99,0.00,27.99
"Regeneration, Economy and Growth",Corporate Property and Land,010525,Catering - Green Lane,Supplies and Services,324117,Provisions E324,10-Sep-2021,000007676497744,JR HOLLAND FOODSERVICE,5499,Catering costs - provisions,23.50,0.00,23.50
Children and Young Peoples Services,Head of Education and Skills,071802,Louisa Cent Nursery,Supplies and Services,304403,Equipment and Materials,10-Sep-2021,000007676498006,AMZNMktplace,5999,Other consumables,143.94,24.00,119.94
Children and Young Peoples Services,Head of Childrens Social Care,085342,16 Hickstead Rise (previously 9 Cedar Ave),Supplies and Services,348037,Subsistence E348,10-Sep-2021,000007676498046,The Huntsman,5813,Subsistence,21.10,0.00,21.10
Children and Young Peoples Services,Head of Childrens Social Care,085342,16 Hickstead Rise (previously 9 Cedar Ave),Supplies and Services,324117,Provisions E324,10-Sep-2021,000007676498050,ICELAND FOODS,5411,Catering costs - provisions,-1.00,0.00,-1.00
Adult and Health Services,Head of Adults,055301,Stanley Pathways,Supplies and Services,308011,Furniture,10-Sep-2021,000007676498054,IKEA LTD SHOP ONLINE,5712,Furniture repair and replacement,109.00,0.00,109.00
Children and Young Peoples Services,Head of Childrens Social Care,085351,Framwellgate Moor CU,Supplies and Services,324117,Provisions E324,10-Sep-2021,000007676498094,ASDA GROCERIES ONLINE,5411,Catering costs - provisions,21.77,0.00,21.77
Children and Young Peoples Services,Head of Childrens Social Care,085351,Framwellgate Moor CU,Supplies and Services,324117,Provisions E324,10-Sep-2021,000007676498096,ASDA GROCERIES ONLINE,5411,Catering costs - provisions,56.92,0.00,56.92
Children and Young Peoples Services,Head of Childrens Social Care,085351,Framwellgate Moor CU,Supplies and Services,324117,Provisions E324,10-Sep-2021,000007676498100,ASDA GROCERIES ONLINE,5411,Catering costs - provisions,-0.83,0.00,-0.83
"Regeneration, Economy and Growth",Corporate Property and Land,030691,Catering - Durham Dales Centre,Supplies and Services,324117,Provisions E324,10-Sep-2021,000007676498116,FREEMAN CATERING BUTCH,5422,Catering costs - provisions,76.22,0.00,76.22
"Regeneration, Economy and Growth",Corporate Property and Land,030691,Catering - Durham Dales Centre,Supplies and Services,324117,Provisions E324,10-Sep-2021,000007676498120,JR HOLLAND FOODSERVICE,5499,Catering costs - provisions,33.81,0.00,33.81
"Regeneration, Economy and Growth",Corporate Property and Land,030691,Catering - Durham Dales Centre,Supplies and Services,324117,Provisions E324,10-Sep-2021,000007676498122,JR HOLLAND FOODSERVICE,5499,Catering costs - provisions,168.75,0.00,168.75
"Regeneration, Economy and Growth",Corporate Property and Land,030691,Catering - Durham Dales Centre,Supplies and Services,324117,Provisions E324,10-Sep-2021,000007676498124,JR HOLLAND FOODSERVICE,5499,Catering costs - provisions,39.80,0.00,39.80
Adult and Health Services,Head of Adults,055643,Hawthorn House LD Respite Unit,Supplies and Services,324117,Provisions E324,10-Sep-2021,000007676498182,FREEMAN CATERING BUTCH,5422,Catering costs - provisions,22.89,0.00,22.89
Adult and Health Services,Head of Adults,055643,Hawthorn House LD Respite Unit,Supplies and Services,324117,Provisions E324,10-Sep-2021,000007676498184,JR HOLLAND FOODSERVICE,5499,Catering costs - provisions,10.88,0.00,10.88
Adult and Health Services,Head of Adults,055643,Hawthorn House LD Respite Unit,Supplies and Services,324117,Provisions E324,10-Sep-2021,000007676498186,JR HOLLAND FOODSERVICE,5499,Catering costs - provisions,16.78,0.00,16.78
Children and Young Peoples Services,Head of Childrens Social Care,085334,West Rainton Satelite Home,Supplies and Services,324117,Provisions E324,10-Sep-2021,000007676498198,TESCO STORES 2371,5411,Catering costs - provisions,126.98,0.00,126.98
Children and Young Peoples Services,Head of Childrens Social Care,085334,West Rainton Satelite Home,Supplies and Services,324117,Provisions E324,10-Sep-2021,000007676498202,TESCO STORES 2371,5411,Catering costs - provisions,1.00,0.00,1.00
Children and Young Peoples Services,Head of Education and Skills,078100,Curric and Professional Development 078100,Employees,040149,Recruitment Instruction and Training,10-Sep-2021,000007676498210,HFL NATIONAL ASSESSME,8299,Training-all costs,99.00,0.00,99.00
Resources BK0010,Digital and Customer Services,065335,School Services - Implementations,Supplies and Services,304639,Equipment and Materials,10-Sep-2021,000007676498262,AMZNMktplace,5999,Technicians-supplies,11.98,2.00,9.98
Children and Young Peoples Services,Head of Childrens Social Care,085371,Young Peoples Service Team 1,Supplies and Services,364358,Grants to Voluntary Organisations,10-Sep-2021,000007676498396,SP UNIKITOUT,5399,University expenses,166.00,0.00,166.00
Children and Young Peoples Services,Head of Childrens Social Care,085371,Young Peoples Service Team 1,Supplies and Services,364354,Grants to Voluntary Organisations,10-Sep-2021,000007676498398,ASDA GEORGE COM LEEDS,5411,Supervised Spend - Setting Up Home Allowance,-8.00,0.00,-8.00
"Regeneration, Economy and Growth",Culture Sport and Tourism,054235,Bishop Auckland Town Hall Cafe,Supplies and Services,324117,Provisions E324,10-Sep-2021,000007676498450,JR HOLLAND FOODSERVICE,5499,Catering costs - provisions,48.87,0.00,48.87
Neighbourhoods and Climate Change,Community Protection,010809,Community Protection Management,Supplies and Services,304403,Equipment and Materials,10-Sep-2021,000007676498494,AMZNMktplace,5999,Other consumables,41.98,7.00,34.98
Children and Young Peoples Services,Head of Early Help Inclusion & Vulnerable Children.,085801,CDYJS - Support,Supplies and Services,304403,Equipment and Materials,10-Sep-2021,000007676498520,AMZNMktplace,5999,Other consumables,24.99,4.17,20.82
Children and Young Peoples Services,Head of Education and Skills,071802,Louisa Cent Nursery,Supplies and Services,324117,Provisions E324,10-Sep-2021,000007676498554,ASDA GROCERIES ONLINE,5411,Catering costs - provisions,191.25,0.00,191.25
Children and Young Peoples Services,Head of Education and Skills,071802,Louisa Cent Nursery,Supplies and Services,324117,Provisions E324,10-Sep-2021,000007676498556,ASDA SUPERSTORE,5411,Catering costs - provisions,15.35,0.00,15.35
"Regeneration, Economy and Growth",Culture Sport and Tourism,054233,Bishop Auckland Town Hall Library,Supplies and Services,324117,Provisions E324,10-Sep-2021,000007676498712,WILKO RETAIL LIMITED,5399,Catering costs - provisions,17.75,0.00,17.75
Children and Young Peoples Services,Head of Childrens Social Care,085332,Middlestone Moor CU,Supplies and Services,328041,Clothing uniforms and laundry E328,10-Sep-2021,000007676498812,RIVER ISLAND 400,5691,Clothing uniforms and laundry,50.00,0.00,50.00
Adult and Health Services,Head of Adults,055310,Positive Journeys (Tudhoe),Supplies and Services,324117,Provisions E324,10-Sep-2021,000007676498852,ASDA STORES LTD,5411,Catering costs - provisions,1.20,0.00,1.20
Adult and Health Services,Head of Adults,055310,Positive Journeys (Tudhoe),Supplies and Services,324117,Provisions E324,10-Sep-2021,000007676498856,TESCO STORES 4358,5411,Catering costs - provisions,39.02,0.00,39.02
Neighbourhoods and Climate Change,Environmental Services,031200,North Pennines Core,Supplies and Services,344033,Telephones,10-Sep-2021,000007676498994,ZOOM.US 888-799-9666,4814,Telephones general-all costs,134.40,0.00,134.40
"Regeneration, Economy and Growth",Development and Housing,030770,Durham Advance,Supplies and Services,384999,Miscellaneous Expenses,10-Sep-2021,000007676499024,BASH ACADEMY NE LTD,5977,Other expenses,15.98,0.00,15.98
Adult and Health Services,Head of Adults,055309,Peterlee Pathways,Supplies and Services,328041,Clothing uniforms and laundry E328,10-Sep-2021,000007676499056,POUNDSTRETCHER 396,5331,Clothing uniforms and laundry,6.16,0.00,6.16
Adult and Health Services,Head of Adults,055643,Hawthorn House LD Respite Unit,Supplies and Services,324117,Provisions E324,10-Sep-2021,000007682362028,BATLEYS PERTH,5300,Catering costs - provisions,31.44,5.24,26.20
Adult and Health Services,Head of Adults,055643,Hawthorn House LD Respite Unit,Supplies and Services,324117,Provisions E324,10-Sep-2021,000007682362028 - 1,BATLEYS PERTH,5300,Catering costs - provisions,111.09,,111.09
Dedicated Schools Grant BG0015,DSG Schools Block,417611,Greenfield Community College 004176 - Technology,Supplies and Services,304403,Equipment and Materials,10-Sep-2021,7676496468,ASDA GROCERIES ONLINE,5411,Other consumables,185.73,0.00,185.73
Children and Young Peoples Services,Head of Childrens Social Care,085341,High Etherley Satelite Home,Supplies and Services,332047,Printing Stationery and Gen Off Exps,11-Sep-2021,000007676496502,ODEON,7832,Stationery,24.00,0.00,24.00
Children and Young Peoples Services,Head of Childrens Social Care,085341,High Etherley Satelite Home,Supplies and Services,332047,Printing Stationery and Gen Off Exps,11-Sep-2021,000007676496504,ODEON,7832,Stationery,12.50,0.00,12.50
"Regeneration, Economy and Growth",Culture Sport and Tourism,054233,Bishop Auckland Town Hall Library,Supplies and Services,304403,Equipment and Materials,11-Sep-2021,000007676496818,AMZNMktplace,5999,Other consumables,14.99,2.50,12.49
Children and Young Peoples Services,Head of Early Help Inclusion & Vulnerable Children.,085954,Walworth,Supplies and Services,328041,Clothing uniforms and laundry E328,11-Sep-2021,000007676496988,Nike,5655,Clothing uniforms and laundry,123.47,20.58,102.89
Children and Young Peoples Services,Head of Early Help Inclusion & Vulnerable Children.,085956,Lumley,Supplies and Services,324117,Provisions E324,11-Sep-2021,000007676496998,TESCO STORES 6329,5411,Catering costs - provisions,48.28,0.00,48.28
"Regeneration, Economy and Growth",Corporate Property and Land,021242,Catering - County Hall,Supplies and Services,304403,Equipment and Materials,11-Sep-2021,000007676497030,AMZNMktplace,5999,Other consumables,25.98,0.00,25.98
Children and Young Peoples Services,Head of Childrens Social Care,085342,16 Hickstead Rise (previously 9 Cedar Ave),Supplies and Services,324117,Provisions E324,11-Sep-2021,000007676497222,SAINSBURYS S/MKTS,5411,Catering costs - provisions,16.00,0.00,16.00
Children and Young Peoples Services,Head of Childrens Social Care,085342,16 Hickstead Rise (previously 9 Cedar Ave),Supplies and Services,348037,Subsistence E348,11-Sep-2021,000007676497228,MCDONALD`S,5812,Subsistence,5.78,0.00,5.78
Children and Young Peoples Services,Head of Childrens Social Care,085342,16 Hickstead Rise (previously 9 Cedar Ave),Supplies and Services,348037,Subsistence E348,11-Sep-2021,000007676497232,WWW.TAKEAWAY.JE,5812,Subsistence,10.15,0.00,10.15
Children and Young Peoples Services,Head of Childrens Social Care,085342,16 Hickstead Rise (previously 9 Cedar Ave),Supplies and Services,328041,Clothing uniforms and laundry E328,11-Sep-2021,000007676497236,TK MAXX,5331,Clothing uniforms and laundry,90.95,0.00,90.95
Children and Young Peoples Services,Head of Childrens Social Care,085342,16 Hickstead Rise (previously 9 Cedar Ave),Supplies and Services,304403,Equipment and Materials,11-Sep-2021,000007676497240,TAKEAWAY PIZZA COTTAG,5734,Other consumables,33.10,0.00,33.10
Resources BK0010,Legal & Democratic Services,067910,Democratic Representation 067910,Supplies and Services,384965,Miscellaneous Expenses,11-Sep-2021,000007676497286,CO-OP GROUP 310016,5411,Civic Functions,15.19,0.00,15.19
Children and Young Peoples Services,Head of Early Help Inclusion & Vulnerable Children.,085954,Walworth,Transfer Payments,515002,Social Services Clients,11-Sep-2021,000007676497442,SPORTSDIRECT.COM,5691,Pocket money,56.98,0.00,56.98
Children and Young Peoples Services,Head of Early Help Inclusion & Vulnerable Children.,085965,Barnard,Transfer Payments,515002,Social Services Clients,11-Sep-2021,000007676497448,JD SPORTS INTERNET,5941,Pocket money,-11.00,0.00,-11.00
Children and Young Peoples Services,Head of Childrens Social Care,085551,Short Break Services-Park Hse Sher,Supplies and Services,324117,Provisions E324,11-Sep-2021,000007676497806,ASDA STORES,5411,Catering costs - provisions,4.50,0.00,4.50
Children and Young Peoples Services,Head of Childrens Social Care,085551,Short Break Services-Park Hse Sher,Supplies and Services,324117,Provisions E324,11-Sep-2021,000007676497810,ASDA STORES,5411,Catering costs - provisions,-14.00,0.00,-14.00
Adult and Health Services,Head of Adults,055643,Hawthorn House LD Respite Unit,Supplies and Services,324117,Provisions E324,11-Sep-2021,000007676497978,SAINSBURYS S/MKTS,5411,Catering costs - provisions,13.60,0.00,13.60
Children and Young Peoples Services,Head of Education and Skills,071802,Louisa Cent Nursery,Supplies and Services,304999,Equipment and Materials,11-Sep-2021,000007676498008,HOME BARGAINS,5251,Misc equipment tools and materials,10.21,0.00,10.21
Children and Young Peoples Services,Head of Education and Skills,071802,Louisa Cent Nursery,Supplies and Services,324117,Provisions E324,11-Sep-2021,000007676498014,LIDL GB CONSETT,5411,Catering costs - provisions,20.00,0.00,20.00
Children and Young Peoples Services,Head of Childrens Social Care,085333,Coxhoe Satelite Home,Supplies and Services,348037,Subsistence E348,11-Sep-2021,000007676498030,WWW.TAKEAWAY.JE,5812,Subsistence,23.40,0.00,23.40
Resources BK0010,Finance & Transactional Services,065160,NECA Support,Supplies and Services,384199,Miscellaneous Expenses,11-Sep-2021,000007676498390,HOO HOOTSUITE INC,7399,Other hired and contracted services,561.60,0.00,561.60
"Regeneration, Economy and Growth",Business Durham CL0850,030690,Durham Dales Centre - Tourist Information Centre,Supplies and Services,324117,Provisions E324,11-Sep-2021,000007676498422,WWW.HARRISONSDIRECT.CO,5300,Catering costs - provisions,461.79,0.00,461.79
"Regeneration, Economy and Growth",Business Durham CL0850,030690,Durham Dales Centre - Tourist Information Centre,Supplies and Services,384999,Miscellaneous Expenses,11-Sep-2021,000007676498432,RISUSLTDTRI,5945,Other expenses,305.48,0.00,305.48
Children and Young Peoples Services,Head of Childrens Social Care,085332,Middlestone Moor CU,Supplies and Services,348037,Subsistence E348,11-Sep-2021,000007676498488,MCDONALD`S,5812,Subsistence,10.14,0.00,10.14
Children and Young Peoples Services,Head of Childrens Social Care,085332,Middlestone Moor CU,Supplies and Services,304259,Equipment and Materials,11-Sep-2021,000007676498490,SPORTSDIRECT 264,5941,Equipment-purchase and rental,11.00,0.00,11.00
Neighbourhoods and Climate Change,Community Protection,010809,Community Protection Management,Supplies and Services,304403,Equipment and Materials,11-Sep-2021,000007676498500,AMZNMktplace,5999,Other consumables,19.90,3.32,16.58
Children and Young Peoples Services,Head of Early Help Inclusion & Vulnerable Children.,085801,CDYJS - Support,Supplies and Services,304403,Equipment and Materials,11-Sep-2021,000007676498524,AMZNMktplace,5999,Other consumables,24.90,4.15,20.75
Children and Young Peoples Services,Head of Childrens Social Care,085332,Middlestone Moor CU,Supplies and Services,324117,Provisions E324,11-Sep-2021,000007676498632,SAINSBURYS S/MKTS,5411,Catering costs - provisions,30.62,0.00,30.62
Children and Young Peoples Services,Head of Childrens Social Care,085332,Middlestone Moor CU,Supplies and Services,348037,Subsistence E348,11-Sep-2021,000007676498636,MCDONALD`S,5812,Subsistence,7.81,0.00,7.81
Children and Young Peoples Services,Head of Childrens Social Care,085334,West Rainton Satelite Home,Supplies and Services,348037,Subsistence E348,11-Sep-2021,000007676498814,MCDONALDS 1514,5814,Subsistence,14.67,0.00,14.67
Children and Young Peoples Services,Head of Childrens Social Care,085334,West Rainton Satelite Home,Transport,235057,Public Transport,11-Sep-2021,000007676498820,THE RIVERWALK CAR PARK,7523,Staff travelling,1.50,0.00,1.50
Adult and Health Services,Head of Adults,055310,Positive Journeys (Tudhoe),Supplies and Services,328041,Clothing uniforms and laundry E328,11-Sep-2021,000007676498860,THE WORKS,5310,Clothing uniforms and laundry,3.00,0.00,3.00
Neighbourhoods and Climate Change,Community Protection,011293,Horden Making Every Adult Matter (MEAM),Supplies and Services,384999,Miscellaneous Expenses,11-Sep-2021,000007676498910,1ST FOR FABRICS LTD,5949,Other expenses,30.40,0.00,30.40
Adult and Health Services,Head of Adults,055309,Peterlee Pathways,Supplies and Services,304403,Equipment and Materials,11-Sep-2021,000007676498956,AMZNMktplace,5999,Other consumables,89.99,15.00,74.99
